Inv Transaction,Supplier Name,Headserv Name,Stratdir Name,Account Desription,Redact Name,Paid Date, Sum of Inv Amount ,Proclass,Merchant cat
5387012,Skybound Therapies,Education,Children's Services,Independent School Fees,,01/07/2020, 644.90 ,170000,Education
5386970,CBS Building and Maintenance,Place,Growth,Waste Disposal Fees,,01/07/2020," 3,200.00 ",100000,Building Construction Materials
5386842,CBS Building and Maintenance,Contingency,Contingency,General Materials,,01/07/2020, 742.00 ,100000,Building Construction Materials
5386999,YOUNG PEOPLE FIRST LIMITED,Childrens Services,Children's Services,Living With Formal Support,,01/07/2020, 850.00 ,321100,Social Community Care Supplies & Services - Children
5386843,YOUNG PEOPLE FIRST LIMITED,Childrens Services,Children's Services,Living With Formal Support,,01/07/2020," 1,225.00 ",321100,Social Community Care Supplies & Services - Children
5386969,ROC Northwest Limited,Education,Children's Services,Independent School Fees,,01/07/2020," 3,811.50 ",321100,Social Community Care Supplies & Services - Children
5386972,Foundations Plus,Adult Social Care,Adults,Residential Home Long Stay Fees,,01/07/2020," 3,480.00 ",UNCLASS,Unclassifiable
5386975,FROSTBITE REFRIGERATION LTD,Operations and Neighbourhoods,Operations and Neighbourhoods,Miscellaneous Expenses,,01/07/2020," 1,100.00 ",-999999,Unclassifiable
5386714,B A Estates,Operations and Neighbourhoods,Operations and Neighbourhoods,Other Accommodation Related Costs,,01/07/2020, 800.00 ,202000,Financial Services
5386976,DOMAIN CARE NORTH WEST LTD,Adult Social Care,Adults,Homecare Fees,,01/07/2020," 1,198.04 ",321100,Social Community Care Supplies & Services - Children
5384454,HALLIWELL HOMES,Childrens Services,Children's Services,Childrens Homes Outside Local Authority Fees,,01/07/2020," 21,235.00 ",321100,Social Community Care Supplies & Services - Children
5386576,AUTISM INITIATIVES (UK),Adult Social Care,Adults,Supporting People Gross Contract,,01/07/2020," 1,285.54 ",321100,Social Community Care Supplies & Services - Children
5386949,Randstad Public Services Limited,Education,Children's Services,Agency Staff,,01/07/2020, 572.50 ,170000,Education
5386948,SOFTCAT LIMITED,GMPF (FX),GMPF (FX),Computer Software,,01/07/2020," 1,129.44 ",270000,Information Communication Technology
5386947,SOFTCAT LIMITED,GMPF (FX),GMPF (FX),Computer Software,,01/07/2020," 2,635.36 ",270000,Information Communication Technology
5385676,PERSON CENTRED CARE SERVICES LIMITED,Adult Social Care,Adults,Homecare Fees,,01/07/2020," 1,106.64 ",310000,Healthcare
5385766,PERSON CENTRED CARE SERVICES LIMITED,Adult Social Care,Adults,Homecare Fees,,01/07/2020," 1,229.60 ",310000,Healthcare
5385768,PERSON CENTRED CARE SERVICES LIMITED,Adult Social Care,Adults,Homecare Fees,,01/07/2020," 1,214.23 ",310000,Healthcare
5385677,PERSON CENTRED CARE SERVICES LIMITED,Adult Social Care,Adults,Homecare Fees,,01/07/2020, 799.24 ,310000,Healthcare
5386404,ACORN CARE & EDUCATION LTD (SALES),Education,Children's Services,Independent School Fees,,01/07/2020," 11,863.33 ",321100,Social Community Care Supplies & Services - Children
5386408,ACORN CARE & EDUCATION LTD (SALES),Education,Children's Services,Independent School Fees,,01/07/2020," 17,100.00 ",321100,Social Community Care Supplies & Services - Children
5386403,ACORN CARE & EDUCATION LTD (SALES),Education,Children's Services,Independent School Fees,,01/07/2020," 11,863.33 ",321100,Social Community Care Supplies & Services - Children
5386401,ACORN CARE & EDUCATION LTD (SALES),Education,Children's Services,Independent School Fees,,01/07/2020," 11,863.33 ",321100,Social Community Care Supplies & Services - Children
5386396,ACORN CARE & EDUCATION LTD (SALES),Education,Children's Services,Independent School Fees,,01/07/2020," 11,880.00 ",321100,Social Community Care Supplies & Services - Children
5386402,ACORN CARE & EDUCATION LTD (SALES),Education,Children's Services,Independent School Fees,,01/07/2020," 11,863.33 ",321100,Social Community Care Supplies & Services - Children
5386400,ACORN CARE & EDUCATION LTD (SALES),Education,Children's Services,Independent School Fees,,01/07/2020," 11,880.00 ",321100,Social Community Care Supplies & Services - Children
5386943,ABLE CARE AND SUPPORT SERVICES LTD,Adult Social Care,Adults,Homecare Fees,,01/07/2020," 39,856.73 ",321000,Social Community Care Supplies & Services - Adult
5386944,ABLE CARE AND SUPPORT SERVICES LTD,Adult Social Care,Adults,Homecare Fees,,01/07/2020," 21,190.00 ",321000,Social Community Care Supplies & Services - Adult
5386978,TRIANGLE CARE GROUP,Childrens Services,Children's Services,Living With Formal Support,,01/07/2020," 4,400.00 ",321000,Social Community Care Supplies & Services - Adult
5386272,Connex Community Support,Childrens Services,Children's Services,Day Care Fees,,01/07/2020, 718.91 ,321000,Social Community Care Supplies & Services - Adult
5386980,MEW CARE LTD,Adult Social Care,Adults,Professional Services,,01/07/2020, 875.00 ,260000,Human Resources
5386932,ORACLE CARE LTD,Childrens Services,Children's Services,Childrens Homes Outside Local Authority Fees,,01/07/2020," 20,150.00 ",321100,Social Community Care Supplies & Services - Children
5386997,Simpson Millar Solicitors,Multiple Heads of Service,Multiple Strategic Directorates,Claims Settled,,01/07/2020," 12,586.00 ",150000,Consultancy
5386924,H JENKINSON & CO LTD,Place,Growth,"Fixtures, Fittings & Furniture Purchase",,01/07/2020, 945.94 ,210000,Furniture & Soft Furnishings
5386691,SWIIS FOSTER CARE LTD,Childrens Services,Children's Services,Foster Carer Agency Fees,,01/07/2020, 693.49 ,321100,Social Community Care Supplies & Services - Children
5386684,SWIIS FOSTER CARE LTD,Childrens Services,Children's Services,Foster Carer Agency Fees,,01/07/2020, 658.84 ,321100,Social Community Care Supplies & Services - Children
5386681,SWIIS FOSTER CARE LTD,Childrens Services,Children's Services,Foster Carer Agency Fees,,01/07/2020, 899.99 ,321100,Social Community Care Supplies & Services - Children
5386686,SWIIS FOSTER CARE LTD,Childrens Services,Children's Services,Foster Carer Agency Fees,,01/07/2020, 796.11 ,321100,Social Community Care Supplies & Services - Children
5386685,SWIIS FOSTER CARE LTD,Childrens Services,Children's Services,Foster Carer Agency Fees,,01/07/2020, 703.92 ,321100,Social Community Care Supplies & Services - Children
5386687,SWIIS FOSTER CARE LTD,Childrens Services,Children's Services,Foster Carer Agency Fees,,01/07/2020, 760.48 ,321100,Social Community Care Supplies & Services - Children
5386983,P CASEY CIVIL ENGINEERING LTD,(blank),(blank),Adaptations To Buildings,,01/07/2020," 92,579.43 ",390000,"Works - Construction, Repair & Maintenance"
5386996,VAISALA LTD,Operations and Neighbourhoods,Operations and Neighbourhoods,Fees,,01/07/2020," 5,361.50 ",180000,Environmental Services
5386283,With Box Limited,Childrens Services,Children's Services,Professional Services,,02/07/2020," 2,259.79 ",220000,Health & Safety
5386513,Montrose Recruitment Limited TA Montrose Living,Childrens Services,Children's Services,Living With Formal Support,,02/07/2020," 4,071.43 ",321100,Social Community Care Supplies & Services - Children
5386830,ISW CSC Limited,Childrens Services,Children's Services,Living With Formal Support,,02/07/2020, 950.00 ,260000,Human Resources
5386823,ISW CSC Limited,Childrens Services,Children's Services,Living With Formal Support,,02/07/2020, 870.00 ,260000,Human Resources
5386829,ISW CSC Limited,Childrens Services,Children's Services,Living With Formal Support,,02/07/2020," 1,310.00 ",260000,Human Resources
5386832,ISW CSC Limited,Childrens Services,Children's Services,Living With Formal Support,,02/07/2020," 1,250.00 ",260000,Human Resources
5386831,ISW CSC Limited,Childrens Services,Children's Services,Living With Formal Support,,02/07/2020," 1,250.00 ",260000,Human Resources
5386837,ISW CSC Limited,Childrens Services,Children's Services,Living With Formal Support,,02/07/2020," 1,250.00 ",260000,Human Resources
3250768,DENNIS EAGLE LTD,Transport,Director of Place,Debits Goods Received,,02/07/2020, 926.84 ,380000,Vehicle Management
3250768,DENNIS EAGLE LTD,Operations and Neighbourhoods,Operations and Neighbourhoods,General Materials,,02/07/2020," 1,510.81 ",380000,Vehicle Management
3250768,NTM GB LTD,Operations and Neighbourhoods,Operations and Neighbourhoods,General Materials,,02/07/2020," 1,525.30 ",380000,Vehicle Management
3250768,AEBI SCHMIDT UK LTD,Operations and Neighbourhoods,Operations and Neighbourhoods,Sub-contractor Services,,02/07/2020, 937.56 ,380000,Vehicle Management
3250768,SCARAB SWEEPERS LTD,Operations and Neighbourhoods,Operations and Neighbourhoods,General Materials,,02/07/2020, 598.21 ,360000,Public Transport
3250768,HTF TYRE SERVICES LTD,Operations and Neighbourhoods,Operations and Neighbourhoods,Tyre Costs,,02/07/2020," 5,330.32 ",380000,Vehicle Management
5387119,YOUNG PEOPLE FIRST LIMITED,Childrens Services,Children's Services,Living With Formal Support,,02/07/2020," 2,730.00 ",321100,Social Community Care Supplies & Services - Children
5387249,YOUNG PEOPLE FIRST LIMITED,Childrens Services,Children's Services,Living With Formal Support,,02/07/2020, 850.00 ,321100,Social Community Care Supplies & Services - Children
5387272,G2V Recruitment Group Limited t/a Vivid Resourcing,Place,Growth,Agency Staff,,02/07/2020," 2,000.00 ",280000,Legal Services
5387271,G2V Recruitment Group Limited t/a Vivid Resourcing,Place,Growth,Agency Staff,,02/07/2020," 2,000.00 ",280000,Legal Services
5387054,0161 Project,Individual Schools Budget,Children's Services,Professional Child Services,,02/07/2020, 910.00 ,171011,Education
5387265,Palin Consulting Limited,Hosted Services,Hosted Services,Professional Consultancy Services,,02/07/2020," 9,750.00 ",321000,Social Community Care Supplies & Services - Adult
5386091,Optima Health,People and Workforce Development,Governance,Fees,,02/07/2020, 592.23 ,311410,Healthcare
5387256,Optima Health,People and Workforce Development,Governance,Fees,,02/07/2020," 1,760.23 ",311410,Healthcare
5387213,Nicola J Ellis Clinical Psychology Ltd,Childrens Services,Children's Services,Professional Services,,02/07/2020, 838.00 ,-999999,Unclassifiable
5384844,EMBRACE HOUSING CARE LTD,Operations and Neighbourhoods,Operations and Neighbourhoods,Other Accommodation Related Costs,,02/07/2020," 1,500.00 ",202000,Financial Services
5387239,KONICA MINOLTA BUSINESS SOLUTIONS (UK) LTD,Digital Tameside,Finance & IT,Printing Recharges,,02/07/2020, 742.92 ,270000,Information Communication Technology
5386965,IDOX SOFTWARE LIMITED,Digital Tameside,Finance & IT,Computer Software,,02/07/2020," 7,712.50 ",270000,Information Communication Technology
5384452,HALLIWELL HOMES,Childrens Services,Children's Services,Childrens Homes Outside Local Authority Fees,,02/07/2020," 21,235.00 ",321100,Social Community Care Supplies & Services - Children
5384435,HALLIWELL HOMES,Childrens Services,Children's Services,Childrens Homes Outside Local Authority Fees,,02/07/2020," 22,120.71 ",321100,Social Community Care Supplies & Services - Children
5386951,Randstad Public Services Limited,Individual Schools Budget,Children's Services,Agency Staff,,02/07/2020, 522.00 ,170000,Education
5386953,Randstad Public Services Limited,Individual Schools Budget,Children's Services,Agency Staff,,02/07/2020, 840.00 ,170000,Education
5386952,Randstad Public Services Limited,Individual Schools Budget,Children's Services,Agency Staff,,02/07/2020, 522.00 ,170000,Education
5386946,PROFILE SECURITY SERVICES LIMITED,Place,Growth,Security Services,,02/07/2020," 1,899.65 ",190000,Facilities & Management Services
5387146,ACORN CARE & EDUCATION LTD (SALES),Education,Children's Services,Independent School Fees,,02/07/2020," 12,771.00 ",321100,Social Community Care Supplies & Services - Children
5387269,ABLE CARE AND SUPPORT SERVICES LTD,Adult Social Care,Adults,Homecare Fees,,02/07/2020, 534.30 ,321000,Social Community Care Supplies & Services - Adult
5387081,ABLE CARE AND SUPPORT SERVICES LTD,Adult Social Care,Adults,Homecare Fees,,02/07/2020," 4,755.81 ",321000,Social Community Care Supplies & Services - Adult
5386940,QUEST MEDIA NETWORKS LTD,Operations and Neighbourhoods,Operations and Neighbourhoods,Statutory Advertising,,02/07/2020, 660.00 ,-999999,Unclassifiable
5387050,NATIONAL FOSTERING AGENCY LTD,Childrens Services,Children's Services,Foster Carer Agency Fees,,02/07/2020," 3,016.20 ",321100,Social Community Care Supplies & Services - Children
5387063,NATIONAL FOSTERING AGENCY LTD,Childrens Services,Children's Services,Foster Carer Agency Fees,,02/07/2020," 3,450.00 ",321100,Social Community Care Supplies & Services - Children
5387062,NATIONAL FOSTERING AGENCY LTD,Childrens Services,Children's Services,Foster Carer Agency Fees,,02/07/2020," 2,992.50 ",321100,Social Community Care Supplies & Services - Children
5385657,MEDACS HEALTHCARE,Adult Social Care,Adults,Homecare Fees,,02/07/2020," 1,229.90 ",150000,Consultancy
5387224,ROUTES HEALTHCARE (NORTH) LIMITED,Adult Social Care,Adults,Homecare Fees,,02/07/2020," 2,071.51 ",321100,Social Community Care Supplies & Services - Children
5384331,INSPIRE COMMUNITY SERVICES LIMITED,Childrens Services,Children's Services,Living With Formal Support,,02/07/2020," 2,606.79 ",170000,Education
5384334,INSPIRE COMMUNITY SERVICES LIMITED,Childrens Services,Children's Services,Living With Formal Support,,02/07/2020," 2,247.19 ",170000,Education
5384339,INSPIRE COMMUNITY SERVICES LIMITED,Childrens Services,Children's Services,Living With Formal Support,,02/07/2020," 2,247.19 ",170000,Education
5387294,Redacted,Adult Social Care,Adults,Homecare Fees,,02/07/2020," 1,420.22 ",321000,Social Community Care Supplies & Services - Adult
5387291,Redacted,Adult Social Care,Adults,Homecare Fees,,02/07/2020," 1,726.69 ",321000,Social Community Care Supplies & Services - Adult
5387127,Oxford Innovation LTD - ASHTON OLD BATHS,Place,Growth,Professional Services,,02/07/2020," 17,141.74 ",190000,Facilities & Management Services
5387214,S & M Builders,Place,Growth,Engineers Works,,02/07/2020," 5,866.00 ",390000,"Works - Construction, Repair & Maintenance"
5387286,Smartway Health and Social Care Limited,Adult Social Care,Adults,Homecare Fees,,02/07/2020," 3,658.85 ",321000,Social Community Care Supplies & Services - Adult
5387282,Northern Community Pathways Limited,Childrens Services,Children's Services,Living With Formal Support,,02/07/2020," 2,780.00 ",321100,Social Community Care Supplies & Services - Children
5387230,Bright Opportunities,Adult Social Care,Adults,Homecare Fees,,02/07/2020, 540.00 ,-999999,Unclassifiable
5387260,BROXAP LIMITED,Operations and Neighbourhoods,Operations and Neighbourhoods,General Materials,,02/07/2020," 1,234.00 ",230000,Highway Equipment & Materials
5385427,CREATIVE SUPPORT LTD,Adult Social Care,Adults,Homecare Fees,,02/07/2020," 5,894.77 ",321000,Social Community Care Supplies & Services - Adult
5385432,CREATIVE SUPPORT LTD,Adult Social Care,Adults,Homecare Fees,,02/07/2020," 5,987.91 ",321000,Social Community Care Supplies & Services - Adult
5385433,CREATIVE SUPPORT LTD,Adult Social Care,Adults,Homecare Fees,,02/07/2020," 5,651.09 ",321000,Social Community Care Supplies & Services - Adult
5385425,CREATIVE SUPPORT LTD,Adult Social Care,Adults,Homecare Fees,,02/07/2020," 6,064.62 ",321000,Social Community Care Supplies & Services - Adult
5387287,CREATIVE SUPPORT LTD,Adult Social Care,Adults,Homecare Fees,,02/07/2020," 18,608.00 ",321000,Social Community Care Supplies & Services - Adult
5386927,CREATIVE SUPPORT LTD,Adult Social Care,Adults,Residential Home Long Stay Fees,,02/07/2020, 964.64 ,321000,Social Community Care Supplies & Services - Adult
5385430,CREATIVE SUPPORT LTD,Adult Social Care,Adults,Homecare Fees,,02/07/2020," 5,684.13 ",321000,Social Community Care Supplies & Services - Adult
5385429,CREATIVE SUPPORT LTD,Adult Social Care,Adults,Homecare Fees,,02/07/2020," 5,732.32 ",321000,Social Community Care Supplies & Services - Adult
5385440,CREATIVE SUPPORT LTD,Adult Social Care,Adults,Homecare Fees,,02/07/2020," 5,987.91 ",321000,Social Community Care Supplies & Services - Adult
5385431,CREATIVE SUPPORT LTD,Adult Social Care,Adults,Homecare Fees,,02/07/2020," 5,924.73 ",321000,Social Community Care Supplies & Services - Adult
5387264,PHOENIX SOFTWARE LTD,GMPF (FX),GMPF (FX),It Equipment,,02/07/2020, 950.00 ,270000,Information Communication Technology
5386907,Redacted,Childrens Services,Children's Services,Childrens Homes Outside Local Authority Fees,Redacted Supplier,02/07/2020," 20,592.99 ",171011,Education
5386899,Redacted,Childrens Services,Children's Services,Childrens Homes Outside Local Authority Fees,Redacted Supplier,02/07/2020," 30,557.01 ",171011,Education
5386913,Redacted,Childrens Services,Children's Services,Childrens Homes Outside Local Authority Fees,Redacted Supplier,02/07/2020," 3,742.01 ",171011,Education
5386909,Redacted,Childrens Services,Children's Services,Childrens Homes Outside Local Authority Fees,Redacted Supplier,02/07/2020," 17,492.99 ",171011,Education
5386914,Redacted,Childrens Services,Children's Services,Childrens Homes Outside Local Authority Fees,Redacted Supplier,02/07/2020," 15,278.66 ",171011,Education
5386912,Redacted,Childrens Services,Children's Services,Childrens Homes Outside Local Authority Fees,Redacted Supplier,02/07/2020," 3,542.99 ",171011,Education
5386910,Redacted,Childrens Services,Children's Services,Childrens Homes Outside Local Authority Fees,Redacted Supplier,02/07/2020," 23,250.00 ",171011,Education
5386905,TAMESIDE ARTS LTD,Adult Social Care,Adults,Professional Services,,02/07/2020," 2,933.44 ",290000,Arts & Leisure Services
5387235,AQUINAS COLLEGE,Education,Children's Services,Other Local Authorities Fees,,02/07/2020," 6,337.00 ",171011,Education
5387257,ALPHA PLUS FOSTERING LIMITED,Childrens Services,Children's Services,Foster Carer Agency Fees,,02/07/2020," 3,492.90 ",321000,Social Community Care Supplies & Services - Adult
5384544,Inspire Social Care Services LTD,Childrens Services,Children's Services,Living With Formal Support,,03/07/2020," 3,011.34 ",321100,Social Community Care Supplies & Services - Children
5384594,Inspire Social Care Services LTD,Childrens Services,Children's Services,Living With Formal Support,,03/07/2020," 3,011.34 ",321100,Social Community Care Supplies & Services - Children
5387413,With Box Limited,Childrens Services,Children's Services,Training Course Costs,,03/07/2020, 753.50 ,220000,Health & Safety
5387513,With Box Limited,Quality and Safeguarding,Quality and Safeguarding,Professional Services,,03/07/2020, 600.00 ,220000,Health & Safety
5387412,With Box Limited,Childrens Services,Children's Services,Training Course Costs,,03/07/2020," 2,588.70 ",220000,Health & Safety
5387407,With Box Limited,Childrens Services,Children's Services,Training Course Costs,,03/07/2020," 1,360.92 ",220000,Health & Safety
5387392,With Box Limited,Childrens Services,Children's Services,Training Course Costs,,03/07/2020," 1,376.27 ",220000,Health & Safety
5387439,With Box Limited,Childrens Services,Children's Services,Training Course Costs,,03/07/2020," 1,089.70 ",220000,Health & Safety
5387409,With Box Limited,Childrens Services,Children's Services,Training Course Costs,,03/07/2020," 1,410.40 ",220000,Health & Safety
5387515,West March Systems,Place,Growth,Subscriptions,,03/07/2020," 11,580.00 ",260000,Human Resources
5387516,Mazars LLP,Finance,Finance & IT,Audit Fees,,03/07/2020," 20,218.00 ",-999999,Unclassifiable
5387518,CW Advisory Services LLP,Finance,Finance & IT,Professional Consultancy Services,,03/07/2020," 1,487.50 ",-999999,Unclassifiable
5387454,Randstad HR Solution Ltd T/A Student Worker Support,Education,Children's Services,Other Local Authorities Fees,,03/07/2020," 1,360.00 ",321000,Social Community Care Supplies & Services - Adult
5387277,Bloom Procurement Services Limited,Place,Growth,Professional Consultancy Services,,03/07/2020," 9,104.62 ",150000,Consultancy
5386654,Bloom Procurement Services Limited,Tameside Investment Partnership,Director of Place,Consultancies,,03/07/2020," 11,235.00 ",150000,Consultancy
5387541,ROC Northwest Limited,Education,Children's Services,Independent School Fees,,03/07/2020," 3,267.00 ",321100,Social Community Care Supplies & Services - Children
5387371,Zeno Ltd,Childrens Services,Children's Services,Living With Formal Support,,03/07/2020," 19,113.48 ",310000,Healthcare
5387475,Foster Careline Ltd,Childrens Services,Children's Services,Foster Carer Agency Fees,,03/07/2020," 3,683.23 ",321000,Social Community Care Supplies & Services - Adult
5387478,Foster Careline Ltd,Childrens Services,Children's Services,Foster Carer Agency Fees,,03/07/2020," 3,540.00 ",321000,Social Community Care Supplies & Services - Adult
5387484,Foster Careline Ltd,Childrens Services,Children's Services,Foster Carer Agency Fees,,03/07/2020," 3,683.23 ",321000,Social Community Care Supplies & Services - Adult
5387644,Redacted,Contingency,Contingency,COVID-19 Local Authority Discretionary Grant Fund,,03/07/2020," 5,000.00 ",UNCLASS,Unclassifiable
5387579,Randstad Public Services Limited,Education,Children's Services,Agency Staff,,03/07/2020, 511.85 ,170000,Education
5386455,MATTHEWS ENVIRONMENTAL SOLUTIONS LTD,Contingency,Contingency,Building Works,,03/07/2020, 530.00 ,390000,"Works - Construction, Repair & Maintenance"
5386454,MATTHEWS ENVIRONMENTAL SOLUTIONS LTD,Operations and Neighbourhoods,Operations and Neighbourhoods,Building Works,,03/07/2020," 1,222.81 ",390000,"Works - Construction, Repair & Maintenance"
5387548,REGENDA LIMITED,Adult Social Care,Adults,Non-Authority Accommodation Rental,,03/07/2020," 15,755.15 ",250000,Housing Management
5387549,REGENDA LIMITED,Adult Social Care,Adults,Non-Authority Accommodation Rental,,03/07/2020," 2,185.76 ",250000,Housing Management
5387270,PERSON CENTRED CARE SERVICES LIMITED,Adult Social Care,Adults,Homecare Fees,,03/07/2020," 7,935.24 ",310000,Healthcare
5387526,SALFORD CITY COUNCIL,Education,Children's Services,Professional Services,,03/07/2020," 101,328.00 ",UNCLASS,Unclassifiable
5387420,BY THE BRIDGE NORTH WEST LTD,Childrens Services,Children's Services,Foster Carer Agency Fees,,03/07/2020," 4,022.25 ",908001,Public Bodies
5387417,BY THE BRIDGE NORTH WEST LTD,Childrens Services,Children's Services,Foster Carer Agency Fees,,03/07/2020," 3,270.50 ",908001,Public Bodies
5387437,BY THE BRIDGE NORTH WEST LTD,Childrens Services,Children's Services,Foster Carer Agency Fees,,03/07/2020," 4,394.25 ",908001,Public Bodies
5387396,BY THE BRIDGE NORTH WEST LTD,Childrens Services,Children's Services,Foster Carer Agency Fees,,03/07/2020," 4,395.40 ",908001,Public Bodies
5387432,BY THE BRIDGE NORTH WEST LTD,Childrens Services,Children's Services,Foster Carer Agency Fees,,03/07/2020," 4,094.66 ",908001,Public Bodies
5384413,BY THE BRIDGE NORTH WEST LTD,Childrens Services,Children's Services,Foster Carer Agency Fees,,03/07/2020," 4,442.06 ",908001,Public Bodies
5387422,BY THE BRIDGE NORTH WEST LTD,Childrens Services,Children's Services,Foster Carer Agency Fees,,03/07/2020," 4,064.68 ",908001,Public Bodies
5387436,BY THE BRIDGE NORTH WEST LTD,Childrens Services,Children's Services,Foster Carer Agency Fees,,03/07/2020," 4,185.00 ",908001,Public Bodies
5387431,BY THE BRIDGE NORTH WEST LTD,Childrens Services,Children's Services,Foster Carer Agency Fees,,03/07/2020," 3,888.91 ",908001,Public Bodies
5387418,BY THE BRIDGE NORTH WEST LTD,Childrens Services,Children's Services,Foster Carer Agency Fees,,03/07/2020," 3,270.50 ",908001,Public Bodies
5387383,THREE CIRCLES FOSTERING LTD,Childrens Services,Children's Services,Foster Carer Agency Fees,,03/07/2020," 3,578.57 ",321100,Social Community Care Supplies & Services - Children
5387415,THREE CIRCLES FOSTERING LTD,Childrens Services,Children's Services,Foster Carer Agency Fees,,03/07/2020," 3,459.29 ",321100,Social Community Care Supplies & Services - Children
5387370,THREE CIRCLES FOSTERING LTD,Childrens Services,Children's Services,Foster Carer Agency Fees,,03/07/2020," 1,757.14 ",321100,Social Community Care Supplies & Services - Children
5387384,THREE CIRCLES FOSTERING LTD,Childrens Services,Children's Services,Foster Carer Agency Fees,,03/07/2020," 3,750.00 ",321100,Social Community Care Supplies & Services - Children
5387338,THREE CIRCLES FOSTERING LTD,Childrens Services,Children's Services,Foster Carer Agency Fees,,03/07/2020," 5,130.00 ",321100,Social Community Care Supplies & Services - Children
5387377,THREE CIRCLES FOSTERING LTD,Childrens Services,Children's Services,Foster Carer Agency Fees,,03/07/2020," 3,267.60 ",321100,Social Community Care Supplies & Services - Children
5387353,THREE CIRCLES FOSTERING LTD,Childrens Services,Children's Services,Foster Carer Agency Fees,,03/07/2020," 3,420.00 ",321100,Social Community Care Supplies & Services - Children
5387352,THREE CIRCLES FOSTERING LTD,Childrens Services,Children's Services,Foster Carer Agency Fees,,03/07/2020," 3,420.00 ",321100,Social Community Care Supplies & Services - Children
5387373,THREE CIRCLES FOSTERING LTD,Childrens Services,Children's Services,Foster Carer Agency Fees,,03/07/2020," 3,420.00 ",321100,Social Community Care Supplies & Services - Children
5387410,THREE CIRCLES FOSTERING LTD,Childrens Services,Children's Services,Foster Carer Agency Fees,,03/07/2020," 2,236.57 ",321100,Social Community Care Supplies & Services - Children
5387391,THREE CIRCLES FOSTERING LTD,Childrens Services,Children's Services,Foster Carer Agency Fees,,03/07/2020," 3,969.00 ",321100,Social Community Care Supplies & Services - Children
5387404,THREE CIRCLES FOSTERING LTD,Childrens Services,Children's Services,Foster Carer Agency Fees,,03/07/2020," 3,864.86 ",321100,Social Community Care Supplies & Services - Children
5387379,THREE CIRCLES FOSTERING LTD,Childrens Services,Children's Services,Foster Carer Agency Fees,,03/07/2020," 2,692.07 ",321100,Social Community Care Supplies & Services - Children
5387339,THREE CIRCLES FOSTERING LTD,Childrens Services,Children's Services,Foster Carer Agency Fees,,03/07/2020," 5,367.86 ",321100,Social Community Care Supplies & Services - Children
5386880,CARE 4 CHILDREN RESIDENTIAL SERVICES LTD,Childrens Services,Children's Services,Foster Carer Agency Fees,,03/07/2020," 2,400.02 ",321100,Social Community Care Supplies & Services - Children
5387351,Redacted,Childrens Services,Children's Services,Childrens Homes Outside Local Authority Fees,Redacted Supplier,03/07/2020," 13,041.70 ",329999,Social Community Care Supplies & Services
5387350,Redacted,Childrens Services,Children's Services,Childrens Homes Outside Local Authority Fees,Redacted Supplier,03/07/2020," 13,041.70 ",329999,Social Community Care Supplies & Services
5387472,AGRICULTURAL AND RURAL CENTRE CIC,Education,Children's Services,Other Local Authorities Fees,,03/07/2020, 960.00 ,170000,Education
5387406,HIGH PEAK SCHOOL LIMITED,Education,Children's Services,Independent School Fees,,03/07/2020," 18,333.00 ",170000,Education
5387479,HIGH PEAK SCHOOL LIMITED,Education,Children's Services,Independent School Fees,,03/07/2020," 2,772.00 ",170000,Education
5387477,HIGH PEAK SCHOOL LIMITED,Education,Children's Services,Independent School Fees,,03/07/2020," 9,912.28 ",170000,Education
5387482,HIGH PEAK SCHOOL LIMITED,Education,Children's Services,Independent School Fees,,03/07/2020," 18,833.33 ",170000,Education
5387011,GRANART LIMITED,Operations and Neighbourhoods,Operations and Neighbourhoods,Plaques,,03/07/2020, 786.50 ,120000,Cemetery & Crematorium
5387326,INSPIREDSPACES TAMESIDE LTD,Place,Growth,Fees,,03/07/2020," 2,560.76 ",390000,"Works - Construction, Repair & Maintenance"
5387326,INSPIREDSPACES TAMESIDE LTD,Place,Growth,Facilities Management Services,,03/07/2020," 320,094.71 ",390000,"Works - Construction, Repair & Maintenance"
5387327,INSPIREDSPACES TAMESIDE LTD,Place,Growth,Facilities Management Services,,03/07/2020," 22,518.03 ",390000,"Works - Construction, Repair & Maintenance"
5380656,MEDACS HEALTHCARE,Adult Social Care,Adults,Homecare Fees,,03/07/2020," 24,875.97 ",150000,Consultancy
5387337,CARELINE HOMECARE LTD,Adult Social Care,Adults,Homecare Fees,,03/07/2020," 23,238.00 ",321000,Social Community Care Supplies & Services - Adult
5384330,INSPIRE COMMUNITY SERVICES LIMITED,Childrens Services,Children's Services,Living With Formal Support,,03/07/2020," 7,454.16 ",170000,Education
5387447,INSPIRE COMMUNITY SERVICES LIMITED,Childrens Services,Children's Services,Living With Formal Support,,03/07/2020," 2,522.70 ",170000,Education
5384332,INSPIRE COMMUNITY SERVICES LIMITED,Childrens Services,Children's Services,Living With Formal Support,,03/07/2020," 4,216.31 ",170000,Education
5384337,INSPIRE COMMUNITY SERVICES LIMITED,Childrens Services,Children's Services,Living With Formal Support,,03/07/2020," 2,606.79 ",170000,Education
5384336,INSPIRE COMMUNITY SERVICES LIMITED,Childrens Services,Children's Services,Living With Formal Support,,03/07/2020," 4,216.31 ",170000,Education
5387492,STEPPING STONES CHILDRENS HOMES LTD,Childrens Services,Children's Services,Childrens Homes Outside Local Authority Fees,,03/07/2020," 28,000.00 ",321100,Social Community Care Supplies & Services - Children
5387487,STEPPING STONES CHILDRENS HOMES LTD,Childrens Services,Children's Services,Childrens Homes Outside Local Authority Fees,,03/07/2020," 27,440.00 ",321100,Social Community Care Supplies & Services - Children
5387496,STEPPING STONES CHILDRENS HOMES LTD,Childrens Services,Children's Services,Childrens Homes Outside Local Authority Fees,,03/07/2020," 20,000.00 ",321100,Social Community Care Supplies & Services - Children
5387489,STEPPING STONES CHILDRENS HOMES LTD,Childrens Services,Children's Services,Childrens Homes Outside Local Authority Fees,,03/07/2020," 32,000.00 ",321100,Social Community Care Supplies & Services - Children
5387483,STEPPING STONES CHILDRENS HOMES LTD,Childrens Services,Children's Services,Childrens Homes Outside Local Authority Fees,,03/07/2020," 13,720.00 ",321100,Social Community Care Supplies & Services - Children
5387480,STEPPING STONES CHILDRENS HOMES LTD,Childrens Services,Children's Services,Childrens Homes Outside Local Authority Fees,,03/07/2020," 15,680.00 ",321100,Social Community Care Supplies & Services - Children
5387495,STEPPING STONES CHILDRENS HOMES LTD,Childrens Services,Children's Services,Childrens Homes Outside Local Authority Fees,,03/07/2020," 13,200.00 ",321100,Social Community Care Supplies & Services - Children
5386986,Change Grow Live,Operations and Neighbourhoods,Operations and Neighbourhoods,Professional Services,,03/07/2020, 617.50 ,321000,Social Community Care Supplies & Services - Adult
5386982,Change Grow Live,Operations and Neighbourhoods,Operations and Neighbourhoods,Professional Services,,03/07/2020, 617.50 ,321000,Social Community Care Supplies & Services - Adult
5387098,Hyde Accessible Transport Limited,Operations and Neighbourhoods,Operations and Neighbourhoods,Hired Transport,,03/07/2020, 630.00 ,360000,Public Transport
5387091,Hyde Accessible Transport Limited,Education,Children's Services,Transport Of Pupils,,03/07/2020," 1,487.50 ",360000,Public Transport
5387059,Hyde Accessible Transport Limited,Education,Children's Services,Transport Of Post 16 Pupils,,03/07/2020," 1,500.00 ",360000,Public Transport
5387101,Hyde Accessible Transport Limited,Operations and Neighbourhoods,Operations and Neighbourhoods,Hired Transport,,03/07/2020," 1,752.50 ",360000,Public Transport
5387087,Hyde Accessible Transport Limited,Education,Children's Services,Transport Of Pupils,,03/07/2020," 1,912.50 ",360000,Public Transport
5387069,Hyde Accessible Transport Limited,Education,Children's Services,Transport Of Ola Pupils,,03/07/2020," 1,980.00 ",360000,Public Transport
5387052,Hyde Accessible Transport Limited,Education,Children's Services,Transport Of Ola Pupils,,03/07/2020," 2,585.00 ",360000,Public Transport
5387093,Hyde Accessible Transport Limited,Education,Children's Services,Transport Of Ola Pupils,,03/07/2020," 2,970.00 ",360000,Public Transport
5387085,Hyde Accessible Transport Limited,Operations and Neighbourhoods,Operations and Neighbourhoods,Hired Transport,,03/07/2020," 2,397.00 ",360000,Public Transport
5387058,Hyde Accessible Transport Limited,Education,Children's Services,Transport Of Ola Pupils,,03/07/2020," 2,397.00 ",360000,Public Transport
5387078,Hyde Accessible Transport Limited,Education,Children's Services,Transport Of Pupils,,03/07/2020," 1,912.50 ",360000,Public Transport
5387084,Hyde Accessible Transport Limited,Education,Children's Services,Transport Of Pupils,,03/07/2020," 1,912.50 ",360000,Public Transport
5387055,Hyde Accessible Transport Limited,Education,Children's Services,Transport Of Pupils,,03/07/2020," 1,650.00 ",360000,Public Transport
5387071,Hyde Accessible Transport Limited,Education,Children's Services,Transport Of Ola Pupils,,03/07/2020," 1,572.50 ",360000,Public Transport
5387043,Hyde Accessible Transport Limited,Education,Children's Services,Transport Of Pupils,,03/07/2020," 2,750.00 ",360000,Public Transport
5387068,Hyde Accessible Transport Limited,Education,Children's Services,Transport Of Ola Pupils,,03/07/2020," 3,102.00 ",360000,Public Transport
5387072,Hyde Accessible Transport Limited,Education,Children's Services,Transport Of Pupils,,03/07/2020," 2,750.00 ",360000,Public Transport
5387039,Hyde Accessible Transport Limited,Education,Children's Services,Transport Of Post 16 Pupils,,03/07/2020," 1,320.00 ",360000,Public Transport
5387083,Hyde Accessible Transport Limited,Education,Children's Services,Transport Of Pupils,,03/07/2020," 2,750.00 ",360000,Public Transport
5387056,Hyde Accessible Transport Limited,Education,Children's Services,Hired Transport,,03/07/2020," 2,750.00 ",360000,Public Transport
5387045,Hyde Accessible Transport Limited,Education,Children's Services,Transport Of Pupils,,03/07/2020," 1,650.00 ",360000,Public Transport
5387049,Hyde Accessible Transport Limited,Education,Children's Services,Transport Of Post 16 Pupils,,03/07/2020," 1,980.00 ",360000,Public Transport
5387097,Hyde Accessible Transport Limited,Education,Children's Services,Transport Of Pupils,,03/07/2020," 2,550.00 ",360000,Public Transport
5387075,Hyde Accessible Transport Limited,Education,Children's Services,Transport Of Pupils,,03/07/2020," 1,700.00 ",360000,Public Transport
5387076,Hyde Accessible Transport Limited,Education,Children's Services,Transport Of Pupils,,03/07/2020," 1,190.00 ",360000,Public Transport
5387103,Hyde Accessible Transport Limited,Operations and Neighbourhoods,Operations and Neighbourhoods,Hired Transport,,03/07/2020," 1,027.50 ",360000,Public Transport
5387047,Hyde Accessible Transport Limited,Education,Children's Services,Transport Of Pupils,,03/07/2020," 1,530.00 ",360000,Public Transport
5387051,Hyde Accessible Transport Limited,Education,Children's Services,Transport Of Post 16 Pupils,,03/07/2020," 1,530.00 ",360000,Public Transport
5387106,Hyde Accessible Transport Limited,Operations and Neighbourhoods,Operations and Neighbourhoods,Hired Transport,,03/07/2020," 2,200.00 ",360000,Public Transport
5387100,Hyde Accessible Transport Limited,Operations and Neighbourhoods,Operations and Neighbourhoods,Hired Transport,,03/07/2020," 2,201.50 ",360000,Public Transport
5387067,Hyde Accessible Transport Limited,Operations and Neighbourhoods,Operations and Neighbourhoods,Hired Transport,,03/07/2020," 1,180.00 ",360000,Public Transport
5387044,Hyde Accessible Transport Limited,Education,Children's Services,Transport Of Post 16 Pupils,,03/07/2020," 1,425.00 ",360000,Public Transport
5387061,Hyde Accessible Transport Limited,Operations and Neighbourhoods,Operations and Neighbourhoods,Hired Transport,,03/07/2020," 1,155.00 ",360000,Public Transport
5387096,Hyde Accessible Transport Limited,Education,Children's Services,Transport Of Post 16 Pupils,,03/07/2020," 1,710.00 ",360000,Public Transport
5387074,Hyde Accessible Transport Limited,Education,Children's Services,Transport Of Ola Pupils,,03/07/2020," 2,849.00 ",360000,Public Transport
5387057,Hyde Accessible Transport Limited,Education,Children's Services,Transport Of Pupils,,03/07/2020, 892.50 ,360000,Public Transport
5387088,Hyde Accessible Transport Limited,Operations and Neighbourhoods,Operations and Neighbourhoods,Hired Transport,,03/07/2020," 1,870.00 ",360000,Public Transport
5387079,Hyde Accessible Transport Limited,Education,Children's Services,Transport Of Pupils,,03/07/2020," 1,912.50 ",360000,Public Transport
5387089,Hyde Accessible Transport Limited,Education,Children's Services,Transport Of Pupils,,03/07/2020," 1,912.50 ",360000,Public Transport
5387094,Hyde Accessible Transport Limited,Education,Children's Services,Transport Of Pupils,,03/07/2020," 1,912.50 ",360000,Public Transport
5387041,Hyde Accessible Transport Limited,Education,Children's Services,Transport Of Pupils,,03/07/2020," 2,125.00 ",360000,Public Transport
5387077,Hyde Accessible Transport Limited,Education,Children's Services,Transport Of Post 16 Pupils,,03/07/2020," 2,137.50 ",360000,Public Transport
5387090,Hyde Accessible Transport Limited,Education,Children's Services,Transport Of Post 16 Pupils,,03/07/2020," 2,137.50 ",360000,Public Transport
5387099,Hyde Accessible Transport Limited,Operations and Neighbourhoods,Operations and Neighbourhoods,Hired Transport,,03/07/2020, 892.50 ,360000,Public Transport
5387048,Hyde Accessible Transport Limited,Education,Children's Services,Transport Of Pupils,,03/07/2020, 892.50 ,360000,Public Transport
5387065,Hyde Accessible Transport Limited,Operations and Neighbourhoods,Operations and Neighbourhoods,Hired Transport,,03/07/2020," 1,040.00 ",360000,Public Transport
5387080,Hyde Accessible Transport Limited,Education,Children's Services,Transport Of Ola Pupils,,03/07/2020," 2,585.00 ",360000,Public Transport
5387040,Hyde Accessible Transport Limited,Education,Children's Services,Transport Of Pupils,,03/07/2020," 1,530.00 ",360000,Public Transport
5387082,Hyde Accessible Transport Limited,Education,Children's Services,Transport Of Pupils,,03/07/2020," 1,530.00 ",360000,Public Transport
5387046,Hyde Accessible Transport Limited,Education,Children's Services,Transport Of Pupils,,03/07/2020," 1,530.00 ",360000,Public Transport
5387102,Hyde Accessible Transport Limited,Operations and Neighbourhoods,Operations and Neighbourhoods,Hired Transport,,03/07/2020," 1,980.00 ",360000,Public Transport
5387053,Hyde Accessible Transport Limited,Education,Children's Services,Transport Of Pupils,,03/07/2020," 1,980.00 ",360000,Public Transport
5387092,Hyde Accessible Transport Limited,Education,Children's Services,Transport Of Pupils,,03/07/2020," 2,125.00 ",360000,Public Transport
5384476,FOSTER CARE ASSOCIATES LTD (FCA),Childrens Services,Children's Services,Foster Carer Agency Fees,,03/07/2020," 3,299.33 ",321000,Social Community Care Supplies & Services - Adult
5384474,FOSTER CARE ASSOCIATES LTD (FCA),Childrens Services,Children's Services,Foster Carer Agency Fees,,03/07/2020," 4,411.30 ",321000,Social Community Care Supplies & Services - Adult
5384513,FOSTER CARE ASSOCIATES LTD (FCA),Childrens Services,Children's Services,Foster Carer Agency Fees,,03/07/2020," 3,412.94 ",321000,Social Community Care Supplies & Services - Adult
5384517,FOSTER CARE ASSOCIATES LTD (FCA),Childrens Services,Children's Services,Foster Carer Agency Fees,,03/07/2020," 4,411.30 ",321000,Social Community Care Supplies & Services - Adult
5384520,FOSTER CARE ASSOCIATES LTD (FCA),Childrens Services,Children's Services,Foster Carer Agency Fees,,03/07/2020," 3,299.33 ",321000,Social Community Care Supplies & Services - Adult
5384521,FOSTER CARE ASSOCIATES LTD (FCA),Childrens Services,Children's Services,Foster Carer Agency Fees,,03/07/2020," 4,029.69 ",321000,Social Community Care Supplies & Services - Adult
5384507,FOSTER CARE ASSOCIATES LTD (FCA),Childrens Services,Children's Services,Foster Carer Agency Fees,,03/07/2020," 4,029.69 ",321000,Social Community Care Supplies & Services - Adult
5384519,FOSTER CARE ASSOCIATES LTD (FCA),Childrens Services,Children's Services,Foster Carer Agency Fees,,03/07/2020," 3,412.94 ",321000,Social Community Care Supplies & Services - Adult
5384509,FOSTER CARE ASSOCIATES LTD (FCA),Childrens Services,Children's Services,Foster Carer Agency Fees,,03/07/2020," 3,237.02 ",321000,Social Community Care Supplies & Services - Adult
5384480,FOSTER CARE ASSOCIATES LTD (FCA),Childrens Services,Children's Services,Foster Carer Agency Fees,,03/07/2020," 3,565.93 ",321000,Social Community Care Supplies & Services - Adult
5384498,FOSTER CARE ASSOCIATES LTD (FCA),Childrens Services,Children's Services,Foster Carer Agency Fees,,03/07/2020," 3,412.94 ",321000,Social Community Care Supplies & Services - Adult
5384501,FOSTER CARE ASSOCIATES LTD (FCA),Childrens Services,Children's Services,Foster Carer Agency Fees,,03/07/2020," 6,172.72 ",321000,Social Community Care Supplies & Services - Adult
5384506,FOSTER CARE ASSOCIATES LTD (FCA),Childrens Services,Children's Services,Foster Carer Agency Fees,,03/07/2020," 3,033.35 ",321000,Social Community Care Supplies & Services - Adult
5387334,DIRECT CARE (TAMESIDE) LTD,Adult Social Care,Adults,Homecare Fees,,03/07/2020," 169,452.38 ",321000,Social Community Care Supplies & Services - Adult
5387552,PROGRESS CARE HOUSING ASSOCIATION LIMITED,Adult Social Care,Adults,Non-Authority Accommodation Rental,,03/07/2020," 5,661.49 ",250000,Housing Management
5387625,PARALLEL PARENTS,Childrens Services,Children's Services,Foster Carer Agency Fees,,03/07/2020," 3,228.90 ",321100,Social Community Care Supplies & Services - Children
5387355,TAMESIDE SPORTS TRUST,Education,Children's Services,Independent School Fees,,03/07/2020," 16,916.67 ",290000,Arts & Leisure Services
5387561,TAMESIDE SPORTS TRUST,Adult Social Care,Adults,Professional Services,,03/07/2020," 205,670.40 ",290000,Arts & Leisure Services
5387343,TAMESIDE SPORTS TRUST,Education,Children's Services,Post 16 FE College Fees,,03/07/2020," 61,414.50 ",290000,Arts & Leisure Services
5387344,TAMESIDE SPORTS TRUST,Education,Children's Services,Independent School Fees,,03/07/2020," 61,650.82 ",290000,Arts & Leisure Services
5387345,TAMESIDE SPORTS TRUST,Education,Children's Services,Independent School Fees,,03/07/2020," 72,852.23 ",290000,Arts & Leisure Services
5387553,TAMESIDE SPORTS TRUST,Childrens Services,Children's Services,"Activity (Materials, Trips)",,03/07/2020," 3,120.00 ",290000,Arts & Leisure Services
5385333,TAMESIDE SPORTS TRUST,Adult Social Care,Adults,Food & Refreshments,,03/07/2020," 3,388.00 ",290000,Arts & Leisure Services
5387354,SWIIS FOSTER CARE LTD,Childrens Services,Children's Services,Foster Carer Agency Fees,,03/07/2020, 899.99 ,321100,Social Community Care Supplies & Services - Children
5387358,SWIIS FOSTER CARE LTD,Childrens Services,Children's Services,Foster Carer Agency Fees,,03/07/2020, 703.92 ,321100,Social Community Care Supplies & Services - Children
5387356,SWIIS FOSTER CARE LTD,Childrens Services,Children's Services,Foster Carer Agency Fees,,03/07/2020, 658.84 ,321100,Social Community Care Supplies & Services - Children
5387361,SWIIS FOSTER CARE LTD,Childrens Services,Children's Services,Foster Carer Agency Fees,,03/07/2020, 760.48 ,321100,Social Community Care Supplies & Services - Children
5387357,SWIIS FOSTER CARE LTD,Childrens Services,Children's Services,Foster Carer Agency Fees,,03/07/2020, 693.49 ,321100,Social Community Care Supplies & Services - Children
5386891,JACKSON & TAYLOR LTD,Housing,Director of Place,Mandatory Adaptations Grant (DFG),,03/07/2020," 4,385.00 ",390000,"Works - Construction, Repair & Maintenance"
5386918,MANLEC ELECTRICAL(MANCHESTER) LTD,Housing,Director of Place,Specialist Works,,03/07/2020, 760.00 ,390000,"Works - Construction, Repair & Maintenance"
5386920,MANLEC ELECTRICAL(MANCHESTER) LTD,Housing,Director of Place,Specialist Works,,03/07/2020, 975.00 ,390000,"Works - Construction, Repair & Maintenance"
5386917,MANLEC ELECTRICAL(MANCHESTER) LTD,Housing,Director of Place,Specialist Works,,03/07/2020, 760.00 ,390000,"Works - Construction, Repair & Maintenance"
5387241,BARNARDO'S,Childrens Services,Children's Services,Foster Carer Agency Fees,,03/07/2020," 3,444.00 ",-999999,Unclassifiable
5386580,BEDSPACE RESOURCE LTD,Childrens Services,Children's Services,Living With Formal Support,,03/07/2020, 975.00 ,250000,Housing Management
5387511,TAMESIDE CITIZENS ADVICE BUREAU LTD,Operations and Neighbourhoods,Operations and Neighbourhoods,Grants to Citizens' Advice Bureau,,03/07/2020," 9,666.67 ",908001,Public Bodies
5386897,Redacted,Childrens Services,Children's Services,Childrens Homes Outside Local Authority Fees,Redacted Supplier,03/07/2020," 15,278.66 ",171011,Education
5386911,Redacted,Childrens Services,Children's Services,Childrens Homes Outside Local Authority Fees,Redacted Supplier,03/07/2020," 15,278.66 ",171011,Education
5387464,Redacted,Childrens Services,Children's Services,Childrens Homes Outside Local Authority Fees,Redacted Supplier,03/07/2020," 6,900.04 ",171011,Education
5387517,Redacted,Childrens Services,Children's Services,Childrens Homes Outside Local Authority Fees,Redacted Supplier,03/07/2020," 6,900.04 ",171011,Education
5386908,Redacted,Childrens Services,Children's Services,Childrens Homes Outside Local Authority Fees,Redacted Supplier,03/07/2020," 17,692.01 ",171011,Education
5387455,JUST TEACHERS,Education,Children's Services,Independent School Fees,,03/07/2020, 603.25 ,261415,Human Resources
5387450,JUST TEACHERS,Education,Children's Services,Independent School Fees,,03/07/2020, 603.25 ,261415,Human Resources
5387452,JUST TEACHERS,Education,Children's Services,Independent School Fees,,03/07/2020, 603.25 ,261415,Human Resources
5387446,JUST TEACHERS,Education,Children's Services,Independent School Fees,,03/07/2020, 603.25 ,261415,Human Resources
5386892,K P DODD CONSTRUCTION LTD,Housing,Director of Place,Mandatory Adaptations Grant (DFG),,03/07/2020," 4,203.00 ",399999,"Works - Construction, Repair & Maintenance"
5387022,ADT FIRE & SECURITY,Operations and Neighbourhoods,Operations and Neighbourhoods,Miscellaneous Expenses,,03/07/2020," 1,247.40 ",190000,Facilities & Management Services
5387559,Redacted,Childrens Services,Children's Services,Childrens Homes Outside Local Authority Fees,Redacted Supplier,03/07/2020," 11,078.57 ",321100,Social Community Care Supplies & Services - Children
470865,AGGREGATE INDUSTRIES UK LIMITED,Operations and Neighbourhoods,Operations and Neighbourhoods,General Materials,,06/07/2020," 5,542.08 ",230000,Highway Equipment & Materials
470865,ARCO LIMITED,Operations and Neighbourhoods,Operations and Neighbourhoods,General Materials,,06/07/2020, 936.62 ,140000,Clothing
470865,EAGLE CIVIL ENGINEERING LTD,Operations and Neighbourhoods,Operations and Neighbourhoods,Sub-contractor Services,,06/07/2020," 19,402.56 ",391411,"Works - Construction, Repair & Maintenance"
470865,ELECTRICITY NORTH WEST LTD,Operations and Neighbourhoods,Operations and Neighbourhoods,Sub-contractor Services,,06/07/2020," 1,252.71 ",370000,Utilities
470865,FAIRWAY LANDSCAPES LTD,Operations and Neighbourhoods,Operations and Neighbourhoods,Sub-contractor Services,,06/07/2020," 2,908.00 ",390000,"Works - Construction, Repair & Maintenance"
470865,KEN TAYLOR SUPPLIES LTD,Operations and Neighbourhoods,Operations and Neighbourhoods,General Materials,,06/07/2020, 575.75 ,-999999,Unclassifiable
470865,KENNY BROTHERS,Operations and Neighbourhoods,Operations and Neighbourhoods,Sub-contractor Services,,06/07/2020," 5,800.00 ",391411,"Works - Construction, Repair & Maintenance"
470865,P F CUSACK LTD,Civil Engineers,Director of Place,Debits Goods Received,,06/07/2020," 2,982.82 ",240000,Horticultural
470865,TARMAC CENTRAL LIMITED,Civil Engineers,Director of Place,Debits Goods Received,,06/07/2020, 599.02 ,230000,Highway Equipment & Materials
470865,TARMAC CENTRAL LIMITED,Operations and Neighbourhoods,Operations and Neighbourhoods,General Materials,,06/07/2020," 4,184.55 ",230000,Highway Equipment & Materials
470865,WOLSELEY UK LTD,Operations and Neighbourhoods,Operations and Neighbourhoods,General Materials,,06/07/2020," 2,530.80 ",230000,Highway Equipment & Materials
470865,JONES LIGHTING LTD,Operations and Neighbourhoods,Operations and Neighbourhoods,Sub-contractor Services,,06/07/2020," 4,702.85 ",359999,Street & Traffic Management
470865,4WAY CONSULTING LTD,(blank),(blank),General Materials,,06/07/2020, 928.01 ,180000,Environmental Services
470865,1st Choice Grab Hire LTD,Operations and Neighbourhoods,Operations and Neighbourhoods,Sub-contractor Services,,06/07/2020, 600.00 ,230000,Highway Equipment & Materials
470865,HSS HIRE SERVICE GROUP  PLC,Operations and Neighbourhoods,Operations and Neighbourhoods,General Materials,,06/07/2020, 861.30 ,380000,Vehicle Management
470865,RONDAR SIGNS LTD,(blank),(blank),General Materials,,06/07/2020, 606.40 ,190000,Facilities & Management Services
470865,NORTHWEST UTILITY SOLUTIONS LTD,Operations and Neighbourhoods,Operations and Neighbourhoods,Sub-contractor Services,,06/07/2020," 3,344.36 ",370000,Utilities
470865,TRAFFIC DIRECT LTD,Operations and Neighbourhoods,Operations and Neighbourhoods,Sub-contractor Services,,06/07/2020," 3,126.00 ",350000,Street & Traffic Management
470865,GROUNDFORCE SHORCO,Operations and Neighbourhoods,Operations and Neighbourhoods,General Materials,,06/07/2020," 1,153.61 ",380000,Vehicle Management
470865,North West Training Academy Ltd,Operations and Neighbourhoods,Operations and Neighbourhoods,Training Course Costs,,06/07/2020," 1,500.00 ",261500,Human Resources
470865,GARIC LTD,Operations and Neighbourhoods,Operations and Neighbourhoods,General Materials,,06/07/2020," 2,511.60 ",-999999,Unclassifiable
470865,CARRIER RENTAL SYSTEMS (UK) LIMITED,Operations and Neighbourhoods,Operations and Neighbourhoods,General Materials,,06/07/2020," 1,886.26 ",390000,"Works - Construction, Repair & Maintenance"
5387243,Inspire Social Care Services LTD,Childrens Services,Children's Services,Living With Formal Support,,06/07/2020," 2,914.20 ",321100,Social Community Care Supplies & Services - Children
5387245,Inspire Social Care Services LTD,Childrens Services,Children's Services,Living With Formal Support,,06/07/2020," 2,914.20 ",321100,Social Community Care Supplies & Services - Children
5387592,Shield Support Hub Limited,Childrens Services,Children's Services,Living With Formal Support,,06/07/2020," 5,535.71 ",321000,Social Community Care Supplies & Services - Adult
5387822,Capita Resourcing Ltd trading as Veredus,Childrens Services,Children's Services,Agency Staff,,06/07/2020," 5,480.00 ",-999999,Unclassifiable
5387812,ISW CSC Limited,Childrens Services,Children's Services,Living With Formal Support,,06/07/2020, 890.00 ,260000,Human Resources
5387734,A1 Foster Care,Childrens Services,Children's Services,Foster Carer Agency Fees,,06/07/2020," 7,114.29 ",321100,Social Community Care Supplies & Services - Children
5387824,Armstrongs Office Furniture,Operations and Neighbourhoods,Operations and Neighbourhoods,"Fixtures, Fittings & Furniture Purchase",,06/07/2020, 516.00 ,210000,Furniture & Soft Furnishings
5387825,ANEW APPROACH COMMUNITY INTEREST COMPANY,Operations and Neighbourhoods,Operations and Neighbourhoods,Other Accommodation Related Costs,,06/07/2020," 49,406.37 ",260000,Human Resources
5387538,Bloom Procurement Services Limited,Corporate Costs,Corporate Costs,Professional Consultancy Services,,06/07/2020," 36,000.00 ",150000,Consultancy
5387594,Furniture Resource Centre Ltd,Operations and Neighbourhoods,Operations and Neighbourhoods,"Fixtures, Fittings & Furniture Purchase",,06/07/2020, 562.19 ,UNCLASS,Unclassifiable
5387614,Furniture Resource Centre Ltd,Operations and Neighbourhoods,Operations and Neighbourhoods,"Fixtures, Fittings & Furniture Purchase",,06/07/2020," 1,202.52 ",UNCLASS,Unclassifiable
5387613,Furniture Resource Centre Ltd,Operations and Neighbourhoods,Operations and Neighbourhoods,"Fixtures, Fittings & Furniture Purchase",,06/07/2020, 506.02 ,UNCLASS,Unclassifiable
5387601,Furniture Resource Centre Ltd,Operations and Neighbourhoods,Operations and Neighbourhoods,"Fixtures, Fittings & Furniture Purchase",,06/07/2020, 869.26 ,UNCLASS,Unclassifiable
5387597,Furniture Resource Centre Ltd,Operations and Neighbourhoods,Operations and Neighbourhoods,"Fixtures, Fittings & Furniture Purchase",,06/07/2020, 984.64 ,UNCLASS,Unclassifiable
5387616,Furniture Resource Centre Ltd,Operations and Neighbourhoods,Operations and Neighbourhoods,"Fixtures, Fittings & Furniture Purchase",,06/07/2020," 1,098.93 ",UNCLASS,Unclassifiable
5387612,Furniture Resource Centre Ltd,Operations and Neighbourhoods,Operations and Neighbourhoods,"Fixtures, Fittings & Furniture Purchase",,06/07/2020," 1,123.00 ",UNCLASS,Unclassifiable
5387593,Furniture Resource Centre Ltd,Operations and Neighbourhoods,Operations and Neighbourhoods,"Fixtures, Fittings & Furniture Purchase",,06/07/2020," 1,230.68 ",UNCLASS,Unclassifiable
5387590,Furniture Resource Centre Ltd,Operations and Neighbourhoods,Operations and Neighbourhoods,"Fixtures, Fittings & Furniture Purchase",,06/07/2020, 735.88 ,UNCLASS,Unclassifiable
5387606,Furniture Resource Centre Ltd,Operations and Neighbourhoods,Operations and Neighbourhoods,"Fixtures, Fittings & Furniture Purchase",,06/07/2020, 849.00 ,UNCLASS,Unclassifiable
5387619,Furniture Resource Centre Ltd,Operations and Neighbourhoods,Operations and Neighbourhoods,"Fixtures, Fittings & Furniture Purchase",,06/07/2020, 857.10 ,UNCLASS,Unclassifiable
5387589,Furniture Resource Centre Ltd,Operations and Neighbourhoods,Operations and Neighbourhoods,"Fixtures, Fittings & Furniture Purchase",,06/07/2020, 825.03 ,UNCLASS,Unclassifiable
5387279,KL2 (Kappa Lambda Squared Limited),Operations and Neighbourhoods,Operations and Neighbourhoods,Computer Hardware Maintenance Costs,,06/07/2020," 9,500.00 ",190000,Facilities & Management Services
5387733,G2V Recruitment Group Limited t/a Vivid Resourcing,Place,Growth,Agency Staff,,06/07/2020," 2,500.00 ",280000,Legal Services
5387732,G2V Recruitment Group Limited t/a Vivid Resourcing,Place,Growth,Agency Staff,,06/07/2020," 2,500.00 ",280000,Legal Services
5387542,Prepaid Financial Services,Adult Social Care,Adults,Professional Consultancy Services,,06/07/2020, 983.51 ,201000,Financial Services
5387765,Carrington West Ltd,Place,Growth,Agency Staff,,06/07/2020, 947.70 ,-999999,Unclassifiable
5387543,OFSTED,Childrens Services,Children's Services,Inspection Fees,,06/07/2020," 2,578.00 ",200000,Financial Services
5387216,N A Brown Ltd,Operations and Neighbourhoods,Operations and Neighbourhoods,General Materials,,06/07/2020," 1,842.50 ",-999999,Unclassifiable
29000096,WELL PHARMACY,Population Health,Population Health,Local Enhanced Services,,06/07/2020, 681.83 ,310000,Healthcare
29000096,ASDA PHARMACY,Population Health,Population Health,Local Enhanced Services,,06/07/2020," 3,411.19 ",150000,Consultancy
29000096,S F WAIN & SONS LTD,Population Health,Population Health,Local Enhanced Services,,06/07/2020," 1,530.04 ",150000,Consultancy
29000096,TESCO INSTORE PHARMACY,Population Health,Population Health,Local Enhanced Services,,06/07/2020, 654.48 ,150000,Consultancy
29000096,COHENS CHEMIST,Population Health,Population Health,Local Enhanced Services,,06/07/2020, 987.53 ,150000,Consultancy
5387440,AMARA CARE LTD,Adult Social Care,Adults,Homecare Fees,,06/07/2020," 6,913.50 ",321000,Social Community Care Supplies & Services - Adult
5387435,AMARA CARE LTD,Adult Social Care,Adults,Homecare Fees,,06/07/2020," 9,871.80 ",321000,Social Community Care Supplies & Services - Adult
5387546,TELEFONICA O2 (UK) LTD,Digital Tameside,Finance & IT,Mobile Telephones,,06/07/2020," 1,140.00 ",270000,Information Communication Technology
5387545,TELEFONICA O2 (UK) LTD,Digital Tameside,Finance & IT,Mobile Telephones,,06/07/2020, 760.00 ,270000,Information Communication Technology
5387769,TELEFONICA O2 (UK) LTD,Digital Tameside,Finance & IT,Mobile Telephones,,06/07/2020," 5,970.00 ",270000,Information Communication Technology
5387571,FUSION CARE,Childrens Services,Children's Services,Living With Formal Support,,06/07/2020," 14,592.14 ",321100,Social Community Care Supplies & Services - Children
5387575,FUSION CARE,Adult Social Care,Adults,Residential Home Long Stay Fees,,06/07/2020," 9,845.11 ",321100,Social Community Care Supplies & Services - Children
5387576,FUSION CARE,Adult Social Care,Adults,Homecare Fees,,06/07/2020," 2,780.00 ",321100,Social Community Care Supplies & Services - Children
5387577,FUSION CARE,Adult Social Care,Adults,Homecare Fees,,06/07/2020," 2,380.00 ",321100,Social Community Care Supplies & Services - Children
5387401,OLDHAM COUNCIL,People and Workforce Development,Governance,Professional Consultancy Services,,06/07/2020," 4,000.00 ",-999999,Unclassifiable
5387770,GENIUS INTERNET SECURITY LIMITED,GMPF (FX),GMPF (FX),Computer Software,,06/07/2020, 520.00 ,270000,Information Communication Technology
5387498,PATHWAY TO PROSPECTS,Childrens Services,Children's Services,Living With Formal Support,,06/07/2020," 1,055.71 ",321000,Social Community Care Supplies & Services - Adult
5387524,PATHWAY TO PROSPECTS,Childrens Services,Children's Services,Living With Formal Support,,06/07/2020," 4,650.00 ",321000,Social Community Care Supplies & Services - Adult
5387501,PATHWAY TO PROSPECTS,Childrens Services,Children's Services,Living With Formal Support,,06/07/2020," 4,575.00 ",321000,Social Community Care Supplies & Services - Adult
5387752,ASHTON PIONEER HOMES,Operations and Neighbourhoods,Operations and Neighbourhoods,Miscellaneous Expenses,,06/07/2020," 3,904.75 ",191700,Facilities & Management Services
5387772,ROCHDALE MBC,Adult Social Care,Adults,Residential Home Long Stay Fees,,06/07/2020," 2,192.86 ",-999999,Unclassifiable
460404,HC ONE OF A KIND - KINGS PARK,Adult Social Care,Adults,Nursing Home Long Stay Fees,,06/07/2020," 8,708.10 ",321000,Social Community Care Supplies & Services - Adult
460404,HC ONE OF A KIND - KINGS PARK,Contingency,Contingency,Nursing Home Long Stay Fees,,06/07/2020," 15,425.60 ",321000,Social Community Care Supplies & Services - Adult
460404,MOSS COTTAGE NURSING HOME,Contingency,Contingency,Nursing Home Long Stay Fees,,06/07/2020," 1,450.80 ",321000,Social Community Care Supplies & Services - Adult
460404,DOWNSHAW LODGE CARE HOME,Contingency,Contingency,Nursing Home Long Stay Fees,,06/07/2020," 3,609.33 ",321000,Social Community Care Supplies & Services - Adult
5387773,DAISY COMMUNICATIONS LTD,Digital Tameside,Finance & IT,Telephone Landline Costs,,06/07/2020," 3,907.57 ",908001,Public Bodies
5387722,THE FAMILY UNIT LTD,Childrens Services,Children's Services,Living With Formal Support,,06/07/2020," 3,600.00 ",321000,Social Community Care Supplies & Services - Adult
5387717,THE FAMILY UNIT LTD,Adult Social Care,Adults,Homecare Fees,,06/07/2020," 10,000.00 ",321000,Social Community Care Supplies & Services - Adult
5387726,THE FAMILY UNIT LTD,Childrens Services,Children's Services,Living With Formal Support,,06/07/2020," 1,800.00 ",321000,Social Community Care Supplies & Services - Adult
5387708,THE FAMILY UNIT LTD,Childrens Services,Children's Services,Living With Formal Support,,06/07/2020," 5,400.00 ",321000,Social Community Care Supplies & Services - Adult
5387724,THE FAMILY UNIT LTD,Childrens Services,Children's Services,Living With Formal Support,,06/07/2020," 3,600.00 ",321000,Social Community Care Supplies & Services - Adult
5387324,ACORN CARE & EDUCATION LTD (SALES),Education,Children's Services,Independent School Fees,,06/07/2020," 11,863.34 ",321100,Social Community Care Supplies & Services - Children
5387309,ACORN CARE & EDUCATION LTD (SALES),Education,Children's Services,Independent School Fees,,06/07/2020," 11,880.00 ",321100,Social Community Care Supplies & Services - Children
5387311,ACORN CARE & EDUCATION LTD (SALES),Education,Children's Services,Independent School Fees,,06/07/2020," 15,027.34 ",321100,Social Community Care Supplies & Services - Children
5387317,ACORN CARE & EDUCATION LTD (SALES),Education,Children's Services,Independent School Fees,,06/07/2020," 12,771.00 ",321100,Social Community Care Supplies & Services - Children
5387320,ACORN CARE & EDUCATION LTD (SALES),Education,Children's Services,Independent School Fees,,06/07/2020," 12,771.00 ",321100,Social Community Care Supplies & Services - Children
5387325,ACORN CARE & EDUCATION LTD (SALES),Education,Children's Services,Independent School Fees,,06/07/2020," 17,100.00 ",321100,Social Community Care Supplies & Services - Children
5387308,ACORN CARE & EDUCATION LTD (SALES),Education,Children's Services,Independent School Fees,,06/07/2020," 11,880.00 ",321100,Social Community Care Supplies & Services - Children
5387175,ACORN CARE & EDUCATION LTD (SALES),Education,Children's Services,Independent School Fees,,06/07/2020," 12,771.00 ",321100,Social Community Care Supplies & Services - Children
5387318,ACORN CARE & EDUCATION LTD (SALES),Education,Children's Services,Independent School Fees,,06/07/2020," 12,771.00 ",321100,Social Community Care Supplies & Services - Children
5387171,ACORN CARE & EDUCATION LTD (SALES),Education,Children's Services,Independent School Fees,,06/07/2020," 21,429.00 ",321100,Social Community Care Supplies & Services - Children
5387307,ACORN CARE & EDUCATION LTD (SALES),Education,Children's Services,Independent School Fees,,06/07/2020," 11,880.00 ",321100,Social Community Care Supplies & Services - Children
5387310,ACORN CARE & EDUCATION LTD (SALES),Education,Children's Services,Independent School Fees,,06/07/2020," 11,880.00 ",321100,Social Community Care Supplies & Services - Children
5387314,ACORN CARE & EDUCATION LTD (SALES),Education,Children's Services,Independent School Fees,,06/07/2020," 11,863.34 ",321100,Social Community Care Supplies & Services - Children
5387172,ACORN CARE & EDUCATION LTD (SALES),Education,Children's Services,Independent School Fees,,06/07/2020," 11,865.54 ",321100,Social Community Care Supplies & Services - Children
5387321,ACORN CARE & EDUCATION LTD (SALES),Education,Children's Services,Independent School Fees,,06/07/2020," 12,771.00 ",321100,Social Community Care Supplies & Services - Children
5387306,ACORN CARE & EDUCATION LTD (SALES),Education,Children's Services,Independent School Fees,,06/07/2020," 11,880.00 ",321100,Social Community Care Supplies & Services - Children
5387315,ACORN CARE & EDUCATION LTD (SALES),Education,Children's Services,Independent School Fees,,06/07/2020," 11,863.34 ",321100,Social Community Care Supplies & Services - Children
5387319,ACORN CARE & EDUCATION LTD (SALES),Education,Children's Services,Independent School Fees,,06/07/2020, 785.00 ,321100,Social Community Care Supplies & Services - Children
5387316,ACORN CARE & EDUCATION LTD (SALES),Education,Children's Services,Independent School Fees,,06/07/2020," 15,027.34 ",321100,Social Community Care Supplies & Services - Children
5387323,ACORN CARE & EDUCATION LTD (SALES),Education,Children's Services,Independent School Fees,,06/07/2020," 15,027.34 ",321100,Social Community Care Supplies & Services - Children
5387386,THREE CIRCLES FOSTERING LTD,Childrens Services,Children's Services,Foster Carer Agency Fees,,06/07/2020," 3,969.00 ",321100,Social Community Care Supplies & Services - Children
5387777,CITY LIFT SERVICES (NW) LTD,Adult Social Care,Adults,General Equipment Repair & Maintenance,,06/07/2020," 1,750.00 ",390000,"Works - Construction, Repair & Maintenance"
5387755,HOMESHINE CLEANERS LTD,Adult Social Care,Adults,Cleaning Contractor Costs,,06/07/2020, 630.00 ,130000,Cleaning & Janitorial
5387754,BRANAS ISAF LTD,Childrens Services,Children's Services,Living With Formal Support,,06/07/2020," 19,986.43 ",321100,Social Community Care Supplies & Services - Children
5387430,INSPIRE COMMUNITY SERVICES LIMITED,Childrens Services,Children's Services,Living With Formal Support,,06/07/2020," 4,080.30 ",170000,Education
5387458,INSPIRE COMMUNITY SERVICES LIMITED,Childrens Services,Children's Services,Living With Formal Support,,06/07/2020," 4,080.30 ",170000,Education
5387448,INSPIRE COMMUNITY SERVICES LIMITED,Childrens Services,Children's Services,Living With Formal Support,,06/07/2020," 4,141.20 ",170000,Education
5387442,INSPIRE COMMUNITY SERVICES LIMITED,Childrens Services,Children's Services,Living With Formal Support,,06/07/2020," 2,174.70 ",170000,Education
5387465,INSPIRE COMMUNITY SERVICES LIMITED,Childrens Services,Children's Services,Living With Formal Support,,06/07/2020," 2,174.70 ",170000,Education
5387460,INSPIRE COMMUNITY SERVICES LIMITED,Childrens Services,Children's Services,Living With Formal Support,,06/07/2020," 2,522.70 ",170000,Education
5387652,DHL Parcel UK Ltd (UK Mail),Exchequer,Governance,Printing And Stationery,,06/07/2020," 2,128.31 ",300000,Mail Services
5387570,Hyde Accessible Transport Limited,Education,Children's Services,Transport Of Post 16 Pupils,,06/07/2020," 1,425.00 ",360000,Public Transport
5387718,Exclusec Security Solutions Ltd,Contingency,Contingency,Non-Authority Accommodation Rental,,06/07/2020," 2,380.00 ",-999999,Unclassifiable
5387720,Exclusec Security Solutions Ltd,Contingency,Contingency,Security Services,,06/07/2020," 2,380.00 ",-999999,Unclassifiable
5387728,Excel Fostering Limited,Childrens Services,Children's Services,Foster Carer Agency Fees,,06/07/2020," 3,250.35 ",-999999,Unclassifiable
5387725,Excel Fostering Limited,Childrens Services,Children's Services,Foster Carer Agency Fees,,06/07/2020," 3,018.78 ",-999999,Unclassifiable
5386888,XMA LIMITED,Digital Tameside,Finance & IT,It Equipment,,06/07/2020," 30,904.00 ",270000,Information Communication Technology
5387582,Redacted,Education,Children's Services,Transport Of Pupils,Business Payment,06/07/2020," 2,750.00 ",UNCLASS,Unclassifiable
5387583,Redacted,Education,Children's Services,Transport Of Pupils,Business Payment,06/07/2020," 2,750.00 ",UNCLASS,Unclassifiable
5387580,Redacted,Education,Children's Services,Transport Of Pupils,Business Payment,06/07/2020," 2,125.00 ",UNCLASS,Unclassifiable
5387578,Redacted,Education,Children's Services,Transport Of Post 16 Pupils,Business Payment,06/07/2020," 2,137.50 ",UNCLASS,Unclassifiable
5387581,Redacted,Education,Children's Services,Transport Of Pupils,Business Payment,06/07/2020," 2,125.00 ",UNCLASS,Unclassifiable
5386317,DARTINGTON HALL TRUST,Adult Social Care,Adults,Professional Services,,06/07/2020," 12,000.00 ",150000,Consultancy
5387749,APSE,Operations and Neighbourhoods,Operations and Neighbourhoods,Subscriptions,,06/07/2020," 3,520.00 ",UNCLASS,Unclassifiable
5387502,LORIMER FOSTERING SERVICES,Childrens Services,Children's Services,Foster Carer Agency Fees,,06/07/2020," 3,344.68 ",321100,Social Community Care Supplies & Services - Children
5387730,TAMESIDE LINK,Adult Social Care,Adults,Voluntary Organisations Fees,,06/07/2020," 24,805.69 ",321000,Social Community Care Supplies & Services - Adult
5387715,Redacted,Childrens Services,Children's Services,Childrens Homes Outside Local Authority Fees,Redacted Supplier,06/07/2020," 11,335.80 ",321100,Social Community Care Supplies & Services - Children
5387761,Redacted,Childrens Services,Children's Services,Childrens Homes Outside Local Authority Fees,Redacted Supplier,06/07/2020," 13,692.90 ",321100,Social Community Care Supplies & Services - Children
5387716,Redacted,Childrens Services,Children's Services,Childrens Homes Outside Local Authority Fees,Redacted Supplier,06/07/2020," 11,978.70 ",321100,Social Community Care Supplies & Services - Children
5387675,Redacted,Childrens Services,Children's Services,Childrens Homes Outside Local Authority Fees,Redacted Supplier,06/07/2020," 3,450.02 ",171011,Education
5387697,Redacted,Childrens Services,Children's Services,Childrens Homes Outside Local Authority Fees,Redacted Supplier,06/07/2020," 15,278.66 ",171011,Education
5387705,Redacted,Childrens Services,Children's Services,Childrens Homes Outside Local Authority Fees,Redacted Supplier,06/07/2020," 15,278.66 ",171011,Education
5387682,Redacted,Childrens Services,Children's Services,Childrens Homes Outside Local Authority Fees,Redacted Supplier,06/07/2020," 3,450.02 ",171011,Education
5386990,WORLDPAY,Finance,Finance & IT,National Giro,,06/07/2020," 8,007.15 ",200000,Financial Services
5387693,CAPITA - NNDR REFUNDS,Contingency,Contingency,"COVID-19 Retail, Hospitality and Leisure 25k",,06/07/2020," 25,000.00 ",400000,Non 3rd Party spend  
5387693,CAPITA - NNDR REFUNDS,Contingency,Contingency,COVID-19 Small Business 10k,,06/07/2020," 60,000.00 ",400000,Non 3rd Party spend  
5386504,CAPITA - NNDR REFUNDS,Contingency,Contingency,"COVID-19 Retail, Hospitality and Leisure 25k",,06/07/2020," 25,000.00 ",400000,Non 3rd Party spend  
5386504,CAPITA - NNDR REFUNDS,Contingency,Contingency,COVID-19 Small Business 10k,,06/07/2020," 160,000.00 ",400000,Non 3rd Party spend  
5386787,CAPITA - NNDR REFUNDS,Contingency,Contingency,"COVID-19 Retail, Hospitality and Leisure 25k",,06/07/2020," 25,000.00 ",400000,Non 3rd Party spend  
5386787,CAPITA - NNDR REFUNDS,Contingency,Contingency,COVID-19 Small Business 10k,,06/07/2020," 40,000.00 ",400000,Non 3rd Party spend  
5386787,CAPITA - NNDR REFUNDS,Contingency,Contingency,"COVID-19 Retail, Hospitality and Leisure 10k",,06/07/2020," 10,000.00 ",400000,Non 3rd Party spend  
5386715,CAPITA - NNDR REFUNDS,Contingency,Contingency,COVID-19 Small Business 10k,,06/07/2020," 90,000.00 ",400000,Non 3rd Party spend  
5386959,CAPITA - NNDR REFUNDS,Contingency,Contingency,COVID-19 Small Business 10k,,06/07/2020," 30,000.00 ",400000,Non 3rd Party spend  
5386506,CAPITA - NNDR REFUNDS,Contingency,Contingency,COVID-19 Small Business 10k,,06/07/2020," 50,000.00 ",400000,Non 3rd Party spend  
5386506,CAPITA - NNDR REFUNDS,Contingency,Contingency,"COVID-19 Retail, Hospitality and Leisure 10k",,06/07/2020," 30,000.00 ",400000,Non 3rd Party spend  
5387701,AD HOC CHAPS PAYMENT,Multiple Heads of Service,Multiple Strategic Directorates,Debits Superann Local Govt,,06/07/2020," 496,451.87 ",400002,Chaps Payments
5387701,AD HOC CHAPS PAYMENT,(blank),(blank),Debits Superann Local Govt,,06/07/2020," 1,185.81 ",400002,Chaps Payments
5387512,Redacted,Operations and Neighbourhoods,Operations and Neighbourhoods,Hired Transport,Business Payment,07/07/2020," 1,155.00 ",360000,Public Transport
5387818,Skybound Therapies,Education,Children's Services,Independent School Fees,,07/07/2020," 1,365.00 ",170000,Education
5387912,The Compost Bag Company Ltd,Operations and Neighbourhoods,Operations and Neighbourhoods,Purchase Wheeled Bins,,07/07/2020," 3,015.00 ",182014,Environmental Services
5387750,Kite Packaging Ltd,Operations and Neighbourhoods,Operations and Neighbourhoods,Other Accommodation Related Costs,,07/07/2020, 601.60 ,340000,Stationery
5387731,G2V Recruitment Group Limited t/a Vivid Resourcing,Place,Growth,Agency Staff,,07/07/2020," 3,000.00 ",280000,Legal Services
5387836,Oyster Partnership,Place,Growth,Agency Staff,,07/07/2020," 2,200.00 ",261313,Human Resources
5387835,Oyster Partnership,Place,Growth,Agency Staff,,07/07/2020," 2,400.00 ",261313,Human Resources
5387764,Kids Planet Dukinfield,Childrens Services,Children's Services,Professional Services,,07/07/2020, 744.33 ,171040,Education
5387763,Kids Planet Dukinfield,Childrens Services,Children's Services,Professional Services,,07/07/2020, 744.33 ,171040,Education
5387805,SKOLAK HEALTHCARE - BEECHILL NURSING HOME,Adult Social Care,Adults,Residential Home Long Stay Fees,,07/07/2020," 13,592.45 ",321017,Social Community Care Supplies & Services - Adult
5387806,EMBRACE HOUSING CARE LTD,Operations and Neighbourhoods,Operations and Neighbourhoods,Other Accommodation Related Costs,,07/07/2020, 500.00 ,202000,Financial Services
5387918,Redacted,Contingency,Contingency,COVID-19 Local Authority Discretionary Grant Fund,,07/07/2020," 10,000.00 ",UNCLASS,Unclassifiable
5387862,Hallsworth and Co,Operations and Neighbourhoods,Operations and Neighbourhoods,Other Accommodation Related Costs,,07/07/2020, 595.00 ,202000,Financial Services
5387032,MOSSLEY PRIVATE HIRE,Education,Children's Services,Transport Of Ola Pupils,,07/07/2020," 2,838.00 ",360000,Public Transport
5387027,MOSSLEY PRIVATE HIRE,Education,Children's Services,Transport Of Pupils,,07/07/2020," 2,750.00 ",360000,Public Transport
5387031,MOSSLEY PRIVATE HIRE,Education,Children's Services,Transport Of Pupils,,07/07/2020," 2,750.00 ",360000,Public Transport
5387034,MOSSLEY PRIVATE HIRE,Education,Children's Services,Transport Of Pupils,,07/07/2020," 1,997.50 ",360000,Public Transport
5387030,MOSSLEY PRIVATE HIRE,Education,Children's Services,Transport Of Pupils,,07/07/2020," 1,540.00 ",360000,Public Transport
5387033,MOSSLEY PRIVATE HIRE,Education,Children's Services,Transport Of Pupils,,07/07/2020," 2,550.00 ",360000,Public Transport
5387029,MOSSLEY PRIVATE HIRE,Education,Children's Services,Transport Of Pupils,,07/07/2020," 2,550.00 ",360000,Public Transport
5387028,MOSSLEY PRIVATE HIRE,Education,Children's Services,Transport Of Pupils,,07/07/2020," 2,125.00 ",360000,Public Transport
5387573,Randstad Public Services Limited,Education,Children's Services,Agency Staff,,07/07/2020," 1,564.00 ",170000,Education
5387226,CYCLESCHEME LTD,Multiple Heads of Service,Multiple Strategic Directorates,Debits,,07/07/2020, 999.17 ,-999999,Unclassifiable
5387499,Redacted,Education,Children's Services,Transport Of Pupils,Business Payment,07/07/2020," 2,376.00 ",360000,Public Transport
5387481,Redacted,Education,Children's Services,Transport Of Ola Pupils,Business Payment,07/07/2020," 2,052.00 ",360000,Public Transport
5387503,Redacted,Education,Children's Services,Transport Of Pupils,Business Payment,07/07/2020," 2,261.00 ",360000,Public Transport
5387497,Redacted,Education,Children's Services,Transport Of Pupils,Business Payment,07/07/2020," 1,826.00 ",360000,Public Transport
5387881,PEOPLE FIRST TAMESIDE,Adult Social Care,Adults,Homecare Fees,,07/07/2020," 1,279.20 ",321000,Social Community Care Supplies & Services - Adult
5387878,PEOPLE FIRST TAMESIDE,Adult Social Care,Adults,Homecare Fees,,07/07/2020, 826.56 ,321000,Social Community Care Supplies & Services - Adult
5387240,Park Lane Minibuses LTD,Education,Children's Services,Transport Of Pupils,,07/07/2020," 2,830.96 ",360000,Public Transport
5387004,Park Lane Minibuses LTD,Education,Children's Services,Transport Of Post 16 Pupils,,07/07/2020," 2,179.80 ",360000,Public Transport
5387252,Park Lane Minibuses LTD,Education,Children's Services,Transport Of Post 16 Pupils,,07/07/2020," 1,168.00 ",360000,Public Transport
5387253,Park Lane Minibuses LTD,Education,Children's Services,Transport Of Ola Pupils,,07/07/2020," 3,045.90 ",360000,Public Transport
5387001,Park Lane Minibuses LTD,Education,Children's Services,Transport Of Pupils,,07/07/2020," 3,132.80 ",360000,Public Transport
5387006,Park Lane Minibuses LTD,Operations and Neighbourhoods,Operations and Neighbourhoods,Hired Transport,,07/07/2020," 4,491.36 ",360000,Public Transport
5387776,CLOVERLEAF ADVOCACY 2000 LTD,Adult Social Care,Adults,Professional Services,,07/07/2020," 12,250.00 ",321000,Social Community Care Supplies & Services - Adult
5387978,CITY LIFT SERVICES (NW) LTD,Adult Social Care,Adults,General Equipment Repair & Maintenance,,07/07/2020," 1,750.00 ",390000,"Works - Construction, Repair & Maintenance"
5387778,COMMUNITY INTEGRATED CARE,Adult Social Care,Adults,Homecare Fees,,07/07/2020," 343,844.73 ",321000,Social Community Care Supplies & Services - Adult
5387779,COMMUNITY INTEGRATED CARE,Adult Social Care,Adults,Homecare Fees,,07/07/2020," 317,826.24 ",321000,Social Community Care Supplies & Services - Adult
5387528,UNIVERSITY HOSPITALS BIRMINGHAM NHS FOUNDATION TRUST,Population Health,Population Health,Training Course Costs,,07/07/2020," 1,064.00 ",150000,Consultancy
5387905,INSPIREDSPACES TAMESIDE LTD,Cultural and Customer Services,"Community,Environmental,Adult and Health Services",New Build Construction Costs,,07/07/2020," 214,295.07 ",390000,"Works - Construction, Repair & Maintenance"
5387902,Redacted,Childrens Services,Children's Services,Professional Services,,07/07/2020, 748.00 ,170000,Education
5387758,Redacted,Childrens Services,Children's Services,Professional Services,,07/07/2020," 3,201.50 ",321000,Social Community Care Supplies & Services - Adult
5387904,Redacted,Operations and Neighbourhoods,Operations and Neighbourhoods,Professional Entertainment Services,,07/07/2020, 600.00 ,290000,Arts & Leisure Services
5387893,NHS Manchester CCG,Hosted Services,Hosted Services,Contributions,,07/07/2020," 320,455.00 ",150000,Consultancy
5387255,Viva Minibus LTD,Education,Children's Services,Transport Of Pupils,,07/07/2020," 2,490.00 ",230000,Highway Equipment & Materials
5387532,Arrow Cabs LTD,Education,Children's Services,Transport Of Ola Pupils,,07/07/2020," 4,070.00 ",360000,Public Transport
5387530,Arrow Cabs LTD,Education,Children's Services,Transport Of Ola Pupils,,07/07/2020," 3,850.00 ",360000,Public Transport
5387568,Adlard Transport LTD,Education,Children's Services,Transport Of Pupils,,07/07/2020," 2,200.00 ",360000,Public Transport
5387907,Adlard Transport LTD,Education,Children's Services,Transport Of Pupils,,07/07/2020," 2,200.00 ",360000,Public Transport
5387237,Joes Travel LTD,Education,Children's Services,Transport Of Ola Pupils,,07/07/2020," 2,090.00 ",360000,Public Transport
5387095,Hyde Accessible Transport Limited,Education,Children's Services,Transport Of Pupils,,07/07/2020," 1,190.00 ",360000,Public Transport
5387060,Hyde Accessible Transport Limited,Education,Children's Services,Transport Of Pupils,,07/07/2020," 1,155.00 ",360000,Public Transport
5387331,NMA Travel LTD,Education,Children's Services,Transport Of Pupils,,07/07/2020," 1,904.00 ",360000,Public Transport
5387330,NMA Travel LTD,Education,Children's Services,Transport Of Pupils,,07/07/2020," 2,006.00 ",360000,Public Transport
5387909,TAMESIDE SPORTS TRUST,Childrens Services,Children's Services,Training Course Costs,,07/07/2020," 25,000.00 ",290000,Arts & Leisure Services
5387906,TAMESIDE SPORTS TRUST,Adult Social Care,Adults,Homecare Fees,,07/07/2020," 70,925.40 ",290000,Arts & Leisure Services
5387554,J & R TAXIS LTD,Education,Children's Services,Transport Of Ola Pupils,,07/07/2020," 2,040.00 ",360000,Public Transport
5387910,CAPITA BUSINESS SERVICES LIMITED,Education,Children's Services,Free School Meal Costs,,07/07/2020," 2,800.00 ",270000,Information Communication Technology
5387438,ROYALE MINICOACHES,Education,Children's Services,Transport Of Pupils,,07/07/2020," 2,288.00 ",UNCLASS,Unclassifiable
5387866,TERMSTALL LIMITED,Contingency,Contingency,Engineers Works,,07/07/2020," 4,680.00 ",100000,Building Construction Materials
5387258,Redacted,Education,Children's Services,Transport Of Pupils,Business Payment,07/07/2020," 1,628.00 ",360000,Public Transport
5387858,JUST TEACHERS,Education,Children's Services,Independent School Fees,,07/07/2020, 603.25 ,261415,Human Resources
5387143,STAMFORD CARS UK LTD,Operations and Neighbourhoods,Operations and Neighbourhoods,Transport Of Ola Pupils,,07/07/2020, 780.00 ,361510,Public Transport
5387210,STAMFORD CARS UK LTD,Education,Children's Services,Transport Of Pupils,,07/07/2020," 1,760.00 ",361510,Public Transport
5387134,STAMFORD CARS UK LTD,Education,Children's Services,Transport Of Pupils,,07/07/2020," 1,320.00 ",361510,Public Transport
5387179,STAMFORD CARS UK LTD,Operations and Neighbourhoods,Operations and Neighbourhoods,Hired Transport,,07/07/2020," 1,780.00 ",361510,Public Transport
5387188,STAMFORD CARS UK LTD,Education,Children's Services,Transport Of Pupils,,07/07/2020," 1,320.00 ",361510,Public Transport
5387153,STAMFORD CARS UK LTD,Education,Children's Services,Transport Of Pupils,,07/07/2020," 2,090.00 ",361510,Public Transport
5387203,STAMFORD CARS UK LTD,Education,Children's Services,Transport Of Pupils,,07/07/2020," 2,090.00 ",361510,Public Transport
5387122,STAMFORD CARS UK LTD,Education,Children's Services,Transport Of Pupils,,07/07/2020," 2,090.00 ",361510,Public Transport
5387208,STAMFORD CARS UK LTD,Education,Children's Services,Transport Of Ola Pupils,,07/07/2020," 2,200.00 ",361510,Public Transport
5387562,STAMFORD CARS UK LTD,Operations and Neighbourhoods,Operations and Neighbourhoods,Hired Transport,,07/07/2020, 990.00 ,361510,Public Transport
5387182,STAMFORD CARS UK LTD,Operations and Neighbourhoods,Operations and Neighbourhoods,Hired Transport,,07/07/2020, 895.00 ,361510,Public Transport
5387207,STAMFORD CARS UK LTD,Education,Children's Services,Transport Of Ola Pupils,,07/07/2020," 1,980.00 ",361510,Public Transport
5387159,STAMFORD CARS UK LTD,Education,Children's Services,Transport Of Pupils,,07/07/2020," 2,090.00 ",361510,Public Transport
5387198,STAMFORD CARS UK LTD,Education,Children's Services,Transport Of Pupils,,07/07/2020," 2,090.00 ",361510,Public Transport
5387204,STAMFORD CARS UK LTD,Education,Children's Services,Transport Of Pupils,,07/07/2020," 2,090.00 ",361510,Public Transport
5387138,STAMFORD CARS UK LTD,Operations and Neighbourhoods,Operations and Neighbourhoods,Hired Transport,,07/07/2020," 1,705.00 ",361510,Public Transport
5387209,STAMFORD CARS UK LTD,Education,Children's Services,Transport Of Ola Pupils,,07/07/2020," 1,760.00 ",361510,Public Transport
5387124,STAMFORD CARS UK LTD,Education,Children's Services,Transport Of Pupils,,07/07/2020," 1,760.00 ",361510,Public Transport
5387194,STAMFORD CARS UK LTD,Operations and Neighbourhoods,Operations and Neighbourhoods,Transport Of Post 16 Pupils,,07/07/2020," 1,705.00 ",361510,Public Transport
5387110,STAMFORD CARS UK LTD,Operations and Neighbourhoods,Operations and Neighbourhoods,Transport Of Pupils,,07/07/2020, 656.25 ,361510,Public Transport
5387165,STAMFORD CARS UK LTD,Operations and Neighbourhoods,Operations and Neighbourhoods,Hired Transport,,07/07/2020, 680.00 ,361510,Public Transport
5387205,STAMFORD CARS UK LTD,Education,Children's Services,Transport Of Ola Pupils,,07/07/2020," 1,705.00 ",361510,Public Transport
5387190,STAMFORD CARS UK LTD,Education,Children's Services,Transport Of Ola Pupils,,07/07/2020," 1,705.00 ",361510,Public Transport
5387196,STAMFORD CARS UK LTD,Education,Children's Services,Transport Of Pupils,,07/07/2020," 1,650.00 ",361510,Public Transport
5387563,STAMFORD CARS UK LTD,Operations and Neighbourhoods,Operations and Neighbourhoods,Hired Transport,,07/07/2020," 3,300.00 ",361510,Public Transport
5387186,STAMFORD CARS UK LTD,Education,Children's Services,Transport Of Pupils,,07/07/2020," 1,760.00 ",361510,Public Transport
5387201,STAMFORD CARS UK LTD,Education,Children's Services,Transport Of Pupils,,07/07/2020," 1,815.00 ",361510,Public Transport
5387152,STAMFORD CARS UK LTD,Education,Children's Services,Transport Of Ola Pupils,,07/07/2020," 3,245.00 ",361510,Public Transport
5387199,STAMFORD CARS UK LTD,Education,Children's Services,Transport Of Ola Pupils,,07/07/2020," 3,630.00 ",361510,Public Transport
5387185,STAMFORD CARS UK LTD,Operations and Neighbourhoods,Operations and Neighbourhoods,Hired Transport,,07/07/2020," 1,595.00 ",361510,Public Transport
5387107,STAMFORD CARS UK LTD,Operations and Neighbourhoods,Operations and Neighbourhoods,Hired Transport,,07/07/2020, 707.50 ,361510,Public Transport
5387176,STAMFORD CARS UK LTD,Operations and Neighbourhoods,Operations and Neighbourhoods,Hired Transport,,07/07/2020, 990.00 ,361510,Public Transport
5387206,STAMFORD CARS UK LTD,Education,Children's Services,Transport Of Pupils,,07/07/2020," 1,540.00 ",361510,Public Transport
5387136,STAMFORD CARS UK LTD,Education,Children's Services,Transport Of Ola Pupils,,07/07/2020," 2,530.00 ",361510,Public Transport
5387193,STAMFORD CARS UK LTD,Education,Children's Services,Transport Of Ola Pupils,,07/07/2020," 2,915.00 ",361510,Public Transport
5387150,STAMFORD CARS UK LTD,Operations and Neighbourhoods,Operations and Neighbourhoods,Hired Transport,,07/07/2020, 797.50 ,361510,Public Transport
5387162,STAMFORD CARS UK LTD,Operations and Neighbourhoods,Operations and Neighbourhoods,Hired Transport,,07/07/2020, 585.00 ,361510,Public Transport
5387567,STAMFORD CARS UK LTD,Operations and Neighbourhoods,Operations and Neighbourhoods,Hired Transport,,07/07/2020, 650.00 ,361510,Public Transport
5387173,STAMFORD CARS UK LTD,Operations and Neighbourhoods,Operations and Neighbourhoods,Hired Transport,,07/07/2020, 665.00 ,361510,Public Transport
5387191,STAMFORD CARS UK LTD,Education,Children's Services,Transport Of Pupils,,07/07/2020," 1,100.00 ",361510,Public Transport
5387128,STAMFORD CARS UK LTD,Operations and Neighbourhoods,Operations and Neighbourhoods,Transport Of Post 16 Pupils,,07/07/2020, 880.00 ,361510,Public Transport
5387183,STAMFORD CARS UK LTD,Operations and Neighbourhoods,Operations and Neighbourhoods,Hired Transport,,07/07/2020, 572.50 ,361510,Public Transport
5387192,STAMFORD CARS UK LTD,Education,Children's Services,Transport Of Ola Pupils,,07/07/2020," 2,255.00 ",361510,Public Transport
5387156,STAMFORD CARS UK LTD,Education,Children's Services,Transport Of Pupils,,07/07/2020," 2,090.00 ",361510,Public Transport
5387145,STAMFORD CARS UK LTD,Education,Children's Services,Transport Of Pupils,,07/07/2020," 2,090.00 ",361510,Public Transport
5387195,STAMFORD CARS UK LTD,Education,Children's Services,Transport Of Ola Pupils,,07/07/2020," 1,430.00 ",361510,Public Transport
5387788,Selborne Care Ltd,Adult Social Care,Adults,Nursing Home Long Stay Fees,,07/07/2020," 21,328.00 ",321000,Social Community Care Supplies & Services - Adult
5387872,Redacted,Operations and Neighbourhoods,Operations and Neighbourhoods,Hired Transport,Business Payment,08/07/2020," 2,451.00 ",360000,Public Transport
5388062,Fairfield Care Services,Adult Social Care,Adults,Homecare Fees,,08/07/2020," 2,369.40 ",321000,Social Community Care Supplies & Services - Adult
5388067,Randstad HR Solution Ltd T/A Student Worker Support,Individual Schools Budget,Children's Services,Agency Staff,,08/07/2020, 680.00 ,321000,Social Community Care Supplies & Services - Adult
5388085,Independent Together Limited,Childrens Services,Children's Services,Living With Formal Support,,08/07/2020," 1,028.57 ",321000,Social Community Care Supplies & Services - Adult
5388083,Independent Together Limited,Childrens Services,Children's Services,Living With Formal Support,,08/07/2020," 1,714.29 ",321000,Social Community Care Supplies & Services - Adult
5388086,iCare Solutions,Adult Social Care,Adults,Homecare Fees,,08/07/2020," 8,909.39 ",310000,Healthcare
5387826,YOUNG PEOPLE FIRST LIMITED,Childrens Services,Children's Services,Living With Formal Support,,08/07/2020," 1,225.00 ",321100,Social Community Care Supplies & Services - Children
5388071,YOUNG PEOPLE FIRST LIMITED,Childrens Services,Children's Services,Living With Formal Support,,08/07/2020, 850.00 ,321100,Social Community Care Supplies & Services - Children
5388089,YOUNG PEOPLE FIRST LIMITED,Childrens Services,Children's Services,Living With Formal Support,,08/07/2020, 850.00 ,321100,Social Community Care Supplies & Services - Children
5388069,YOUNG PEOPLE FIRST LIMITED,Childrens Services,Children's Services,Living With Formal Support,,08/07/2020," 2,730.00 ",321100,Social Community Care Supplies & Services - Children
5387618,Furniture Resource Centre Ltd,Operations and Neighbourhoods,Operations and Neighbourhoods,"Fixtures, Fittings & Furniture Purchase",,08/07/2020," 1,411.34 ",UNCLASS,Unclassifiable
5387925,Zeno Ltd,Adult Social Care,Adults,Homecare Fees,,08/07/2020," 10,037.84 ",310000,Healthcare
5387830,Rite Directions Ltd,Childrens Services,Children's Services,Living With Formal Support,,08/07/2020," 3,214.20 ",390000,"Works - Construction, Repair & Maintenance"
5387831,Amber Family Limited,Childrens Services,Children's Services,Childrens Homes Outside Local Authority Fees,,08/07/2020," 19,750.00 ",321000,Social Community Care Supplies & Services - Adult
5388053,YARROW ESTATES,Operations and Neighbourhoods,Operations and Neighbourhoods,Other Accommodation Related Costs,,08/07/2020," 1,125.00 ",202000,Financial Services
5386848,Paramount Children's Services,Childrens Services,Children's Services,Childrens Homes Outside Local Authority Fees,,08/07/2020," 28,000.00 ",321018,Social Community Care Supplies & Services
5387946,KONICA MINOLTA BUSINESS SOLUTIONS (UK) LTD,Individual Schools Budget,Children's Services,Printing Recharges,,08/07/2020, 527.97 ,270000,Information Communication Technology
5387880,SAFEHOUSES NORTH LIMITED,Childrens Services,Children's Services,Foster Carer Agency Fees,,08/07/2020," 3,393.26 ",321100,Social Community Care Supplies & Services - Children
5387879,SAFEHOUSES NORTH LIMITED,Childrens Services,Children's Services,Foster Carer Agency Fees,,08/07/2020," 3,571.86 ",321100,Social Community Care Supplies & Services - Children
5387947,WORKS 4U SUPPORT SERVICES LIMITED,Education,Children's Services,Independent School Fees,,08/07/2020," 7,800.00 ",260000,Human Resources
5387766,HAS TECHNOLOGY LTD,Adult Social Care,Adults,Computer Software Maintenance Costs,,08/07/2020," 2,529.36 ",-999999,Unclassifiable
5387953,Randstad Public Services Limited,Individual Schools Budget,Children's Services,Agency Staff,,08/07/2020, 840.00 ,170000,Education
5387955,Randstad Public Services Limited,Individual Schools Budget,Children's Services,Agency Staff,,08/07/2020, 522.00 ,170000,Education
5387956,CACI LTD,Policy and Communications,Governance,Subscriptions,,08/07/2020," 7,500.00 ",270000,Information Communication Technology
5387963,STEP AHEAD RESOURCE SERVICES,Adult Social Care,Adults,Homecare Fees,,08/07/2020, 950.00 ,321000,Social Community Care Supplies & Services - Adult
5387974,STEP AHEAD RESOURCE SERVICES,Adult Social Care,Adults,Homecare Fees,,08/07/2020," 1,150.00 ",321000,Social Community Care Supplies & Services - Adult
5374999,PEOPLE FIRST TAMESIDE,Adult Social Care,Adults,Professional Services,,08/07/2020," 3,986.60 ",321000,Social Community Care Supplies & Services - Adult
5387883,PEOPLE FIRST TAMESIDE,Adult Social Care,Adults,Professional Services,,08/07/2020," 4,383.68 ",321000,Social Community Care Supplies & Services - Adult
5388200,Sparks Event Management,Operations and Neighbourhoods,Operations and Neighbourhoods,Purchase General Office Equipment,,08/07/2020, 875.00 ,400000,Non 3rd Party spend  
5387525,COMFORT CALL LIMITED,Adult Social Care,Adults,Homecare Fees,,08/07/2020," 137,507.67 ",310000,Healthcare
5387025,Redacted,Adult Social Care,Adults,Residential Home Short Stay Fees,,08/07/2020," 1,483.97 ",-999999,Unclassifiable
5387434,BY THE BRIDGE NORTH WEST LTD,Childrens Services,Children's Services,Foster Carer Agency Fees,,08/07/2020," 3,272.71 ",908001,Public Bodies
5387244,COMMUNITY INTEGRATED CARE,Adult Social Care,Adults,Homecare Fees,,08/07/2020," 20,112.46 ",321000,Social Community Care Supplies & Services - Adult
5387470,ABLE CARE AND SUPPORT SERVICES LTD,Adult Social Care,Adults,Homecare Fees,,08/07/2020," 4,332.89 ",321000,Social Community Care Supplies & Services - Adult
5387488,ABLE CARE AND SUPPORT SERVICES LTD,Adult Social Care,Adults,Homecare Fees,,08/07/2020, 648.70 ,321000,Social Community Care Supplies & Services - Adult
5387473,ABLE CARE AND SUPPORT SERVICES LTD,Adult Social Care,Adults,Homecare Fees,,08/07/2020, 759.20 ,321000,Social Community Care Supplies & Services - Adult
5387466,ABLE CARE AND SUPPORT SERVICES LTD,Adult Social Care,Adults,Homecare Fees,,08/07/2020," 4,220.27 ",321000,Social Community Care Supplies & Services - Adult
5387468,ABLE CARE AND SUPPORT SERVICES LTD,Adult Social Care,Adults,Homecare Fees,,08/07/2020," 4,130.02 ",321000,Social Community Care Supplies & Services - Adult
5387346,CARE 4 CHILDREN RESIDENTIAL SERVICES LTD,Childrens Services,Children's Services,Foster Carer Agency Fees,,08/07/2020," 7,572.68 ",321100,Social Community Care Supplies & Services - Children
5387348,CARE 4 CHILDREN RESIDENTIAL SERVICES LTD,Childrens Services,Children's Services,Foster Carer Agency Fees,,08/07/2020," 3,631.34 ",321100,Social Community Care Supplies & Services - Children
5387349,CARE 4 CHILDREN RESIDENTIAL SERVICES LTD,Childrens Services,Children's Services,Foster Carer Agency Fees,,08/07/2020," 3,595.07 ",321100,Social Community Care Supplies & Services - Children
5387347,CARE 4 CHILDREN RESIDENTIAL SERVICES LTD,Childrens Services,Children's Services,Foster Carer Agency Fees,,08/07/2020," 3,321.34 ",321100,Social Community Care Supplies & Services - Children
5387342,CARE 4 CHILDREN RESIDENTIAL SERVICES LTD,Childrens Services,Children's Services,Foster Carer Agency Fees,,08/07/2020," 5,314.33 ",321100,Social Community Care Supplies & Services - Children
5387340,CARE 4 CHILDREN RESIDENTIAL SERVICES LTD,Childrens Services,Children's Services,Foster Carer Agency Fees,,08/07/2020," 3,463.63 ",321100,Social Community Care Supplies & Services - Children
5387981,COMPLETE BACKGROUND SCREENING LTD,People and Workforce Development,Governance,Professional Services,,08/07/2020," 2,988.00 ",-999999,Unclassifiable
5387982,TRIANGLE CARE GROUP,Childrens Services,Children's Services,Living With Formal Support,,08/07/2020," 4,400.00 ",321000,Social Community Care Supplies & Services - Adult
5370689,NEW CHARTER HOUSING TRUST GROUP,Childrens Services,Children's Services,Professional Services,,08/07/2020," 17,000.00 ",-999999,Unclassifiable
5387994,NEW CHARTER HOUSING TRUST GROUP,Childrens Services,Children's Services,Non-Authority Accommodation Rental,,08/07/2020," 1,207.50 ",-999999,Unclassifiable
5387996,NEW CHARTER HOUSING TRUST GROUP,Childrens Services,Children's Services,Non-Authority Accommodation Rental,,08/07/2020," 1,610.00 ",-999999,Unclassifiable
5388126,ROTHWELLS CORPORATE LETTINGS,Childrens Services,Children's Services,Other Accommodation Related Costs,,08/07/2020," 2,500.00 ",-999999,Unclassifiable
5387928,NPOWER BUSINESS SOLUTIONS,Place,Growth,Electricity,,08/07/2020," 3,010.00 ",-999999,Unclassifiable
5387783,BRANAS ISAF LTD,Childrens Services,Children's Services,Childrens Homes Outside Local Authority Fees,,08/07/2020," 21,000.00 ",321100,Social Community Care Supplies & Services - Children
5387743,MEDACS HEALTHCARE,Adult Social Care,Adults,Homecare Fees,,08/07/2020," 26,286.08 ",150000,Consultancy
5387742,MEDACS HEALTHCARE,Adult Social Care,Adults,Homecare Fees,,08/07/2020," 52,107.86 ",150000,Consultancy
5387523,CARELINE HOMECARE LTD,Adult Social Care,Adults,Homecare Fees,,08/07/2020," 151,570.60 ",321000,Social Community Care Supplies & Services - Adult
5388113,CARETECH COMMUNITY SERVICES LIMITED,Adult Social Care,Adults,Homecare Fees,,08/07/2020," 5,189.80 ",321000,Social Community Care Supplies & Services - Adult
5387860,THE ADOLESCENT & CHILDRENS TRUST,Childrens Services,Children's Services,Foster Carer Agency Fees,,08/07/2020," 4,026.77 ",321100,Social Community Care Supplies & Services - Children
5387871,THE ADOLESCENT & CHILDRENS TRUST,Childrens Services,Children's Services,Foster Carer Agency Fees,,08/07/2020," 3,240.00 ",321100,Social Community Care Supplies & Services - Children
5387863,THE ADOLESCENT & CHILDRENS TRUST,Childrens Services,Children's Services,Foster Carer Agency Fees,,08/07/2020," 3,322.20 ",321100,Social Community Care Supplies & Services - Children
5387867,THE ADOLESCENT & CHILDRENS TRUST,Childrens Services,Children's Services,Foster Carer Agency Fees,,08/07/2020," 3,175.20 ",321100,Social Community Care Supplies & Services - Children
5388105,ROUTES HEALTHCARE (NORTH) LIMITED,Adult Social Care,Adults,Homecare Fees,,08/07/2020," 2,150.95 ",321100,Social Community Care Supplies & Services - Children
5388021,Headsets4Business Limited,Contingency,Contingency,It Equipment,,08/07/2020," 2,280.00 ",270000,Information Communication Technology
5388027,Change Grow Live,Operations and Neighbourhoods,Operations and Neighbourhoods,Other Accommodation Related Costs,,08/07/2020," 10,218.00 ",321000,Social Community Care Supplies & Services - Adult
5388030,FENTONS TAXIS,Education,Children's Services,Transport Of Pupils,,08/07/2020," 2,145.00 ",360000,Public Transport
5388029,MANCHESTER METROPOLITAN UNIVERSITY,People and Workforce Development,Governance,Training Course Costs,,08/07/2020, 750.00 ,UNCLASS,Unclassifiable
5387026,Redacted,Adult Social Care,Adults,Residential Home Short Stay Fees,Redacted Supplier,08/07/2020," 1,483.97 ",321000,Social Community Care Supplies & Services - Adult
5387670,PARALLEL PARENTS,Childrens Services,Children's Services,Foster Carer Agency Fees,,08/07/2020," 2,772.00 ",321100,Social Community Care Supplies & Services - Children
5387631,PARALLEL PARENTS,Childrens Services,Children's Services,Foster Carer Agency Fees,,08/07/2020," 4,005.00 ",321100,Social Community Care Supplies & Services - Children
5387665,PARALLEL PARENTS,Childrens Services,Children's Services,Foster Carer Agency Fees,,08/07/2020," 4,005.00 ",321100,Social Community Care Supplies & Services - Children
5387638,PARALLEL PARENTS,Childrens Services,Children's Services,Foster Carer Agency Fees,,08/07/2020," 4,105.20 ",321100,Social Community Care Supplies & Services - Children
5387630,PARALLEL PARENTS,Childrens Services,Children's Services,Foster Carer Agency Fees,,08/07/2020," 3,684.60 ",321100,Social Community Care Supplies & Services - Children
5387651,PARALLEL PARENTS,Childrens Services,Children's Services,Foster Carer Agency Fees,,08/07/2020," 2,790.90 ",321100,Social Community Care Supplies & Services - Children
5387669,PARALLEL PARENTS,Childrens Services,Children's Services,Foster Carer Agency Fees,,08/07/2020," 3,228.90 ",321100,Social Community Care Supplies & Services - Children
5387668,PARALLEL PARENTS,Childrens Services,Children's Services,Foster Carer Agency Fees,,08/07/2020," 3,351.75 ",321100,Social Community Care Supplies & Services - Children
5387622,PARALLEL PARENTS,Childrens Services,Children's Services,Foster Carer Agency Fees,,08/07/2020," 5,142.90 ",321100,Social Community Care Supplies & Services - Children
5387646,PARALLEL PARENTS,Childrens Services,Children's Services,Foster Carer Agency Fees,,08/07/2020," 3,782.40 ",321100,Social Community Care Supplies & Services - Children
5387627,PARALLEL PARENTS,Childrens Services,Children's Services,Foster Carer Agency Fees,,08/07/2020," 3,684.60 ",321100,Social Community Care Supplies & Services - Children
5387635,PARALLEL PARENTS,Childrens Services,Children's Services,Foster Carer Agency Fees,,08/07/2020," 3,505.50 ",321100,Social Community Care Supplies & Services - Children
5387643,PARALLEL PARENTS,Childrens Services,Children's Services,Foster Carer Agency Fees,,08/07/2020," 3,505.50 ",321100,Social Community Care Supplies & Services - Children
5387667,PARALLEL PARENTS,Childrens Services,Children's Services,Foster Carer Agency Fees,,08/07/2020," 3,105.00 ",321100,Social Community Care Supplies & Services - Children
5387639,PARALLEL PARENTS,Childrens Services,Children's Services,Foster Carer Agency Fees,,08/07/2020," 3,108.00 ",321100,Social Community Care Supplies & Services - Children
5387666,PARALLEL PARENTS,Childrens Services,Children's Services,Foster Carer Agency Fees,,08/07/2020," 4,005.00 ",321100,Social Community Care Supplies & Services - Children
5387636,PARALLEL PARENTS,Childrens Services,Children's Services,Foster Carer Agency Fees,,08/07/2020," 4,105.20 ",321100,Social Community Care Supplies & Services - Children
5387648,PARALLEL PARENTS,Childrens Services,Children's Services,Foster Carer Agency Fees,,08/07/2020," 2,790.90 ",321100,Social Community Care Supplies & Services - Children
5387641,PARALLEL PARENTS,Childrens Services,Children's Services,Foster Carer Agency Fees,,08/07/2020," 2,490.72 ",321100,Social Community Care Supplies & Services - Children
5387658,TAMESIDE SPORTS TRUST,Childrens Services,Children's Services,Short Breaks (Respite),,08/07/2020," 2,550.00 ",290000,Arts & Leisure Services
5387660,TAMESIDE SPORTS TRUST,Childrens Services,Children's Services,Short Breaks (Respite),,08/07/2020," 2,550.00 ",290000,Arts & Leisure Services
5387657,TAMESIDE SPORTS TRUST,Childrens Services,Children's Services,Short Breaks (Respite),,08/07/2020," 4,800.00 ",290000,Arts & Leisure Services
5387659,TAMESIDE SPORTS TRUST,Childrens Services,Children's Services,Short Breaks (Respite),,08/07/2020," 1,350.00 ",290000,Arts & Leisure Services
5387663,TAMESIDE SPORTS TRUST,Childrens Services,Children's Services,Short Breaks (Respite),,08/07/2020," 1,350.00 ",290000,Arts & Leisure Services
5387661,TAMESIDE SPORTS TRUST,Childrens Services,Children's Services,Short Breaks (Respite),,08/07/2020," 1,275.00 ",290000,Arts & Leisure Services
5387662,TAMESIDE SPORTS TRUST,Childrens Services,Children's Services,Short Breaks (Respite),,08/07/2020, 675.00 ,290000,Arts & Leisure Services
5387680,PROGRESSIVE CARE LTD,Childrens Services,Children's Services,Childrens Homes Outside Local Authority Fees,,08/07/2020," 18,192.86 ",321000,Social Community Care Supplies & Services - Adult
5387677,PROGRESSIVE CARE LTD,Childrens Services,Children's Services,Childrens Homes Outside Local Authority Fees,,08/07/2020," 17,586.42 ",321000,Social Community Care Supplies & Services - Adult
5387678,PROGRESSIVE CARE LTD,Childrens Services,Children's Services,Childrens Homes Outside Local Authority Fees,,08/07/2020," 10,700.00 ",321000,Social Community Care Supplies & Services - Adult
5387786,TREASURED MEMORIES LTD,Operations and Neighbourhoods,Operations and Neighbourhoods,Plaques,,08/07/2020, 638.00 ,120000,Cemetery & Crematorium
5388035,EQUIFAX LTD,Hosted Services,Hosted Services,Professional Services,,08/07/2020, 961.62 ,200000,Financial Services
5387405,CAPSTONE FOSTER CARE,Childrens Services,Children's Services,Foster Carer Agency Fees,,08/07/2020," 3,288.74 ",321000,Social Community Care Supplies & Services - Adult
5387416,CAPSTONE FOSTER CARE,Childrens Services,Children's Services,Foster Carer Agency Fees,,08/07/2020," 3,963.66 ",321000,Social Community Care Supplies & Services - Adult
5387395,CAPSTONE FOSTER CARE,Childrens Services,Children's Services,Foster Carer Agency Fees,,08/07/2020," 3,534.00 ",321000,Social Community Care Supplies & Services - Adult
5387398,CAPSTONE FOSTER CARE,Childrens Services,Children's Services,Foster Carer Agency Fees,,08/07/2020," 3,534.00 ",321000,Social Community Care Supplies & Services - Adult
5387423,CAPSTONE FOSTER CARE,Childrens Services,Children's Services,Foster Carer Agency Fees,,08/07/2020," 3,534.00 ",321000,Social Community Care Supplies & Services - Adult
5387424,CAPSTONE FOSTER CARE,Childrens Services,Children's Services,Foster Carer Agency Fees,,08/07/2020," 3,283.83 ",321000,Social Community Care Supplies & Services - Adult
5387402,CAPSTONE FOSTER CARE,Childrens Services,Children's Services,Foster Carer Agency Fees,,08/07/2020," 3,924.02 ",321000,Social Community Care Supplies & Services - Adult
5387411,CAPSTONE FOSTER CARE,Childrens Services,Children's Services,Foster Carer Agency Fees,,08/07/2020," 3,924.02 ",321000,Social Community Care Supplies & Services - Adult
5387419,CAPSTONE FOSTER CARE,Childrens Services,Children's Services,Foster Carer Agency Fees,,08/07/2020," 3,924.02 ",321000,Social Community Care Supplies & Services - Adult
5387400,CAPSTONE FOSTER CARE,Childrens Services,Children's Services,Foster Carer Agency Fees,,08/07/2020," 3,809.86 ",321000,Social Community Care Supplies & Services - Adult
5387393,CAPSTONE FOSTER CARE,Childrens Services,Children's Services,Foster Carer Agency Fees,,08/07/2020," 3,963.66 ",321000,Social Community Care Supplies & Services - Adult
5387408,CAPSTONE FOSTER CARE,Childrens Services,Children's Services,Foster Carer Agency Fees,,08/07/2020," 3,809.86 ",321000,Social Community Care Supplies & Services - Adult
5387429,CAPSTONE FOSTER CARE,Childrens Services,Children's Services,Foster Carer Agency Fees,,08/07/2020," 3,809.86 ",321000,Social Community Care Supplies & Services - Adult
5387427,CAPSTONE FOSTER CARE,Childrens Services,Children's Services,Foster Carer Agency Fees,,08/07/2020," 3,498.66 ",321000,Social Community Care Supplies & Services - Adult
5387388,CAPSTONE FOSTER CARE,Childrens Services,Children's Services,Foster Carer Agency Fees,,08/07/2020," 3,534.00 ",321000,Social Community Care Supplies & Services - Adult
5387816,WILDE CONSULTING ENGINEERS,Place,Growth,Engineers Works,,08/07/2020," 32,977.97 ",150000,Consultancy
5388013,NEXUS MOVE LIMITED PREVIOUSLY RADIO CABS (ASHTON)LTD,Education,Children's Services,Transport Of Pupils,,08/07/2020, 858.00 ,360000,Public Transport
5387997,NEXUS MOVE LIMITED PREVIOUSLY RADIO CABS (ASHTON)LTD,Education,Children's Services,Transport Of Pupils,,08/07/2020," 1,802.00 ",360000,Public Transport
5387992,NEXUS MOVE LIMITED PREVIOUSLY RADIO CABS (ASHTON)LTD,Education,Children's Services,Transport Of Pupils,,08/07/2020," 1,344.00 ",360000,Public Transport
5388007,NEXUS MOVE LIMITED PREVIOUSLY RADIO CABS (ASHTON)LTD,Education,Children's Services,Transport Of Ola Pupils,,08/07/2020," 1,210.00 ",360000,Public Transport
5388012,NEXUS MOVE LIMITED PREVIOUSLY RADIO CABS (ASHTON)LTD,Education,Children's Services,Transport Of Pupils,,08/07/2020," 1,360.00 ",360000,Public Transport
5387990,NEXUS MOVE LIMITED PREVIOUSLY RADIO CABS (ASHTON)LTD,Operations and Neighbourhoods,Operations and Neighbourhoods,Hired Transport,,08/07/2020, 923.00 ,360000,Public Transport
5387968,NEXUS MOVE LIMITED PREVIOUSLY RADIO CABS (ASHTON)LTD,Operations and Neighbourhoods,Operations and Neighbourhoods,Hired Transport,,08/07/2020," 1,424.00 ",360000,Public Transport
5387991,NEXUS MOVE LIMITED PREVIOUSLY RADIO CABS (ASHTON)LTD,Education,Children's Services,Transport Of Pupils,,08/07/2020," 2,346.00 ",360000,Public Transport
5388014,NEXUS MOVE LIMITED PREVIOUSLY RADIO CABS (ASHTON)LTD,Education,Children's Services,Transport Of Pupils,,08/07/2020," 1,666.00 ",360000,Public Transport
5387951,NEXUS MOVE LIMITED PREVIOUSLY RADIO CABS (ASHTON)LTD,Operations and Neighbourhoods,Operations and Neighbourhoods,Hired Transport,,08/07/2020, 671.00 ,360000,Public Transport
5388005,NEXUS MOVE LIMITED PREVIOUSLY RADIO CABS (ASHTON)LTD,Education,Children's Services,Transport Of Pupils,,08/07/2020, 799.00 ,360000,Public Transport
5387993,NEXUS MOVE LIMITED PREVIOUSLY RADIO CABS (ASHTON)LTD,Operations and Neighbourhoods,Operations and Neighbourhoods,Hired Transport,,08/07/2020, 726.00 ,360000,Public Transport
5388008,NEXUS MOVE LIMITED PREVIOUSLY RADIO CABS (ASHTON)LTD,Education,Children's Services,Transport Of Pupils,,08/07/2020, 726.00 ,360000,Public Transport
5387970,NEXUS MOVE LIMITED PREVIOUSLY RADIO CABS (ASHTON)LTD,Education,Children's Services,Transport Of Ola Pupils,,08/07/2020," 2,112.00 ",360000,Public Transport
5388010,NEXUS MOVE LIMITED PREVIOUSLY RADIO CABS (ASHTON)LTD,Education,Children's Services,Transport Of Ola Pupils,,08/07/2020," 1,210.00 ",360000,Public Transport
5387937,NEXUS MOVE LIMITED PREVIOUSLY RADIO CABS (ASHTON)LTD,Operations and Neighbourhoods,Operations and Neighbourhoods,Hired Transport,,08/07/2020, 520.00 ,360000,Public Transport
5388009,NEXUS MOVE LIMITED PREVIOUSLY RADIO CABS (ASHTON)LTD,Education,Children's Services,Transport Of Pupils,,08/07/2020, 561.00 ,360000,Public Transport
5387988,NEXUS MOVE LIMITED PREVIOUSLY RADIO CABS (ASHTON)LTD,Education,Children's Services,Transport Of Ola Pupils,,08/07/2020, 540.00 ,360000,Public Transport
5387977,NEXUS MOVE LIMITED PREVIOUSLY RADIO CABS (ASHTON)LTD,Education,Children's Services,Transport Of Pupils,,08/07/2020," 1,088.00 ",360000,Public Transport
5388002,NEXUS MOVE LIMITED PREVIOUSLY RADIO CABS (ASHTON)LTD,Education,Children's Services,Transport Of Post 16 Pupils,,08/07/2020," 1,065.00 ",360000,Public Transport
5387975,NEXUS MOVE LIMITED PREVIOUSLY RADIO CABS (ASHTON)LTD,Education,Children's Services,Transport Of Pupils,,08/07/2020," 1,360.00 ",360000,Public Transport
5387973,NEXUS MOVE LIMITED PREVIOUSLY RADIO CABS (ASHTON)LTD,Education,Children's Services,Transport Of Pupils,,08/07/2020," 2,332.00 ",360000,Public Transport
5387986,NEXUS MOVE LIMITED PREVIOUSLY RADIO CABS (ASHTON)LTD,Education,Children's Services,Transport Of Ola Pupils,,08/07/2020," 3,080.00 ",360000,Public Transport
5388004,NEXUS MOVE LIMITED PREVIOUSLY RADIO CABS (ASHTON)LTD,Education,Children's Services,Transport Of Pupils,,08/07/2020," 1,632.00 ",360000,Public Transport
5387995,NEXUS MOVE LIMITED PREVIOUSLY RADIO CABS (ASHTON)LTD,Education,Children's Services,Transport Of Ola Pupils,,08/07/2020," 1,562.00 ",360000,Public Transport
5388001,NEXUS MOVE LIMITED PREVIOUSLY RADIO CABS (ASHTON)LTD,Education,Children's Services,Transport Of Ola Pupils,,08/07/2020," 1,568.00 ",360000,Public Transport
5387999,NEXUS MOVE LIMITED PREVIOUSLY RADIO CABS (ASHTON)LTD,Education,Children's Services,Transport Of Ola Pupils,,08/07/2020," 2,464.00 ",360000,Public Transport
5388011,NEXUS MOVE LIMITED PREVIOUSLY RADIO CABS (ASHTON)LTD,Education,Children's Services,Transport Of Post 16 Pupils,,08/07/2020," 1,210.00 ",360000,Public Transport
5387855,BEDSPACE RESOURCE LTD,Childrens Services,Children's Services,Living With Formal Support,,08/07/2020, 587.50 ,250000,Housing Management
5386700,MHR International UK Limited,People and Workforce Development,Governance,Computer Software,,08/07/2020," 22,978.20 ",270000,Information Communication Technology
5388153,NORTH WEST EMPLOYERS,Hosted Services,Hosted Services,Professional Services,,08/07/2020," 68,042.95 ",260000,Human Resources
5387857,CIPFA,Finance,Finance & IT,Training Course Costs,,08/07/2020," 1,900.00 ",200000,Financial Services
5388046,FENTONS MINIBUSES LTD,Education,Children's Services,Transport Of Ola Pupils,,08/07/2020," 2,805.00 ",360000,Public Transport
5387116,STAMFORD CARS UK LTD,Operations and Neighbourhoods,Operations and Neighbourhoods,Transport Of Pupils,,08/07/2020, 520.00 ,361510,Public Transport
5387564,STAMFORD CARS UK LTD,Operations and Neighbourhoods,Operations and Neighbourhoods,Transport Of Pupils,,08/07/2020," 1,705.00 ",361510,Public Transport
5387133,STAMFORD CARS UK LTD,Operations and Neighbourhoods,Operations and Neighbourhoods,Transport Of Pupils,,08/07/2020, 620.00 ,361510,Public Transport
5387157,STAMFORD CARS UK LTD,Operations and Neighbourhoods,Operations and Neighbourhoods,Transport Of Pupils,,08/07/2020," 1,980.00 ",361510,Public Transport
5387113,STAMFORD CARS UK LTD,Operations and Neighbourhoods,Operations and Neighbourhoods,Transport Of Pupils,,08/07/2020, 712.50 ,361510,Public Transport
5387111,STAMFORD CARS UK LTD,Operations and Neighbourhoods,Operations and Neighbourhoods,Transport Of Pupils,,08/07/2020, 715.00 ,361510,Public Transport
5387565,STAMFORD CARS UK LTD,Operations and Neighbourhoods,Operations and Neighbourhoods,Transport Of Pupils,,08/07/2020," 1,623.75 ",361510,Public Transport
5387126,STAMFORD CARS UK LTD,Operations and Neighbourhoods,Operations and Neighbourhoods,Transport Of Pupils,,08/07/2020," 1,125.00 ",361510,Public Transport
5387815,ISW CSC Limited,Childrens Services,Children's Services,Living With Formal Support,,09/07/2020, 950.00 ,260000,Human Resources
5387814,ISW CSC Limited,Childrens Services,Children's Services,Living With Formal Support,,09/07/2020, 870.00 ,260000,Human Resources
5387809,ISW CSC Limited,Childrens Services,Children's Services,Living With Formal Support,,09/07/2020," 1,250.00 ",260000,Human Resources
5387807,ISW CSC Limited,Childrens Services,Children's Services,Living With Formal Support,,09/07/2020," 1,250.00 ",260000,Human Resources
5387811,ISW CSC Limited,Childrens Services,Children's Services,Living With Formal Support,,09/07/2020," 1,310.00 ",260000,Human Resources
5387808,ISW CSC Limited,Childrens Services,Children's Services,Living With Formal Support,,09/07/2020," 1,250.00 ",260000,Human Resources
5388072,CFS CARE LIMITED,Childrens Services,Children's Services,Living With Formal Support,,09/07/2020," 4,714.29 ",321100,Social Community Care Supplies & Services - Children
5388080,CFS CARE LIMITED,Childrens Services,Children's Services,Living With Formal Support,,09/07/2020," 3,214.29 ",321100,Social Community Care Supplies & Services - Children
5388074,CFS CARE LIMITED,Childrens Services,Children's Services,Living With Formal Support,,09/07/2020," 4,500.00 ",321100,Social Community Care Supplies & Services - Children
5388081,CFS CARE LIMITED,Childrens Services,Children's Services,Living With Formal Support,,09/07/2020," 4,714.29 ",321100,Social Community Care Supplies & Services - Children
5388151,North West Assessments Limited,Childrens Services,Children's Services,Recruitment Campaign,,09/07/2020," 1,406.20 ",260000,Human Resources
5387828,Rite Directions Ltd,Childrens Services,Children's Services,Living With Formal Support,,09/07/2020," 6,000.00 ",390000,"Works - Construction, Repair & Maintenance"
5387829,Rite Directions Ltd,Childrens Services,Children's Services,Living With Formal Support,,09/07/2020, 983.15 ,390000,"Works - Construction, Repair & Maintenance"
5387013,Indie 16 Limited,Childrens Services,Children's Services,Living With Formal Support,,09/07/2020," 2,464.29 ",170000,Education
5387832,Supporting Futures LTD,Childrens Services,Children's Services,Childrens Homes Outside Local Authority Fees,,09/07/2020," 20,421.30 ",310000,Healthcare
5387753,Next Stage 4 Life Limited,Childrens Services,Children's Services,Childrens Homes Outside Local Authority Fees,,09/07/2020," 22,585.67 ",321000,Social Community Care Supplies & Services - Adult
5388154,THE PREVENTION FOUNDATION CIC,Individual Schools Budget,Children's Services,Professional Child Services,,09/07/2020, 720.00 ,-999999,Unclassifiable
5386791,KEYS PCE LTD,Childrens Services,Children's Services,Childrens Homes Outside Local Authority Fees,,09/07/2020," 12,178.57 ",321100,Social Community Care Supplies & Services - Children
5386793,KEYS PCE LTD,Childrens Services,Children's Services,Childrens Homes Outside Local Authority Fees,,09/07/2020," 21,921.43 ",321100,Social Community Care Supplies & Services - Children
5386790,KEYS PCE LTD,Childrens Services,Children's Services,Childrens Homes Outside Local Authority Fees,,09/07/2020," 19,928.57 ",321100,Social Community Care Supplies & Services - Children
5386792,KEYS PCE LTD,Childrens Services,Children's Services,Childrens Homes Outside Local Authority Fees,,09/07/2020," 17,492.86 ",321100,Social Community Care Supplies & Services - Children
5386794,KEYS PCE LTD,Childrens Services,Children's Services,Childrens Homes Outside Local Authority Fees,,09/07/2020," 17,492.86 ",321100,Social Community Care Supplies & Services - Children
5388221,AON RISK SOLUTIONS,Finance,Finance & IT,Professional Services,,09/07/2020," 2,550.00 ",LEGAL,Legal Services
5388099,OUR KIDS EYES,Childrens Services,Children's Services,Community Based Activities,,09/07/2020," 12,060.00 ",321000,Social Community Care Supplies & Services - Adult
5388108,OUR KIDS EYES,Childrens Services,Children's Services,Community Based Activities,,09/07/2020," 13,160.00 ",321000,Social Community Care Supplies & Services - Adult
5388117,OUR KIDS EYES,Childrens Services,Children's Services,Community Based Activities,,09/07/2020," 7,500.00 ",321000,Social Community Care Supplies & Services - Adult
5388104,OUR KIDS EYES,Childrens Services,Children's Services,Community Based Activities,,09/07/2020," 5,240.00 ",321000,Social Community Care Supplies & Services - Adult
5388095,ANIMAL WARDENS LTD,Operations and Neighbourhoods,Operations and Neighbourhoods,Professional Consultancy Services,,09/07/2020, 621.00 ,180000,Environmental Services
5387950,OAKFIELDS CHILDRENS CARE,Childrens Services,Children's Services,Childrens Homes Outside Local Authority Fees,,09/07/2020," 9,400.00 ",321100,Social Community Care Supplies & Services - Children
5387949,OAKFIELDS CHILDRENS CARE,Childrens Services,Children's Services,Childrens Homes Outside Local Authority Fees,,09/07/2020," 9,980.00 ",321100,Social Community Care Supplies & Services - Children
5388194,CYCLESCHEME LTD,Multiple Heads of Service,Multiple Strategic Directorates,Debits,,09/07/2020," 1,940.00 ",-999999,Unclassifiable
5387281,THE YABOO COMPANY LIMITED,Operations and Neighbourhoods,Operations and Neighbourhoods,Plaques,,09/07/2020," 1,740.00 ",120000,Cemetery & Crematorium
5387280,THE YABOO COMPANY LIMITED,Operations and Neighbourhoods,Operations and Neighbourhoods,Plaques,,09/07/2020," 1,040.00 ",120000,Cemetery & Crematorium
5387967,STEP AHEAD RESOURCE SERVICES,Adult Social Care,Adults,Homecare Fees,,09/07/2020, 950.00 ,321000,Social Community Care Supplies & Services - Adult
5387966,STEP AHEAD RESOURCE SERVICES,Adult Social Care,Adults,Homecare Fees,,09/07/2020, 950.00 ,321000,Social Community Care Supplies & Services - Adult
5387969,STEP AHEAD RESOURCE SERVICES,Adult Social Care,Adults,Homecare Fees,,09/07/2020," 1,150.00 ",321000,Social Community Care Supplies & Services - Adult
5387971,STEP AHEAD RESOURCE SERVICES,Adult Social Care,Adults,Homecare Fees,,09/07/2020," 1,150.00 ",321000,Social Community Care Supplies & Services - Adult
5387972,STEP AHEAD RESOURCE SERVICES,Adult Social Care,Adults,Homecare Fees,,09/07/2020," 1,150.00 ",321000,Social Community Care Supplies & Services - Adult
5387965,STEP AHEAD RESOURCE SERVICES,Adult Social Care,Adults,Homecare Fees,,09/07/2020, 950.00 ,321000,Social Community Care Supplies & Services - Adult
5388228,INSPIREDSPACES TAMESIDE (PROJECTCO2) LTD,Asset & Investment Partnership Management,Growth,Professional Services,,09/07/2020," 1,067.25 ",170000,Education
5388228,INSPIREDSPACES TAMESIDE (PROJECTCO2) LTD,Asset & Investment Partnership Management,Growth,Unitary Charge Payments,,09/07/2020," 853,229.06 ",170000,Education
5388228,INSPIREDSPACES TAMESIDE (PROJECTCO2) LTD,Asset & Investment Partnership Management,Growth,Utilities,,09/07/2020," 36,875.26 ",170000,Education
5387303,Redacted,Childrens Services,Children's Services,Childrens Homes Outside Local Authority Fees,Redacted Supplier,09/07/2020," 12,428.57 ",321100,Social Community Care Supplies & Services - Children
5387304,Redacted,Childrens Services,Children's Services,Childrens Homes Outside Local Authority Fees,Redacted Supplier,09/07/2020," 7,457.14 ",321100,Social Community Care Supplies & Services - Children
5387979,INTACT PROJECTS LTD,Childrens Services,Children's Services,Living With Formal Support,,09/07/2020," 1,590.00 ",-999999,Unclassifiable
5387980,INTACT PROJECTS LTD,Childrens Services,Children's Services,Living With Formal Support,,09/07/2020," 1,590.00 ",-999999,Unclassifiable
5387336,CARE 4 CHILDREN RESIDENTIAL SERVICES LTD,Childrens Services,Children's Services,Foster Carer Agency Fees,,09/07/2020," 3,104.96 ",321100,Social Community Care Supplies & Services - Children
5388231,Mark Hancock Limited,Education,Children's Services,Professional Services,,09/07/2020, 550.00 ,170000,Education
5387748,NATIONAL FOSTERING AGENCY LTD,Childrens Services,Children's Services,Foster Carer Agency Fees,,09/07/2020," 3,016.20 ",321100,Social Community Care Supplies & Services - Children
5387747,NATIONAL FOSTERING AGENCY LTD,Childrens Services,Children's Services,Foster Carer Agency Fees,,09/07/2020," 3,114.60 ",321100,Social Community Care Supplies & Services - Children
5388238,PYRAMID SCHOOLS (TAMESIDE) LTD,Asset & Investment Partnership Management,Growth,Utilities,,09/07/2020," 9,306.97 ",390000,"Works - Construction, Repair & Maintenance"
5388237,PYRAMID SCHOOLS (TAMESIDE) LTD,Asset & Investment Partnership Management,Growth,PFI Benchmarking,,09/07/2020," 3,837.92 ",390000,"Works - Construction, Repair & Maintenance"
5388237,PYRAMID SCHOOLS (TAMESIDE) LTD,Asset & Investment Partnership Management,Growth,PFI FM Fees and Insurance Costs,,09/07/2020," 5,658.91 ",390000,"Works - Construction, Repair & Maintenance"
5388237,PYRAMID SCHOOLS (TAMESIDE) LTD,Asset & Investment Partnership Management,Growth,Unitary Charge Payments,,09/07/2020," 277,304.75 ",390000,"Works - Construction, Repair & Maintenance"
5388236,PYRAMID SCHOOLS (TAMESIDE) LTD,Asset & Investment Partnership Management,Growth,PFI FM Fees and Insurance Costs,,09/07/2020," 4,456.77 ",390000,"Works - Construction, Repair & Maintenance"
5388240,UK FOSTERING LTD,Childrens Services,Children's Services,Foster Carer Agency Fees,,09/07/2020," 3,364.20 ",321100,Social Community Care Supplies & Services - Children
5388241,ISLE OF ANGLESEY COUNTY COUNCIL,Education,Children's Services,Other Local Authorities Fees,,09/07/2020," 10,741.66 ",171011,Education
5388205,Redacted,Education,Children's Services,Professional Services,,09/07/2020, 550.00 ,170000,Education
5388115,CARETECH COMMUNITY SERVICES LIMITED,Adult Social Care,Adults,Residential Home Long Stay Fees,,09/07/2020," 3,302.60 ",321000,Social Community Care Supplies & Services - Adult
5388120,CARETECH COMMUNITY SERVICES LIMITED,Adult Social Care,Adults,Residential Home Long Stay Fees,,09/07/2020," 4,044.00 ",321000,Social Community Care Supplies & Services - Adult
5384323,INSPIRE COMMUNITY SERVICES LIMITED,Childrens Services,Children's Services,Cash Grants,,09/07/2020," 3,001.58 ",170000,Education
5387529,Just One Recruitment and Training,Childrens Services,Children's Services,Living With Formal Support,,09/07/2020, 669.48 ,321000,Social Community Care Supplies & Services - Adult
5388244,Next Stage 'A Way Forward' Youth Development LTD,Childrens Services,Children's Services,Living With Formal Support,,09/07/2020," 2,325.00 ",321100,Social Community Care Supplies & Services - Children
5387010,Northern Community Pathways Limited,Childrens Services,Children's Services,Living With Formal Support,,09/07/2020," 2,204.20 ",321100,Social Community Care Supplies & Services - Children
5386992,Northern Community Pathways Limited,Childrens Services,Children's Services,Living With Formal Support,,09/07/2020," 20,400.00 ",321100,Social Community Care Supplies & Services - Children
5387003,Northern Community Pathways Limited,Childrens Services,Children's Services,Living With Formal Support,,09/07/2020," 2,540.00 ",321100,Social Community Care Supplies & Services - Children
5387009,Northern Community Pathways Limited,Childrens Services,Children's Services,Living With Formal Support,,09/07/2020," 2,600.00 ",321100,Social Community Care Supplies & Services - Children
5386991,Northern Community Pathways Limited,Childrens Services,Children's Services,Living With Formal Support,,09/07/2020," 3,714.40 ",321100,Social Community Care Supplies & Services - Children
5387008,Northern Community Pathways Limited,Childrens Services,Children's Services,Living With Formal Support,,09/07/2020," 2,540.00 ",321100,Social Community Care Supplies & Services - Children
5387278,Northern Community Pathways Limited,Childrens Services,Children's Services,Living With Formal Support,,09/07/2020," 2,540.00 ",321100,Social Community Care Supplies & Services - Children
5387284,Northern Community Pathways Limited,Childrens Services,Children's Services,Living With Formal Support,,09/07/2020," 2,616.20 ",321100,Social Community Care Supplies & Services - Children
5387002,Northern Community Pathways Limited,Childrens Services,Children's Services,Living With Formal Support,,09/07/2020," 2,940.00 ",321100,Social Community Care Supplies & Services - Children
5387117,Orange Grove Fostercare LTD,Childrens Services,Children's Services,Foster Carer Agency Fees,,09/07/2020," 3,436.88 ",321100,Social Community Care Supplies & Services - Children
5387266,Orange Grove Fostercare LTD,Childrens Services,Children's Services,Foster Carer Agency Fees,,09/07/2020," 3,441.30 ",321100,Social Community Care Supplies & Services - Children
5387551,Orange Grove Fostercare LTD,Childrens Services,Children's Services,Foster Carer Agency Fees,,09/07/2020," 3,372.47 ",321100,Social Community Care Supplies & Services - Children
5387509,Oasis Adolescent Services,Childrens Services,Children's Services,Childrens Homes Outside Local Authority Fees,,09/07/2020," 22,142.99 ",-999999,Unclassifiable
5387723,Excel Fostering Limited,Childrens Services,Children's Services,Foster Carer Agency Fees,,09/07/2020," 3,018.78 ",-999999,Unclassifiable
5387626,Compass Fostering North LTD,Childrens Services,Children's Services,Foster Carer Agency Fees,,09/07/2020," 3,347.29 ",321100,Social Community Care Supplies & Services - Children
5387634,Compass Fostering North LTD,Childrens Services,Children's Services,Foster Carer Agency Fees,,09/07/2020," 3,365.55 ",321100,Social Community Care Supplies & Services - Children
5387649,Compass Fostering North LTD,Childrens Services,Children's Services,Foster Carer Agency Fees,,09/07/2020," 3,365.55 ",321100,Social Community Care Supplies & Services - Children
5387629,Compass Fostering North LTD,Childrens Services,Children's Services,Foster Carer Agency Fees,,09/07/2020," 3,264.30 ",321100,Social Community Care Supplies & Services - Children
5387623,Compass Fostering North LTD,Childrens Services,Children's Services,Foster Carer Agency Fees,,09/07/2020," 3,337.27 ",321100,Social Community Care Supplies & Services - Children
5387642,Compass Fostering North LTD,Childrens Services,Children's Services,Foster Carer Agency Fees,,09/07/2020," 3,264.30 ",321100,Social Community Care Supplies & Services - Children
5387647,Compass Fostering North LTD,Childrens Services,Children's Services,Foster Carer Agency Fees,,09/07/2020," 3,216.53 ",321100,Social Community Care Supplies & Services - Children
5387653,Compass Fostering North LTD,Childrens Services,Children's Services,Foster Carer Agency Fees,,09/07/2020," 3,542.68 ",321100,Social Community Care Supplies & Services - Children
5387650,Compass Fostering North LTD,Childrens Services,Children's Services,Foster Carer Agency Fees,,09/07/2020," 3,195.08 ",321100,Social Community Care Supplies & Services - Children
5387645,Compass Fostering North LTD,Childrens Services,Children's Services,Foster Carer Agency Fees,,09/07/2020," 2,996.46 ",321100,Social Community Care Supplies & Services - Children
5387332,Exclusive Secure Care Services,Childrens Services,Children's Services,Childrens Homes Outside Local Authority Fees,,09/07/2020," 36,000.00 ",321100,Social Community Care Supplies & Services - Children
5387333,Exclusive Secure Care Services,Childrens Services,Children's Services,Childrens Homes Outside Local Authority Fees,,09/07/2020," 7,200.00 ",321100,Social Community Care Supplies & Services - Children
5387621,PARALLEL PARENTS,Childrens Services,Children's Services,Foster Carer Agency Fees,,09/07/2020," 3,203.40 ",321100,Social Community Care Supplies & Services - Children
5388219,NEXUS MOVE LIMITED PREVIOUSLY RADIO CABS (ASHTON)LTD,Education,Children's Services,Transport Of Post 16 Pupils,,09/07/2020," 1,520.00 ",360000,Public Transport
5387865,JACKSON & TAYLOR LTD,Housing,Director of Place,Mandatory Adaptations Grant (DFG),,09/07/2020," 4,745.00 ",390000,"Works - Construction, Repair & Maintenance"
5383881,BEDSPACE RESOURCE LTD,Childrens Services,Children's Services,Living With Formal Support,,09/07/2020, 500.00 ,250000,Housing Management
5387854,BEDSPACE RESOURCE LTD,Childrens Services,Children's Services,Living With Formal Support,,09/07/2020, 975.00 ,250000,Housing Management
5388054,MHR International UK Limited,People and Workforce Development,Governance,Professional Consultancy Services,,09/07/2020," 2,808.00 ",270000,Information Communication Technology
5388049,CORONA ENERGY RETAIL 4 LIMITED,Place,Growth,Gas,,09/07/2020," 1,349.91 ",370000,Utilities
5388166,Water Plus,Place,Growth,Water (Metered and Rates),,09/07/2020," 2,483.42 ",370000,Utilities
5388162,Water Plus,Operations and Neighbourhoods,Operations and Neighbourhoods,Water (Metered and Rates),,09/07/2020," 1,970.84 ",370000,Utilities
5388162,Water Plus,Place,Growth,Water (Metered and Rates),,09/07/2020," 1,627.77 ",370000,Utilities
5388041,K P DODD CONSTRUCTION LTD,Housing,Director of Place,Mandatory Adaptations Grant (DFG),,09/07/2020," 4,817.00 ",399999,"Works - Construction, Repair & Maintenance"
5388255,BARCLAYCARD COMMERCIAL,Childrens Services,Children's Services,Procurement Hub Holding Account,,09/07/2020," 18,120.54 ",200000,Financial Services
5388255,BARCLAYCARD COMMERCIAL,Individual Schools Budget,Children's Services,Procurement Hub Holding Account,,09/07/2020," 1,344.03 ",200000,Financial Services
5388255,BARCLAYCARD COMMERCIAL,Operations and Neighbourhoods,Operations and Neighbourhoods,Procurement Hub Holding Account,,09/07/2020," 1,172.87 ",200000,Financial Services
5388255,BARCLAYCARD COMMERCIAL,Hosted Services,Hosted Services,Procurement Hub Holding Account,,09/07/2020," 1,155.04 ",200000,Financial Services
5388255,BARCLAYCARD COMMERCIAL,Adult Social Care,Adults,Procurement Hub Holding Account,,09/07/2020," 1,183.97 ",200000,Financial Services
5388255,BARCLAYCARD COMMERCIAL,Place,Growth,Procurement Hub Holding Account,,09/07/2020, 539.74 ,200000,Financial Services
5388255,BARCLAYCARD COMMERCIAL,Digital Tameside,Finance & IT,Procurement Hub Holding Account,,09/07/2020," 1,348.85 ",200000,Financial Services
5388255,BARCLAYCARD COMMERCIAL,Policy and Communications,Governance,Procurement Hub Holding Account,,09/07/2020," 1,414.60 ",200000,Financial Services
5388255,BARCLAYCARD COMMERCIAL,Population Health,Population Health,Procurement Hub Holding Account,,09/07/2020," 1,046.80 ",200000,Financial Services
5388253,HMCTS (FOR PAYMENT BY ACCOUNT),Childrens Services,Children's Services,Court Fees,,09/07/2020," 23,935.00 ",-999999,Unclassifiable
5388268,CAPITA - NNDR REFUNDS,Contingency,Contingency,"COVID-19 Retail, Hospitality and Leisure 25k",,09/07/2020," 25,000.00 ",400000,Non 3rd Party spend  
5388268,CAPITA - NNDR REFUNDS,Contingency,Contingency,COVID-19 Small Business 10k,,09/07/2020," 160,000.00 ",400000,Non 3rd Party spend  
5388268,CAPITA - NNDR REFUNDS,Contingency,Contingency,"COVID-19 Retail, Hospitality and Leisure 10k",,09/07/2020," 30,000.00 ",400000,Non 3rd Party spend  
5388250,AD HOC CHAPS PAYMENT,Multiple Heads of Service,Multiple Strategic Directorates,Debits Superann Teachers,,09/07/2020," 1,155,601.42 ",400002,Chaps Payments
5388251,AD HOC CHAPS PAYMENT,(blank),(blank),Contribution,,09/07/2020," 9,677,419.35 ",400002,Chaps Payments
5388058,Complete Care & Enablement Services LTD,Adult Social Care,Adults,Residential Home Long Stay Fees,,10/07/2020," 5,189.80 ",321000,Social Community Care Supplies & Services - Adult
5388057,Complete Care & Enablement Services LTD,Adult Social Care,Adults,Residential Home Long Stay Fees,,10/07/2020," 4,515.80 ",321000,Social Community Care Supplies & Services - Adult
5388060,GIA-MAC Architects Limited,(blank),(blank),Engineers -External,,10/07/2020," 34,759.00 ",390000,"Works - Construction, Repair & Maintenance"
5388292,The Compost Bag Company Ltd,Operations and Neighbourhoods,Operations and Neighbourhoods,Purchase Wheeled Bins,,10/07/2020," 6,030.00 ",182014,Environmental Services
5388364,Capita Resourcing Ltd trading as Veredus,Childrens Services,Children's Services,Agency Staff,,10/07/2020," 3,082.50 ",-999999,Unclassifiable
5388222,APS Group,Operations and Neighbourhoods,Operations and Neighbourhoods,Professional Medical Services,,10/07/2020, 719.60 ,-999999,Unclassifiable
5388223,TMS Consultancy,Operations and Neighbourhoods,Operations and Neighbourhoods,Training Course Costs,,10/07/2020, 730.00 ,159999,Consultancy
5388323,YOUNG PEOPLE FIRST LIMITED,Childrens Services,Children's Services,Living With Formal Support,,10/07/2020," 1,225.00 ",321100,Social Community Care Supplies & Services - Children
5388075,CFS CARE LIMITED,Childrens Services,Children's Services,Living With Formal Support,,10/07/2020," 4,500.00 ",321100,Social Community Care Supplies & Services - Children
5387762,ROC Northwest Limited,Education,Children's Services,Independent School Fees,,10/07/2020," 13,499.52 ",321100,Social Community Care Supplies & Services - Children
5388295,G2V Recruitment Group Limited t/a Vivid Resourcing,Place,Growth,Agency Staff,,10/07/2020," 3,000.00 ",280000,Legal Services
5388294,G2V Recruitment Group Limited t/a Vivid Resourcing,Place,Growth,Agency Staff,,10/07/2020," 2,500.00 ",280000,Legal Services
5387927,18 St John Street Chambers,Childrens Services,Children's Services,Legal Fees,,10/07/2020, 500.00 ,280000,Legal Services
5387936,18 St John Street Chambers,Childrens Services,Children's Services,Legal Fees,,10/07/2020, 650.00 ,280000,Legal Services
5387938,18 St John Street Chambers,Childrens Services,Children's Services,Legal Fees,,10/07/2020, 650.00 ,280000,Legal Services
5387930,18 St John Street Chambers,Childrens Services,Children's Services,Legal Fees,,10/07/2020, 650.00 ,280000,Legal Services
5387934,18 St John Street Chambers,Childrens Services,Children's Services,Legal Fees,,10/07/2020, 650.00 ,280000,Legal Services
5387935,18 St John Street Chambers,Childrens Services,Children's Services,Legal Fees,,10/07/2020, 870.00 ,280000,Legal Services
5387932,18 St John Street Chambers,Childrens Services,Children's Services,Legal Fees,,10/07/2020, 650.00 ,280000,Legal Services
5387933,18 St John Street Chambers,Childrens Services,Children's Services,Legal Fees,,10/07/2020, 650.00 ,280000,Legal Services
5387876,Kenworthys Chambers,Childrens Services,Children's Services,Legal Fees,,10/07/2020, 600.00 ,280000,Legal Services
5387877,Kenworthys Chambers,Childrens Services,Children's Services,Legal Fees,,10/07/2020, 550.00 ,280000,Legal Services
5388351,Oyster Partnership,Place,Growth,Agency Staff,,10/07/2020," 2,200.00 ",261313,Human Resources
5388352,Oyster Partnership,Place,Growth,Agency Staff,,10/07/2020," 3,000.00 ",261313,Human Resources
5388242,A and A Property Development LTD,Childrens Services,Children's Services,Living Without Formal Support,,10/07/2020," 10,900.00 ",321300,Social Community Care Supplies & Services
5388402,BRYN MELYN CARE LIMITED,Childrens Services,Children's Services,Childrens Homes Outside Local Authority Fees,,10/07/2020," 5,955.00 ",321100,Social Community Care Supplies & Services - Children
5388297,GREENSCAPE,Operations and Neighbourhoods,Operations and Neighbourhoods,General Materials,,10/07/2020, 540.00 ,390000,"Works - Construction, Repair & Maintenance"
5387952,Randstad Public Services Limited,Education,Children's Services,Agency Staff,,10/07/2020, 572.50 ,170000,Education
5388375,Randstad Public Services Limited,Education,Children's Services,Agency Staff,,10/07/2020," 1,955.00 ",170000,Education
5388336,ORACLE CORPORATION UKLTD,Digital Tameside,Finance & IT,Computer Software,,10/07/2020," 3,075.96 ",270000,Information Communication Technology
5388198,PERSON CENTRED CARE SERVICES LIMITED,Adult Social Care,Adults,Homecare Fees,,10/07/2020," 8,237.53 ",310000,Healthcare
5385617,NEW BRIDGE HORIZONS,Adult Social Care,Adults,Day Centre Fees,,10/07/2020," 1,016.00 ",321000,Social Community Care Supplies & Services - Adult
5385616,NEW BRIDGE HORIZONS,Adult Social Care,Adults,Day Centre Fees,,10/07/2020," 1,625.00 ",321000,Social Community Care Supplies & Services - Adult
5388387,COMMUNITY INTEGRATED CARE,Adult Social Care,Adults,Homecare Fees,,10/07/2020," 2,012.40 ",321000,Social Community Care Supplies & Services - Adult
5388386,COMMUNITY INTEGRATED CARE,Adult Social Care,Adults,Homecare Fees,,10/07/2020," 2,012.40 ",321000,Social Community Care Supplies & Services - Adult
5387506,INTACT PROJECTS LTD,Childrens Services,Children's Services,Living With Formal Support,,10/07/2020," 1,590.00 ",-999999,Unclassifiable
5387508,INTACT PROJECTS LTD,Childrens Services,Children's Services,Living With Formal Support,,10/07/2020," 1,590.00 ",-999999,Unclassifiable
5384694,CARE 4 CHILDREN RESIDENTIAL SERVICES LTD,Childrens Services,Children's Services,Foster Carer Agency Fees,,10/07/2020," 3,351.90 ",321100,Social Community Care Supplies & Services - Children
5387897,GATEWAY QUALIFICATIONS,Place,Growth,Subscriptions,,10/07/2020, 750.00 ,200000,Financial Services
5388285,NEW CHARTER HOUSING TRUST GROUP,Adult Social Care,Adults,Non-Authority Accommodation Rental,,10/07/2020," 5,874.20 ",-999999,Unclassifiable
5388284,NEW CHARTER HOUSING TRUST GROUP,Adult Social Care,Adults,Non-Authority Accommodation Rental,,10/07/2020," 1,661.30 ",-999999,Unclassifiable
5388283,NEW CHARTER HOUSING TRUST GROUP,Adult Social Care,Adults,Non-Authority Accommodation Rental,,10/07/2020," 1,279.60 ",-999999,Unclassifiable
5388286,NEW CHARTER HOUSING TRUST GROUP,Adult Social Care,Adults,Non-Authority Accommodation Rental,,10/07/2020," 5,038.00 ",-999999,Unclassifiable
5388306,SAFFER COOPER CONSULTANCY,(blank),(blank),External  Consultants,,10/07/2020," 1,386.00 ",150000,Consultancy
5388329,INSPIREDSPACES TAMESIDE LTD,Place,Growth,Professional Services,,10/07/2020," 22,034.15 ",390000,"Works - Construction, Repair & Maintenance"
5388332,INSPIREDSPACES TAMESIDE LTD,(blank),(blank),Fees,,10/07/2020," 13,668.61 ",390000,"Works - Construction, Repair & Maintenance"
5388239,UK FOSTERING LTD,Childrens Services,Children's Services,Foster Carer Agency Fees,,10/07/2020," 3,471.30 ",321100,Social Community Care Supplies & Services - Children
460405,WOODLAND CARE HOME,Adult Social Care,Adults,Nursing Home Long Stay Fees,,10/07/2020," 14,092.57 ",321000,Social Community Care Supplies & Services - Adult
5388344,Redacted,Childrens Services,Children's Services,Other Accommodation Related Costs,,10/07/2020, 696.00 ,-999999,Unclassifiable
5388098,CARETECH COMMUNITY SERVICES LIMITED,Adult Social Care,Adults,Residential Home Long Stay Fees,,10/07/2020," 6,605.20 ",321000,Social Community Care Supplies & Services - Adult
5388106,CARETECH COMMUNITY SERVICES LIMITED,Adult Social Care,Adults,Residential Home Long Stay Fees,,10/07/2020," 6,605.20 ",321000,Social Community Care Supplies & Services - Adult
5388111,CARETECH COMMUNITY SERVICES LIMITED,Adult Social Care,Adults,Residential Home Long Stay Fees,,10/07/2020," 8,917.04 ",321000,Social Community Care Supplies & Services - Adult
5388109,CARETECH COMMUNITY SERVICES LIMITED,Adult Social Care,Adults,Residential Home Long Stay Fees,,10/07/2020," 5,142.64 ",321000,Social Community Care Supplies & Services - Adult
5388121,CARETECH COMMUNITY SERVICES LIMITED,Adult Social Care,Adults,Residential Home Long Stay Fees,,10/07/2020," 3,774.40 ",321000,Social Community Care Supplies & Services - Adult
5388096,CARETECH COMMUNITY SERVICES LIMITED,Adult Social Care,Adults,Residential Home Long Stay Fees,,10/07/2020," 2,830.80 ",321000,Social Community Care Supplies & Services - Adult
5388103,CARETECH COMMUNITY SERVICES LIMITED,Adult Social Care,Adults,Residential Home Long Stay Fees,,10/07/2020," 2,830.80 ",321000,Social Community Care Supplies & Services - Adult
5388094,CARETECH COMMUNITY SERVICES LIMITED,Adult Social Care,Adults,Residential Home Long Stay Fees,,10/07/2020," 2,099.52 ",321000,Social Community Care Supplies & Services - Adult
5388092,CARETECH COMMUNITY SERVICES LIMITED,Adult Social Care,Adults,Residential Home Long Stay Fees,,10/07/2020," 6,133.40 ",321000,Social Community Care Supplies & Services - Adult
5388243,CONSULTATION INSTITUTE,Policy and Communications,Governance,Training Course Costs,,10/07/2020," 4,300.00 ",150000,Consultancy
5387520,LIBERTY SUPPORT SERVICES LTD,Adult Social Care,Adults,Homecare Fees,,10/07/2020," 17,192.00 ",321000,Social Community Care Supplies & Services - Adult
5388119,Smartway Health and Social Care Limited,Adult Social Care,Adults,Homecare Fees,,10/07/2020," 3,607.06 ",321000,Social Community Care Supplies & Services - Adult
5388359,NMA Travel LTD,Education,Children's Services,Transport Of Post 16 Pupils,,10/07/2020," 2,014.00 ",360000,Public Transport
5387268,Orange Grove Fostercare LTD,Childrens Services,Children's Services,Foster Carer Agency Fees,,10/07/2020," 3,436.88 ",321100,Social Community Care Supplies & Services - Children
5388307,Exclusec Security Solutions Ltd,Contingency,Contingency,Security Services,,10/07/2020," 2,475.00 ",-999999,Unclassifiable
5387620,Compass Fostering North LTD,Childrens Services,Children's Services,Foster Carer Agency Fees,,10/07/2020," 3,486.11 ",321100,Social Community Care Supplies & Services - Children
5388326,ARCO LIMITED,Operations and Neighbourhoods,Operations and Neighbourhoods,Protective Clothing,,10/07/2020," 1,169.30 ",140000,Clothing
5388289,STOCKPORT CP  SOCIETY,Adult Social Care,Adults,Homecare Fees,,10/07/2020," 1,891.80 ",321000,Social Community Care Supplies & Services - Adult
5385855,STOCKPORT CP  SOCIETY,Adult Social Care,Adults,Day Centre Fees,,10/07/2020," 1,165.28 ",321000,Social Community Care Supplies & Services - Adult
5388031,MANCHESTER METROPOLITAN UNIVERSITY,People and Workforce Development,Governance,Training Course Costs,,10/07/2020, 750.00 ,UNCLASS,Unclassifiable
5388290,MOSSCARE HOUSING LTD,Adult Social Care,Adults,Non-Authority Accommodation Rental,,10/07/2020," 30,570.37 ",321000,Social Community Care Supplies & Services - Adult
5387679,PROGRESSIVE CARE LTD,Childrens Services,Children's Services,Childrens Homes Outside Local Authority Fees,,10/07/2020," 11,464.29 ",321000,Social Community Care Supplies & Services - Adult
5388213,CAPITA BUSINESS SERVICES LIMITED,Exchequer,Governance,Computer Software Maintenance Costs,,10/07/2020, 710.34 ,270000,Information Communication Technology
5388312,SWIIS FOSTER CARE LTD,Childrens Services,Children's Services,Foster Carer Agency Fees,,10/07/2020, 703.92 ,321100,Social Community Care Supplies & Services - Children
5388311,SWIIS FOSTER CARE LTD,Childrens Services,Children's Services,Foster Carer Agency Fees,,10/07/2020, 658.84 ,321100,Social Community Care Supplies & Services - Children
5388310,SWIIS FOSTER CARE LTD,Childrens Services,Children's Services,Foster Carer Agency Fees,,10/07/2020, 899.99 ,321100,Social Community Care Supplies & Services - Children
5388314,SWIIS FOSTER CARE LTD,Childrens Services,Children's Services,Foster Carer Agency Fees,,10/07/2020, 693.49 ,321100,Social Community Care Supplies & Services - Children
5388313,SWIIS FOSTER CARE LTD,Childrens Services,Children's Services,Foster Carer Agency Fees,,10/07/2020, 760.48 ,321100,Social Community Care Supplies & Services - Children
5388229,BEDSPACE RESOURCE LTD,Childrens Services,Children's Services,Living With Formal Support,,10/07/2020, 975.00 ,250000,Housing Management
5386898,Redacted,Education,Children's Services,Independent School Fees,Redacted Supplier,10/07/2020," 3,542.99 ",171011,Education
5388248,TAMESIDE ARTS LTD,Adult Social Care,Adults,Professional Services,,10/07/2020," 2,933.44 ",290000,Arts & Leisure Services
5387540,Bloom Procurement Services Limited,Corporate Costs,Corporate Costs,Professional Consultancy Services,,13/07/2020," 36,000.00 ",150000,Consultancy
5386653,Bloom Procurement Services Limited,Tameside Investment Partnership,Director of Place,Consultancies,,13/07/2020," 15,000.00 ",150000,Consultancy
5388264,Furniture Resource Centre Ltd,Operations and Neighbourhoods,Operations and Neighbourhoods,"Fixtures, Fittings & Furniture Purchase",,13/07/2020, 659.00 ,UNCLASS,Unclassifiable
5388296,KEYS PCE LTD,Childrens Services,Children's Services,Childrens Homes Outside Local Authority Fees,,13/07/2020," 6,080.00 ",321100,Social Community Care Supplies & Services - Children
5388371,R&L ESTATES LIMITED,Operations and Neighbourhoods,Operations and Neighbourhoods,Other Accommodation Related Costs,,13/07/2020," 7,500.00 ",202000,Financial Services
5387942,Worth-It CIC,Population Health,Population Health,Professional Services,,13/07/2020," 9,300.00 ",311600,Healthcare
5386615,BRYN MELYN CARE LIMITED,Childrens Services,Children's Services,Childrens Homes Outside Local Authority Fees,,13/07/2020," 22,772.57 ",321100,Social Community Care Supplies & Services - Children
5388084,FOSTERING SOLUTIONS LTD,Childrens Services,Children's Services,Foster Carer Agency Fees,,13/07/2020," 3,609.33 ",321000,Social Community Care Supplies & Services - Adult
5388079,FOSTERING SOLUTIONS LTD,Childrens Services,Children's Services,Foster Carer Agency Fees,,13/07/2020," 3,675.67 ",321000,Social Community Care Supplies & Services - Adult
5388179,FOSTERING SOLUTIONS LTD,Childrens Services,Children's Services,Foster Carer Agency Fees,,13/07/2020," 2,924.09 ",321000,Social Community Care Supplies & Services - Adult
5388076,FOSTERING SOLUTIONS LTD,Childrens Services,Children's Services,Foster Carer Agency Fees,,13/07/2020," 2,987.11 ",321000,Social Community Care Supplies & Services - Adult
5388082,FOSTERING SOLUTIONS LTD,Childrens Services,Children's Services,Foster Carer Agency Fees,,13/07/2020," 2,924.09 ",321000,Social Community Care Supplies & Services - Adult
5388077,FOSTERING SOLUTIONS LTD,Childrens Services,Children's Services,Foster Carer Agency Fees,,13/07/2020," 3,565.31 ",321000,Social Community Care Supplies & Services - Adult
5388302,GRAFTON PREPARATORY SCHOOL LTD,Education,Children's Services,Independent School Fees,,13/07/2020," 1,647.00 ",400000,Non 3rd Party spend  
5387341,TRAVELERS INSURANCE COMPANY LTD,Multiple Heads of Service,Multiple Strategic Directorates,Claims Settled,,13/07/2020," 2,370.00 ",200000,Financial Services
5388403,Randstad Public Services Limited,Education,Children's Services,Agency Staff,,13/07/2020, 572.50 ,170000,Education
5388301,Randstad Public Services Limited,Individual Schools Budget,Children's Services,Agency Staff,,13/07/2020, 840.00 ,170000,Education
5388298,Randstad Public Services Limited,Individual Schools Budget,Children's Services,Agency Staff,,13/07/2020, 840.00 ,170000,Education
5388376,Randstad Public Services Limited,Education,Children's Services,Professional Services,,13/07/2020, 511.85 ,170000,Education
5387958,OLDHAM COUNCIL,Population Health,Population Health,Professional Services,,13/07/2020," 1,800.00 ",-999999,Unclassifiable
5388381,Redacted,Childrens Services,Children's Services,Childrens Homes Outside Local Authority Fees,Redacted Supplier,13/07/2020," 16,363.66 ",321000,Social Community Care Supplies & Services - Adult
5388202,SALFORD CITY COUNCIL,Population Health,Population Health,Professional Services,,13/07/2020," 22,560.00 ",UNCLASS,Unclassifiable
5388388,TOUGH COOKIES EDUCATION LTD,Population Health,Population Health,Professional Services,,13/07/2020," 2,625.00 ",170000,Education
5388330,INSPIREDSPACES TAMESIDE LTD,Place,Growth,Sub-contractor Services,,13/07/2020, 612.00 ,390000,"Works - Construction, Repair & Maintenance"
5388471,DHL Parcel UK Ltd (UK Mail),Exchequer,Governance,Printing And Stationery,,13/07/2020," 2,826.93 ",300000,Mail Services
5388396,International Press Cutting Bureau,Policy and Communications,Governance,Licences,,13/07/2020," 1,440.00 ",270000,Information Communication Technology
5387259,Orange Grove Fostercare LTD,Childrens Services,Children's Services,Foster Carer Agency Fees,,13/07/2020," 3,384.52 ",321100,Social Community Care Supplies & Services - Children
5388210,MANCHESTER CITY COUNCIL,Population Health,Population Health,Professional Services,,13/07/2020," 33,605.00 ",UNCLASS,Unclassifiable
5386284,Redacted,Contingency,Contingency,Other Accommodation Related Costs,,13/07/2020," 4,498.00 ",UNCLASS,Unclassifiable
5388527,Redacted,Quality and Safeguarding,Quality and Safeguarding,Professional Services,,13/07/2020, 861.30 ,-999999,Unclassifiable
5388269,PERPETUAL FOSTERING,Childrens Services,Children's Services,Foster Carer Agency Fees,,13/07/2020," 4,340.00 ",321100,Social Community Care Supplies & Services - Children
5388291,AUTUMN (UK) 2017 LIMITED,Housing,Director of Place,Mandatory Adaptations Grant (DFG),,13/07/2020," 7,410.00 ",321000,Social Community Care Supplies & Services - Adult
5388444,INSIGHT DIRECT (UK) LIMITED,(blank),(blank),Computer Software,,13/07/2020," 2,111.40 ",270000,Information Communication Technology
470866,AGGREGATE INDUSTRIES UK LIMITED,Operations and Neighbourhoods,Operations and Neighbourhoods,General Materials,,14/07/2020," 13,591.82 ",230000,Highway Equipment & Materials
470866,ARCO LIMITED,Civil Engineers,Director of Place,Debits Goods Received,,14/07/2020," 1,707.50 ",140000,Clothing
470866,EAGLE CIVIL ENGINEERING LTD,Operations and Neighbourhoods,Operations and Neighbourhoods,Sub-contractor Services,,14/07/2020," 36,192.54 ",391411,"Works - Construction, Repair & Maintenance"
470866,ELECTRICITY NORTH WEST LTD,Operations and Neighbourhoods,Operations and Neighbourhoods,Sub-contractor Services,,14/07/2020," 1,570.15 ",370000,Utilities
470866,KENNY BROTHERS,Operations and Neighbourhoods,Operations and Neighbourhoods,Sub-contractor Services,,14/07/2020," 5,800.00 ",391411,"Works - Construction, Repair & Maintenance"
470866,PG FABRICATIONS,Operations and Neighbourhoods,Operations and Neighbourhoods,General Materials,,14/07/2020," 2,050.00 ",390000,"Works - Construction, Repair & Maintenance"
470866,TARMAC CENTRAL LIMITED,Operations and Neighbourhoods,Operations and Neighbourhoods,General Materials,,14/07/2020," 3,331.31 ",230000,Highway Equipment & Materials
470866,WOLSELEY UK LTD,Civil Engineers,Director of Place,Debits Goods Received,,14/07/2020, 709.45 ,230000,Highway Equipment & Materials
470866,WOLSELEY UK LTD,Operations and Neighbourhoods,Operations and Neighbourhoods,General Materials,,14/07/2020," 3,363.54 ",230000,Highway Equipment & Materials
470866,GRAFTON MERCHANTING GB LTD,Operations and Neighbourhoods,Operations and Neighbourhoods,General Materials,,14/07/2020," 1,755.90 ",100000,Building Construction Materials
470866,JONES LIGHTING LTD,Operations and Neighbourhoods,Operations and Neighbourhoods,Sub-contractor Services,,14/07/2020," 2,990.31 ",359999,Street & Traffic Management
470866,1st Choice Grab Hire LTD,Operations and Neighbourhoods,Operations and Neighbourhoods,Sub-contractor Services,,14/07/2020," 2,000.00 ",230000,Highway Equipment & Materials
470866,STALYBRIDGE READYMIX LTD,Operations and Neighbourhoods,Operations and Neighbourhoods,General Materials,,14/07/2020, 592.00 ,231200,Highway Equipment & Materials
470866,INSTARMAC GROUP PLC,Civil Engineers,Director of Place,Debits Goods Received,,14/07/2020," 1,182.00 ",230000,Highway Equipment & Materials
470866,Holroyds Skip Hire Limited,Operations and Neighbourhoods,Operations and Neighbourhoods,Sub-contractor Services,,14/07/2020," 3,800.00 ",150000,Consultancy
470866,NORTHWEST UTILITY SOLUTIONS LTD,Operations and Neighbourhoods,Operations and Neighbourhoods,Sub-contractor Services,,14/07/2020," 23,020.00 ",370000,Utilities
470866,TRAFFIC DIRECT LTD,Operations and Neighbourhoods,Operations and Neighbourhoods,Sub-contractor Services,,14/07/2020," 4,012.50 ",350000,Street & Traffic Management
470866,VIRIDOR,Operations and Neighbourhoods,Operations and Neighbourhoods,Tipping Facility Fees,,14/07/2020," 19,474.65 ",180000,Environmental Services
470866,MALLATITE LTD,Civil Engineers,Director of Place,Debits Goods Received,,14/07/2020," 6,033.00 ",230000,Highway Equipment & Materials
470866,ROWAN ASHWORTH LIMITED,Operations and Neighbourhoods,Operations and Neighbourhoods,Sub-contractor Services,,14/07/2020," 7,225.00 ",-999999,Unclassifiable
470866,GARIC LTD,Operations and Neighbourhoods,Operations and Neighbourhoods,General Materials,,14/07/2020," 2,631.20 ",-999999,Unclassifiable
470866,LIMELIGHT SIGNS LIMITED,Civil Engineers,Director of Place,Debits Goods Received,,14/07/2020, 650.00 ,230000,Highway Equipment & Materials
470866,LIMELIGHT SIGNS LIMITED,(blank),(blank),General Materials,,14/07/2020, 567.70 ,230000,Highway Equipment & Materials
470866,LIMELIGHT SIGNS LIMITED,Operations and Neighbourhoods,Operations and Neighbourhoods,General Materials,,14/07/2020, 626.65 ,230000,Highway Equipment & Materials
3250769,ARNOLD PLANT HIRE LTD,Operations and Neighbourhoods,Operations and Neighbourhoods,Additional Hire,,14/07/2020," 1,312.00 ",UNCLASS,Unclassifiable
3250769,ARNOLD PLANT HIRE LTD,Operations and Neighbourhoods,Operations and Neighbourhoods,Workshop Recharges including Misuse & Damage Costs,,14/07/2020," 6,480.00 ",UNCLASS,Unclassifiable
3250769,BURNT TREE GROUP LIMITED,Operations and Neighbourhoods,Operations and Neighbourhoods,Additional Hire,,14/07/2020," 4,982.88 ",380000,Vehicle Management
3250769,DENNIS EAGLE LTD,Transport,Director of Place,Debits Goods Received,,14/07/2020," 2,006.12 ",380000,Vehicle Management
3250769,DENNIS EAGLE LTD,Operations and Neighbourhoods,Operations and Neighbourhoods,General Materials,,14/07/2020," 1,347.99 ",380000,Vehicle Management
3250769,F. R. SHARROCK LIMITED,Operations and Neighbourhoods,Operations and Neighbourhoods,Sub-contractor Services,,14/07/2020," 1,941.70 ",908001,Public Bodies
3250769,G B OILS TA CARLTON FUELS,Transport,Director of Place,Diesel Fuel,,14/07/2020," 36,394.58 ",380000,Vehicle Management
3250769,G B OILS TA CARLTON FUELS,Transport,Director of Place,Petrol Fuel,,14/07/2020," 2,363.59 ",380000,Vehicle Management
3250769,Teletrac Navman UK LTD (in corporating Navman Wireless UK LTD),Operations and Neighbourhoods,Operations and Neighbourhoods,General Equipment Repair & Maintenance,,14/07/2020," 5,385.33 ",360000,Public Transport
3250769,FUCHS LUBRICANTS UK PLC,Transport,Director of Place,Debits Goods Received,,14/07/2020," 3,155.00 ",390000,"Works - Construction, Repair & Maintenance"
3250769,LEEDS COMMERCIAL LTD T/A LC VEHICLE HIRE,Operations and Neighbourhoods,Operations and Neighbourhoods,Additional Hire,,14/07/2020," 4,574.00 ",380000,Vehicle Management
3250769,LEEDS COMMERCIAL LTD T/A LC VEHICLE HIRE,Operations and Neighbourhoods,Operations and Neighbourhoods,Replacement Hire,,14/07/2020, 855.00 ,380000,Vehicle Management
3250769,TRUCTYRE ATS,Operations and Neighbourhoods,Operations and Neighbourhoods,Tyre Costs,,14/07/2020," 1,457.23 ",380000,Vehicle Management
3250769,RIVERSIDE TRUCK RENTAL LIMITED,Operations and Neighbourhoods,Operations and Neighbourhoods,Additional Hire,,14/07/2020," 14,857.00 ",380000,Vehicle Management
3250769,T & C MOTOR PANELS LIMITED,Operations and Neighbourhoods,Operations and Neighbourhoods,Insurance Claim Excess,,14/07/2020, 750.00 ,381400,Vehicle Management
3250769,HTF TYRE SERVICES LTD,Operations and Neighbourhoods,Operations and Neighbourhoods,Tyre Costs,,14/07/2020," 1,006.87 ",380000,Vehicle Management
3250769,BRIDGE ENGINEERING SERVICES LTD,Operations and Neighbourhoods,Operations and Neighbourhoods,Consumable Materials,,14/07/2020, 740.00 ,100000,Building Construction Materials
3250769,M6 Hydraulics Limited,Operations and Neighbourhoods,Operations and Neighbourhoods,General Materials,,14/07/2020, 802.40 ,380000,Vehicle Management
3250769,VISION TECHNIQUES LTD,Operations and Neighbourhoods,Operations and Neighbourhoods,Sub-contractor Services,,11/09/2020, 900.00 ,380000,Vehicle Management
5388472,Redacted,Childrens Services,Children's Services,Other Accommodation Related Costs,,14/07/2020," 5,504.00 ",400000,Non 3rd Party spend  
5388557,ISW CSC Limited,Childrens Services,Children's Services,Living With Formal Support,,14/07/2020, 890.00 ,260000,Human Resources
5388532,Rossendale Scaffolding & Equipment Hire Ltd t/a Heywood Scaffolding Services,(blank),(blank),External  Consultants,,14/07/2020," 3,359.50 ",100000,Building Construction Materials
5388087,iCare Solutions,Adult Social Care,Adults,Homecare Fees,,14/07/2020," 8,370.17 ",310000,Healthcare
5388399,Beacon Counselling,People and Workforce Development,Governance,Professional Medical Services,,14/07/2020," 1,600.00 ",310000,Healthcare
5385215,Haven Care LTD,Childrens Services,Children's Services,Childrens Homes Outside Local Authority Fees,,14/07/2020," 19,906.34 ",111230,Catering
5386967,Haven Care LTD,Childrens Services,Children's Services,Childrens Homes Outside Local Authority Fees,,14/07/2020," 19,264.20 ",111230,Catering
5383127,OAKFIELD PSYCHOLOGICAL SERVICES,Childrens Services,Children's Services,Childrens Homes Outside Local Authority Fees,,14/07/2020," 11,887.54 ",-999999,Unclassifiable
5388616,ROBERT LAING t/a GLOSSOP CARAVANS LTD,Operations and Neighbourhoods,Operations and Neighbourhoods,Other Accommodation Related Costs,,14/07/2020, 640.00 ,400000,Non 3rd Party spend  
5388537,ADOPTION MATTERS NORTHWEST,Childrens Services,Children's Services,Adoption Agency Fees,,14/07/2020," 20,010.00 ",321100,Social Community Care Supplies & Services - Children
5388538,ADOPTION MATTERS NORTHWEST,Childrens Services,Children's Services,Adoption Agency Fees,,14/07/2020," 1,778.00 ",321100,Social Community Care Supplies & Services - Children
5388477,PAYPARTNERS LTD (MONTHLY),Adult Social Care,Adults,Sub-contractor Services,,14/07/2020," 5,164.00 ",321000,Social Community Care Supplies & Services - Adult
29000097,BOOTS UK LTD,Population Health,Population Health,Local Enhanced Services,,14/07/2020, 814.95 ,319999,Healthcare
29000097,WELL PHARMACY,Population Health,Population Health,Local Enhanced Services,,14/07/2020," 1,049.77 ",310000,Healthcare
29000097,QUEEN STREET PHARMACY LTD T/A ASHTON PCC PHARMACY,Population Health,Population Health,Local Enhanced Services,,14/07/2020," 11,396.02 ",151510,Healthcare
5388478,AUTISM INITIATIVES (UK),Adult Social Care,Adults,Homecare Fees,,14/07/2020," 2,899.68 ",321100,Social Community Care Supplies & Services - Children
5388479,AUTISM INITIATIVES (UK),Adult Social Care,Adults,Homecare Fees,,14/07/2020, 908.28 ,321100,Social Community Care Supplies & Services - Children
5388480,AUTISM INITIATIVES (UK),Adult Social Care,Adults,Homecare Fees,,14/07/2020," 2,899.68 ",321100,Social Community Care Supplies & Services - Children
5387544,TAMESIDE AND GLOSSOP INTEGRATED CARE NHS FOUNDATION TRUST,Adult Social Care,Adults,Agency Staff,,14/07/2020," 8,514.86 ",310000,Healthcare
5388485,G4S CASH SOLUTIONS (UK) LIMITED,Finance,Finance & IT,Security Services,,14/07/2020, 788.12 ,190000,Facilities & Management Services
5388404,PRD PROPERTY SERVICES LTD,Governance,Governance,Legal Fees,,14/07/2020," 6,420.00 ",190000,Facilities & Management Services
5388257,QUEST MEDIA NETWORKS LTD,Operations and Neighbourhoods,Operations and Neighbourhoods,Statutory Advertising,,14/07/2020," 1,620.00 ",-999999,Unclassifiable
5387810,QUEST MEDIA NETWORKS LTD,Operations and Neighbourhoods,Operations and Neighbourhoods,Statutory Advertising,,14/07/2020," 1,395.00 ",-999999,Unclassifiable
5388518,COLLEGE OF POLICING,Hosted Services,Hosted Services,Training Course Costs,,14/07/2020," 3,955.50 ",260000,Human Resources
5385483,NORTHWEST RADIO COMMUNICATIONS LTD,Place,Growth,Security Services,,14/07/2020," 1,500.00 ",270000,Information Communication Technology
5388334,INSPIREDSPACES TAMESIDE LTD,(blank),(blank),New Accommodation Works,,14/07/2020," 14,216.95 ",390000,"Works - Construction, Repair & Maintenance"
5388681,BARNARDO SERVICES LIMITED,Childrens Services,Children's Services,Professional Services,,14/07/2020," 18,555.83 ",321100,Social Community Care Supplies & Services - Children
5386022,DHL Parcel UK Ltd (UK Mail),Adult Social Care,Adults,Printing And Stationery,,14/07/2020, 677.75 ,300000,Mail Services
5386707,DHL Parcel UK Ltd (UK Mail),Adult Social Care,Adults,Printing And Stationery,,14/07/2020," 1,811.42 ",300000,Mail Services
5388397,TRAFFORD MBC,Finance,Finance & IT,Professional Consultancy Services,,14/07/2020," 108,750.00 ",UNCLASS,Unclassifiable
5388523,THE UNIVERSITY OF MANCHESTER,Education,Children's Services,Training Course Costs,,14/07/2020," 8,157.00 ",170000,Education
5388524,THE UNIVERSITY OF MANCHESTER,Education,Children's Services,Training Course Costs,,14/07/2020," 7,975.00 ",170000,Education
5378893,GREATER MANCHESTER COMBINED AUTHORITY,Operations and Neighbourhoods,Operations and Neighbourhoods,Passenger Transport Levy,,14/07/2020," 694,190.30 ",-999999,Unclassifiable
5378883,GREATER MANCHESTER COMBINED AUTHORITY,Operations and Neighbourhoods,Operations and Neighbourhoods,Passenger Transport Levy,,14/07/2020," 846,904.10 ",-999999,Unclassifiable
5388032,F G MARSHALL LTD,Operations and Neighbourhoods,Operations and Neighbourhoods,Plaques,,14/07/2020, 844.59 ,120000,Cemetery & Crematorium
5388580,PHS GROUP PLC,Operations and Neighbourhoods,Operations and Neighbourhoods,Professional Services,,14/07/2020, 773.64 ,130000,Cleaning & Janitorial
5388589,PHS GROUP PLC,Operations and Neighbourhoods,Operations and Neighbourhoods,Professional Services,,14/07/2020, 962.50 ,130000,Cleaning & Janitorial
5388594,PHS GROUP PLC,Operations and Neighbourhoods,Operations and Neighbourhoods,Professional Services,,14/07/2020, 962.50 ,130000,Cleaning & Janitorial
5388581,PHS GROUP PLC,Operations and Neighbourhoods,Operations and Neighbourhoods,Professional Services,,14/07/2020, 962.50 ,130000,Cleaning & Janitorial
5388582,PHS GROUP PLC,Operations and Neighbourhoods,Operations and Neighbourhoods,Professional Services,,14/07/2020, 773.64 ,130000,Cleaning & Janitorial
5388579,PHS GROUP PLC,Operations and Neighbourhoods,Operations and Neighbourhoods,Professional Services,,14/07/2020, 819.14 ,130000,Cleaning & Janitorial
5388592,PHS GROUP PLC,Operations and Neighbourhoods,Operations and Neighbourhoods,Professional Services,,14/07/2020, 773.64 ,130000,Cleaning & Janitorial
5387745,CAMPEY TURF CARE SYSTEMS,Operations and Neighbourhoods,Operations and Neighbourhoods,General Materials,,14/07/2020, 751.90 ,240000,Horticultural
5388528,VALE  ENGINEERING(YORK)LTD,Operations and Neighbourhoods,Operations and Neighbourhoods,General Equipment Repair & Maintenance,,14/07/2020," 1,000.00 ",-999999,Unclassifiable
5388262,FSN Facilities Management Ltd,Contingency,Contingency,Security Services,,15/07/2020," 6,523.00 ",190000,Facilities & Management Services
5387882,ATKINS LIMITED,(blank),(blank),Engineers - Internal Recharge,,15/07/2020," 5,125.94 ",180000,Environmental Services
5387882,ATKINS LIMITED,Contingency,Contingency,Professional Consultancy Services,,15/07/2020," 3,273.32 ",180000,Environmental Services
5388224,Pennine Medical Supplies Ltd T/A Pennine Workwear,Contingency,Contingency,Purchase General Office Equipment,,15/07/2020, 537.00 ,MEDICAL,Medical
5387941,MDS Healthcare Limited,Contingency,Contingency,Purchase General Office Equipment,,15/07/2020," 3,000.00 ",151510,Healthcare
5388535,Redacted,Childrens Services,Children's Services,Living With Formal Support,,15/07/2020," 3,499.98 ",-999999,Unclassifiable
5388641,Redacted,Housing,Director of Place,Mandatory Adaptations Grant (DFG),,15/07/2020," 20,400.00 ",321300,Social Community Care Supplies & Services
5388646,PRECIOUS LITTLE ONES LTD,Education,Children's Services,Independent School Fees,,15/07/2020," 1,647.00 ",170000,Education
5388577,UNITED UTILITIES,Childrens Services,Children's Services,Living Without Formal Support,,15/07/2020," 1,946.45 ",-999999,Unclassifiable
5388487,THREE CIRCLES FOSTERING LTD,Childrens Services,Children's Services,Foster Carer Agency Fees,,15/07/2020," 6,687.79 ",321100,Social Community Care Supplies & Services - Children
5388488,SANDERSON WEATHERALL,Place,Growth,Agency Staff,,15/07/2020," 5,261.60 ",-999999,Unclassifiable
5386561,ABLE CARE AND SUPPORT SERVICES LTD,Adult Social Care,Adults,Homecare Fees,,15/07/2020," 7,495.80 ",321000,Social Community Care Supplies & Services - Adult
5388445,COMMUNITY HEALTH PARTNERSHIPS,Place,Growth,Non-Authority Accommodation Rental,,15/07/2020," 3,752.35 ",200000,Financial Services
5388449,COMMUNITY HEALTH PARTNERSHIPS,Place,Growth,Non-Authority Accommodation Rental,,15/07/2020," 3,752.35 ",200000,Financial Services
5388452,COMMUNITY HEALTH PARTNERSHIPS,Place,Growth,Non-Authority Accommodation Rental,,15/07/2020," 3,752.35 ",200000,Financial Services
5388416,COMMUNITY HEALTH PARTNERSHIPS,Place,Growth,Non-Authority Accommodation Rental,,15/07/2020," 3,807.46 ",200000,Financial Services
5388410,COMMUNITY HEALTH PARTNERSHIPS,Place,Growth,Non-Authority Accommodation Rental,,15/07/2020," 3,752.35 ",200000,Financial Services
5388406,COMMUNITY HEALTH PARTNERSHIPS,Place,Growth,Non-Authority Accommodation Rental,,15/07/2020," 3,752.35 ",200000,Financial Services
5388412,COMMUNITY HEALTH PARTNERSHIPS,Place,Growth,Non-Authority Accommodation Rental,,15/07/2020," 3,752.35 ",200000,Financial Services
5388450,COMMUNITY HEALTH PARTNERSHIPS,Place,Growth,Non-Authority Accommodation Rental,,15/07/2020," 3,752.35 ",200000,Financial Services
5388419,COMMUNITY HEALTH PARTNERSHIPS,Place,Growth,Non-Authority Accommodation Rental,,15/07/2020," 3,752.35 ",200000,Financial Services
5388415,COMMUNITY HEALTH PARTNERSHIPS,Place,Growth,Non-Authority Accommodation Rental,,15/07/2020," 3,807.46 ",200000,Financial Services
5388490,COMMUNITY HEALTH PARTNERSHIPS,Place,Growth,Non-Authority Accommodation Rental,,15/07/2020," 3,950.50 ",200000,Financial Services
5388660,INSPIREDSPACES TAMESIDE LTD,Tameside Investment Partnership,Director of Place,Building Maintenance,,15/07/2020," 6,298.55 ",390000,"Works - Construction, Repair & Maintenance"
5388757,INSPIREDSPACES TAMESIDE LTD,Place,Growth,Agency Staff,,15/07/2020," 3,482.85 ",390000,"Works - Construction, Repair & Maintenance"
5388118,CARETECH COMMUNITY SERVICES LIMITED,Adult Social Care,Adults,Residential Home Long Stay Fees,,15/07/2020," 6,133.40 ",321000,Social Community Care Supplies & Services - Adult
5388441,Oxygen Finance Limited,People and Workforce Development,Governance,Professional Services,,15/07/2020," 4,000.00 ",200000,Financial Services
5387711,FOSTER CARE ASSOCIATES LTD (FCA),Childrens Services,Children's Services,Foster Carer Agency Fees,,15/07/2020," 3,412.94 ",321000,Social Community Care Supplies & Services - Adult
5387251,GREATER MANCHESTER COMBINED AUTHORITY,Operations and Neighbourhoods,Operations and Neighbourhoods,Engineers Works,,15/07/2020," 1,289.42 ",-999999,Unclassifiable
5388633,TAMESIDE COLLEGE,Education,Children's Services,Post 16 FE College Fees,,15/07/2020," 254,934.00 ",UNCLASS,Unclassifiable
5388531,K P DODD CONSTRUCTION LTD,Housing,Director of Place,Mandatory Adaptations Grant (DFG),,15/07/2020," 6,265.00 ",399999,"Works - Construction, Repair & Maintenance"
5384206,THE ACCOUNTING OFFICER HOME OFFICE,Childrens Services,Children's Services,Looked After Children Transfer Payments,,16/07/2020," 1,012.00 ",202100,Financial Services
5387514,Moving Forward Care Ltd,Childrens Services,Children's Services,Living With Formal Support,,16/07/2020," 3,400.00 ",321100,Social Community Care Supplies & Services - Children
5388785,NORTHERN MARKING LIMITED,(blank),(blank),Footway Construction,,16/07/2020," 4,670.14 ",391411,"Works - Construction, Repair & Maintenance"
5388697,Hillgate Health Group Limited,Childrens Services,Children's Services,Living With Formal Support,,16/07/2020," 1,179.36 ",-999999,Unclassifiable
5388690,Hillgate Health Group Limited,Childrens Services,Children's Services,Living With Formal Support,,16/07/2020," 1,179.36 ",-999999,Unclassifiable
5388692,Hillgate Health Group Limited,Childrens Services,Children's Services,Living With Formal Support,,16/07/2020," 1,179.36 ",-999999,Unclassifiable
5388694,Hillgate Health Group Limited,Childrens Services,Children's Services,Living With Formal Support,,16/07/2020," 1,179.36 ",-999999,Unclassifiable
5388695,Hillgate Health Group Limited,Childrens Services,Children's Services,Living With Formal Support,,16/07/2020," 1,179.36 ",-999999,Unclassifiable
5388689,Hillgate Health Group Limited,Childrens Services,Children's Services,Living With Formal Support,,16/07/2020," 1,179.36 ",-999999,Unclassifiable
5388696,Hillgate Health Group Limited,Childrens Services,Children's Services,Living With Formal Support,,16/07/2020," 1,179.36 ",-999999,Unclassifiable
5388688,Hillgate Health Group Limited,Childrens Services,Children's Services,Living With Formal Support,,16/07/2020," 1,179.36 ",-999999,Unclassifiable
5388691,Hillgate Health Group Limited,Childrens Services,Children's Services,Living With Formal Support,,16/07/2020," 1,179.36 ",-999999,Unclassifiable
5388559,ISW CSC Limited,Childrens Services,Children's Services,Living With Formal Support,,16/07/2020," 1,250.00 ",260000,Human Resources
5388562,ISW CSC Limited,Childrens Services,Children's Services,Living With Formal Support,,16/07/2020," 1,250.00 ",260000,Human Resources
5388561,ISW CSC Limited,Childrens Services,Children's Services,Living With Formal Support,,16/07/2020, 950.00 ,260000,Human Resources
5388563,ISW CSC Limited,Childrens Services,Children's Services,Living With Formal Support,,16/07/2020," 1,520.00 ",260000,Human Resources
5388556,ISW CSC Limited,Childrens Services,Children's Services,Living With Formal Support,,16/07/2020, 870.00 ,260000,Human Resources
5388560,ISW CSC Limited,Childrens Services,Children's Services,Living With Formal Support,,16/07/2020," 1,250.00 ",260000,Human Resources
5388558,ISW CSC Limited,Childrens Services,Children's Services,Living With Formal Support,,16/07/2020," 1,310.00 ",260000,Human Resources
3250770,DENNIS EAGLE LTD,Operations and Neighbourhoods,Operations and Neighbourhoods,General Materials,,16/07/2020," 3,292.35 ",380000,Vehicle Management
3250770,SPECIALIST ACCESS ENGINEERING LTD,Operations and Neighbourhoods,Operations and Neighbourhoods,Sub-contractor Services,,16/07/2020," 6,194.30 ",380000,Vehicle Management
3250770,VISION TECHNIQUES LTD,Operations and Neighbourhoods,Operations and Neighbourhoods,Sub-contractor Services,,11/09/2020," 2,469.00 ",380000,Vehicle Management
5388884,Redacted,Childrens Services,Children's Services,Legal Fees,,16/07/2020, 600.00 ,280000,Legal Services
5388882,Redacted,Childrens Services,Children's Services,Legal Fees,,16/07/2020," 7,475.00 ",280000,Legal Services
5388781,Bloom Procurement Services Limited,(blank),(blank),Fees,,16/07/2020," 4,000.00 ",150000,Consultancy
5388642,YOUNG PEOPLE FIRST LIMITED,Childrens Services,Children's Services,Living With Formal Support,,16/07/2020," 2,730.00 ",321100,Social Community Care Supplies & Services - Children
5388640,YOUNG PEOPLE FIRST LIMITED,Childrens Services,Children's Services,Living With Formal Support,,16/07/2020, 850.00 ,321100,Social Community Care Supplies & Services - Children
5388643,YOUNG PEOPLE FIRST LIMITED,Childrens Services,Children's Services,Living With Formal Support,,16/07/2020, 850.00 ,321100,Social Community Care Supplies & Services - Children
5388617,Furniture Resource Centre Ltd,Operations and Neighbourhoods,Operations and Neighbourhoods,"Fixtures, Fittings & Furniture Purchase",,16/07/2020, 915.55 ,UNCLASS,Unclassifiable
5388792,Zeno Ltd,Childrens Services,Children's Services,Living With Formal Support,,16/07/2020," 19,113.48 ",310000,Healthcare
5388716,Cromwood Housing Ltd,Operations and Neighbourhoods,Operations and Neighbourhoods,Non-Authority Accommodation Rental,,16/07/2020," 42,513.43 ",250000,Housing Management
5388717,Cromwood Housing Ltd,Operations and Neighbourhoods,Operations and Neighbourhoods,Non-Authority Accommodation Rental,,16/07/2020," 7,089.50 ",250000,Housing Management
5388795,Indie 16 Limited,Childrens Services,Children's Services,Living With Formal Support,,16/07/2020," 3,778.57 ",170000,Education
5388682,MDS Healthcare Limited,Contingency,Contingency,Purchase General Office Equipment,,16/07/2020," 3,000.00 ",151510,Healthcare
5384437,Saints and Sinners Hair Studio,Place,Growth,Contributions,,16/07/2020," 1,500.00 ",201700,Financial Services
5388401,EON ENERGY,Adult Social Care,Adults,Electricity,,16/07/2020, 891.43 ,370000,Utilities
5388701,ZURICH INSURANCE PLC,Finance,Finance & IT,Inspection Fees,,16/07/2020," 27,004.50 ",200000,Financial Services
5388644,DOMAIN CARE NORTH WEST LTD,Adult Social Care,Adults,Homecare Fees,,16/07/2020," 1,198.04 ",321100,Social Community Care Supplies & Services - Children
5388064,FOSTERING SOLUTIONS LTD,Childrens Services,Children's Services,Foster Carer Agency Fees,,16/07/2020," 3,302.52 ",321000,Social Community Care Supplies & Services - Adult
5388068,FOSTERING SOLUTIONS LTD,Childrens Services,Children's Services,Foster Carer Agency Fees,,16/07/2020," 3,344.64 ",321000,Social Community Care Supplies & Services - Adult
5388070,FOSTERING SOLUTIONS LTD,Childrens Services,Children's Services,Foster Carer Agency Fees,,16/07/2020," 3,144.33 ",321000,Social Community Care Supplies & Services - Adult
5388066,FOSTERING SOLUTIONS LTD,Childrens Services,Children's Services,Foster Carer Agency Fees,,16/07/2020," 2,924.09 ",321000,Social Community Care Supplies & Services - Adult
5388776,OLDHAM COUNCIL,Education,Children's Services,Other Local Authorities Fees,,16/07/2020," 4,284.00 ",-999999,Unclassifiable
5388775,OLDHAM COUNCIL,Education,Children's Services,Other Local Authorities Fees,,16/07/2020," 5,355.00 ",-999999,Unclassifiable
5388380,Redacted,Childrens Services,Children's Services,Childrens Homes Outside Local Authority Fees,Redacted Supplier,16/07/2020," 16,363.66 ",321000,Social Community Care Supplies & Services - Adult
5388777,PERSON CENTRED CARE SERVICES LIMITED,Adult Social Care,Adults,Homecare Fees,,16/07/2020," 8,317.92 ",310000,Healthcare
5388623,NEW BRIDGE HORIZONS,Adult Social Care,Adults,Homecare Fees,,16/07/2020," 1,968.00 ",321000,Social Community Care Supplies & Services - Adult
5388631,NEW BRIDGE HORIZONS,Adult Social Care,Adults,Homecare Fees,,16/07/2020," 1,625.00 ",321000,Social Community Care Supplies & Services - Adult
5388621,NEW BRIDGE HORIZONS,Adult Social Care,Adults,Homecare Fees,,16/07/2020," 1,800.00 ",321000,Social Community Care Supplies & Services - Adult
5388620,NEW BRIDGE HORIZONS,Adult Social Care,Adults,Homecare Fees,,16/07/2020," 1,167.50 ",321000,Social Community Care Supplies & Services - Adult
5388619,NEW BRIDGE HORIZONS,Adult Social Care,Adults,Homecare Fees,,16/07/2020," 1,016.00 ",321000,Social Community Care Supplies & Services - Adult
5388622,NEW BRIDGE HORIZONS,Adult Social Care,Adults,Homecare Fees,,16/07/2020," 1,868.00 ",321000,Social Community Care Supplies & Services - Adult
5388320,Redacted,Childrens Services,Children's Services,Childrens Homes Outside Local Authority Fees,Redacted Supplier,16/07/2020," 15,500.00 ",321000,Social Community Care Supplies & Services - Adult
5388321,Redacted,Childrens Services,Children's Services,Childrens Homes Outside Local Authority Fees,Redacted Supplier,16/07/2020," 18,157.14 ",321000,Social Community Care Supplies & Services - Adult
5388325,Redacted,Childrens Services,Children's Services,Childrens Homes Outside Local Authority Fees,Redacted Supplier,16/07/2020," 18,157.14 ",321000,Social Community Care Supplies & Services - Adult
5388324,Redacted,Childrens Services,Children's Services,Childrens Homes Outside Local Authority Fees,Redacted Supplier,16/07/2020," 18,157.14 ",321000,Social Community Care Supplies & Services - Adult
5376163,Redacted,Childrens Services,Children's Services,Living With Formal Support,Redacted Supplier,16/07/2020," 4,595.44 ",321100,Social Community Care Supplies & Services - Children
5388217,THE GUINNESS PARTNERSHIP LTD,Adult Social Care,Adults,Non-Authority Accommodation Rental,,16/07/2020," 4,986.80 ",250000,Housing Management
5388216,THE GUINNESS PARTNERSHIP LTD,Adult Social Care,Adults,Non-Authority Accommodation Rental,,16/07/2020," 1,433.81 ",250000,Housing Management
5388720,ACTION TOGETHER CIO,Operations and Neighbourhoods,Operations and Neighbourhoods,General Materials,,16/07/2020," 34,000.00 ",200000,Financial Services
5369847,CORE INTEGRATED SOLUTIONS LTD,(blank),(blank),Fibre Works,,16/07/2020, 925.00 ,390000,"Works - Construction, Repair & Maintenance"
5387322,ACORN CARE & EDUCATION LTD (SALES),Education,Children's Services,Independent School Fees,,16/07/2020," 17,100.00 ",321100,Social Community Care Supplies & Services - Children
5387312,ACORN CARE & EDUCATION LTD (SALES),Education,Children's Services,Independent School Fees,,16/07/2020," 11,863.34 ",321100,Social Community Care Supplies & Services - Children
5387305,ACORN CARE & EDUCATION LTD (SALES),Education,Children's Services,Independent School Fees,,16/07/2020," 11,880.00 ",321100,Social Community Care Supplies & Services - Children
5388800,ACORN CARE & EDUCATION LTD (SALES),Education,Children's Services,Independent School Fees,,16/07/2020," 21,429.00 ",321100,Social Community Care Supplies & Services - Children
5387313,ACORN CARE & EDUCATION LTD (SALES),Education,Children's Services,Independent School Fees,,16/07/2020," 11,863.34 ",321100,Social Community Care Supplies & Services - Children
5388703,JENOPTIK TRAFFIC SOLUTIONS UK LTD,Operations and Neighbourhoods,Operations and Neighbourhoods,General Materials,,16/07/2020," 1,764.00 ",350000,Street & Traffic Management
5380014,THE TUTOR TRUST,Education,Children's Services,Professional Services,,16/07/2020," 19,125.00 ",170000,Education
5388651,TRIANGLE CARE GROUP,Childrens Services,Children's Services,Living With Formal Support,,16/07/2020," 4,400.00 ",321000,Social Community Care Supplies & Services - Adult
5388684,ALLOTTS,Individual Schools Budget,Children's Services,Furniture Removal Fees,,16/07/2020, 750.00 ,190000,Facilities & Management Services
5388339,HEXAGON CARE SERVICES LTD,Childrens Services,Children's Services,Childrens Homes Outside Local Authority Fees,,16/07/2020," 13,684.29 ",321000,Social Community Care Supplies & Services - Adult
5388337,HEXAGON CARE SERVICES LTD,Childrens Services,Children's Services,Childrens Homes Outside Local Authority Fees,,16/07/2020," 19,463.57 ",321000,Social Community Care Supplies & Services - Adult
5388340,HEXAGON CARE SERVICES LTD,Childrens Services,Children's Services,Childrens Homes Outside Local Authority Fees,,16/07/2020," 11,049.29 ",321000,Social Community Care Supplies & Services - Adult
5386887,FORENSIC TESTING SERVICE LTD,Childrens Services,Children's Services,Professional Medical Services,,16/07/2020," 1,681.70 ",180000,Environmental Services
5386427,FORENSIC TESTING SERVICE LTD,Childrens Services,Children's Services,Professional Medical Services,,16/07/2020," 1,965.80 ",180000,Environmental Services
5386766,FORENSIC TESTING SERVICE LTD,Childrens Services,Children's Services,Professional Medical Services,,16/07/2020, 647.75 ,180000,Environmental Services
5388448,COMMUNITY HEALTH PARTNERSHIPS,Place,Growth,Non-Authority Accommodation Rental,,16/07/2020," 3,752.35 ",200000,Financial Services
5388761,INSPIREDSPACES TAMESIDE LTD,Tameside Investment Partnership,Director of Place,Costs Offset Against Sale,,16/07/2020," 2,207.90 ",390000,"Works - Construction, Repair & Maintenance"
5388675,INSPIREDSPACES TAMESIDE LTD,(blank),(blank),New Accommodation Works,,16/07/2020," 9,300.66 ",390000,"Works - Construction, Repair & Maintenance"
5388756,INSPIREDSPACES TAMESIDE LTD,Asset & Investment Partnership Management,Growth,PFI FM Fees and Insurance Costs,,16/07/2020," 2,040.50 ",390000,"Works - Construction, Repair & Maintenance"
5388759,INSPIREDSPACES TAMESIDE LTD,Tameside Investment Partnership,Director of Place,Costs Offset Against Sale,,16/07/2020," 6,295.05 ",390000,"Works - Construction, Repair & Maintenance"
5388808,INSPIREDSPACES TAMESIDE LTD,Childrens Services,Childrens Services,Building Repairs,,16/07/2020," 4,516.14 ",390000,"Works - Construction, Repair & Maintenance"
5388763,INSPIREDSPACES TAMESIDE LTD,Asset & Investment Partnership Management,Growth,PFI FM Fees and Insurance Costs,,16/07/2020," 1,064.20 ",390000,"Works - Construction, Repair & Maintenance"
5388764,INSPIREDSPACES TAMESIDE LTD,(blank),(blank),Fees,,16/07/2020," 12,330.78 ",390000,"Works - Construction, Repair & Maintenance"
5387929,SERVELEC EDUCATION LIMITED,Exchequer,Governance,Professional Consultancy Services,,16/07/2020," 17,309.00 ",170000,Education
5388762,ROUTES HEALTHCARE (NORTH) LIMITED,Adult Social Care,Adults,Homecare Fees,,16/07/2020," 2,085.51 ",321100,Social Community Care Supplies & Services - Children
5388626,Just One Recruitment and Training,Childrens Services,Children's Services,Living With Formal Support,,16/07/2020, 669.48 ,321000,Social Community Care Supplies & Services - Adult
5388816,Options Autism (4) LTD,Childrens Services,Children's Services,Childrens Homes Outside Local Authority Fees,,16/07/2020," 20,681.43 ",170000,Education
5388774,Exclusec Security Solutions Ltd,Operations and Neighbourhoods,Operations and Neighbourhoods,Security Services,,16/07/2020," 20,251.00 ",-999999,Unclassifiable
5388773,Exclusec Security Solutions Ltd,Operations and Neighbourhoods,Operations and Neighbourhoods,Security Services,,16/07/2020," 26,089.00 ",-999999,Unclassifiable
5388707,Exclusec Security Solutions Ltd,Contingency,Contingency,Security Services,,16/07/2020," 4,275.00 ",-999999,Unclassifiable
5388708,ARCO LIMITED,Operations and Neighbourhoods,Operations and Neighbourhoods,Protective Clothing,,16/07/2020, 500.00 ,140000,Clothing
5378908,GREATER MANCHESTER COMBINED AUTHORITY,Operations and Neighbourhoods,Operations and Neighbourhoods,Waste Levy - Domestic Waste Disposal Costs,,16/07/2020," 1,259,000.00 ",-999999,Unclassifiable
5388769,CIVICA UK LIMITED,Exchequer,Governance,Subscriptions,,16/07/2020," 2,500.00 ",271600,Information Communication Technology
5388819,TAMESIDE SPORTS TRUST,Tameside Investment Partnership,Director of Place,Costs Offset Against Sale,,16/07/2020," 3,767.93 ",290000,Arts & Leisure Services
5388727,AON LIMITED,Finance,Finance & IT,Miscellaneous Insurance,,16/07/2020," 2,989.65 ",260000,Human Resources
5388724,AON LIMITED,Finance,Finance & IT,Building & Contents Insurance,,16/07/2020," 250,789.96 ",260000,Human Resources
5388722,AON LIMITED,Finance,Finance & IT,Transport Insurance,,16/07/2020," 160,160.00 ",260000,Human Resources
5388728,AON LIMITED,Finance,Finance & IT,Miscellaneous Insurance,,16/07/2020, 763.64 ,260000,Human Resources
5388726,AON LIMITED,Finance,Finance & IT,Miscellaneous Insurance,,16/07/2020, 960.01 ,260000,Human Resources
5388731,AON LIMITED,Finance,Finance & IT,Building & Contents Insurance,,16/07/2020," 39,200.00 ",260000,Human Resources
5388729,AON LIMITED,Finance,Finance & IT,Miscellaneous Insurance,,16/07/2020," 46,662.15 ",260000,Human Resources
5388732,AON LIMITED,Finance,Finance & IT,Miscellaneous Insurance,,16/07/2020," 11,617.13 ",260000,Human Resources
5388725,AON LIMITED,Finance,Finance & IT,Employee Insurance,,16/07/2020," 414,293.60 ",260000,Human Resources
5388730,AON LIMITED,Finance,Finance & IT,Building & Contents Insurance,,16/07/2020," 11,099.52 ",260000,Human Resources
5373297,R.T.P.I. SERVICES LTD,Place,Growth,Training Course Costs,,16/07/2020," 2,142.00 ",180000,Environmental Services
5388367,CREATIVE SUPPORT LTD,Adult Social Care,Adults,Age Concern Fees,,16/07/2020," 34,033.17 ",321000,Social Community Care Supplies & Services - Adult
5388849,BRAKE BROS LTD,Operations and Neighbourhoods,Operations and Neighbourhoods,Food & Refreshments,,16/07/2020, 622.51 ,110000,Catering
5388742,CAPSTONE FOSTER CARE,Childrens Services,Children's Services,Foster Carer Agency Fees,,16/07/2020," 3,534.00 ",321000,Social Community Care Supplies & Services - Adult
5388744,CAPSTONE FOSTER CARE,Childrens Services,Children's Services,Foster Carer Agency Fees,,16/07/2020," 3,420.00 ",321000,Social Community Care Supplies & Services - Adult
5388442,BARNARDO'S,Childrens Services,Children's Services,Professional Child Services,,16/07/2020," 3,150.00 ",-999999,Unclassifiable
5388734,QUALITY PROTECTS CHILDREN LTD,Childrens Services,Children's Services,Childrens Homes Outside Local Authority Fees,,16/07/2020," 30,000.00 ",-999999,Unclassifiable
29000085,MEDLOCK VALE MEDICAL PRACTICE,Population Health,Population Health,Local Enhanced Services,,16/07/2020, 785.70 ,310000,Healthcare
5388552,KEYSOFT SOLUTIONS LTD,Operations and Neighbourhoods,Operations and Neighbourhoods,Engineers Works,,16/07/2020," 3,360.00 ",270000,Information Communication Technology
5388779,JUST TEACHERS,Education,Children's Services,Independent School Fees,,16/07/2020, 603.25 ,261415,Human Resources
5388639,Water Plus,Place,Growth,Water (Metered and Rates),,16/07/2020," 2,022.41 ",370000,Utilities
5388908,CAPITA - NNDR REFUNDS,Contingency,Contingency,COVID-19 Small Business 10k,,16/07/2020," 10,000.00 ",400000,Non 3rd Party spend  
5388908,CAPITA - NNDR REFUNDS,Contingency,Contingency,"COVID-19 Retail, Hospitality and Leisure 10k",,16/07/2020," 20,000.00 ",400000,Non 3rd Party spend  
5388903,CAPITA - NNDR REFUNDS,Contingency,Contingency,"COVID-19 Retail, Hospitality and Leisure 25k",,16/07/2020," 50,000.00 ",400000,Non 3rd Party spend  
5388903,CAPITA - NNDR REFUNDS,Contingency,Contingency,COVID-19 Small Business 10k,,16/07/2020," 190,000.00 ",400000,Non 3rd Party spend  
5388903,CAPITA - NNDR REFUNDS,Contingency,Contingency,"COVID-19 Retail, Hospitality and Leisure 10k",,16/07/2020," 30,000.00 ",400000,Non 3rd Party spend  
5388936,AD HOC CHAPS PAYMENT,Multiple Heads of Service,Multiple Strategic Directorates,Salaries & Wages Advances(Hold),,16/07/2020," 1,409.74 ",400002,Chaps Payments
5388931,AD HOC CHAPS PAYMENT,Childrens Services,Children's Services,Foster Care Placement Task,,16/07/2020," 2,581.43 ",400002,Chaps Payments
5388891,Co-Operative Network Infrastructure,Digital Tameside,Finance & IT,Fees,,17/07/2020," 27,200.00 ",-999999,Unclassifiable
5388929,Redacted,Childrens Services,Children's Services,Legal Fees,,17/07/2020, 600.00 ,280000,Legal Services
5388969,Redacted,Multiple Heads of Service,Multiple Strategic Directorates,Salaries & Wages Advances(Hold),,17/07/2020, 590.00 ,400000,Non 3rd Party spend  
5388693,Hillgate Health Group Limited,Childrens Services,Children's Services,Living With Formal Support,,17/07/2020," 1,179.36 ",-999999,Unclassifiable
5388791,Armstrongs Office Furniture,Operations and Neighbourhoods,Operations and Neighbourhoods,Other Accommodation Related Costs,,17/07/2020," 2,160.00 ",210000,Furniture & Soft Furnishings
5388885,G2V Recruitment Group Limited t/a Vivid Resourcing,Place,Growth,Agency Staff,,17/07/2020," 2,500.00 ",280000,Legal Services
5387163,SOLOTEC SCIENTIFIC LIMITED,Place,Growth,Contributions,,17/07/2020," 3,380.44 ",400000,Non 3rd Party spend  
5388932,Dagmar Psychological Services,Childrens Services,Children's Services,Professional Child Services,,17/07/2020, 611.17 ,280000,Legal Services
5388930,Dagmar Psychological Services,Childrens Services,Children's Services,Professional Child Services,,17/07/2020, 653.74 ,280000,Legal Services
5388918,Redacted,Childrens Services,Children's Services,Professional Consultancy Services,Redacted Supplier,17/07/2020," 1,605.55 ",321100,Social Community Care Supplies & Services - Children
5388896,ANGLIA DNA SERVICES LTD,Childrens Services,Children's Services,Professional Medical Services,,17/07/2020, 885.00 ,180000,Environmental Services
5388960,Randstad Public Services Limited,Education,Children's Services,Professional Services,,17/07/2020, 511.85 ,170000,Education
5388937,HART PSYCHOLOGICAL CONSULTING,Childrens Services,Children's Services,Professional Child Services,,17/07/2020, 597.59 ,310000,Healthcare
5387020,CASH BOX CREDIT UNION LTD,Place,Growth,Contributions,,17/07/2020," 4,352.40 ",400001,Charities and Voluntary Organisations
5387019,CASH BOX CREDIT UNION LTD,Place,Growth,Contributions,,17/07/2020," 4,352.40 ",400001,Charities and Voluntary Organisations
5388944,FOSTERING PEOPLE LTD,Childrens Services,Children's Services,Foster Carer Agency Fees,,17/07/2020," 3,342.57 ",321100,Social Community Care Supplies & Services - Children
5388805,FAMILY CARE FOSTERING LTD,Childrens Services,Children's Services,Foster Carer Agency Fees,,17/07/2020," 3,582.67 ",321100,Social Community Care Supplies & Services - Children
5388804,FAMILY CARE FOSTERING LTD,Childrens Services,Children's Services,Foster Carer Agency Fees,,17/07/2020," 3,491.89 ",321100,Social Community Care Supplies & Services - Children
5388803,FAMILY CARE FOSTERING LTD,Childrens Services,Children's Services,Foster Carer Agency Fees,,17/07/2020," 4,594.51 ",321100,Social Community Care Supplies & Services - Children
5388806,MEW CARE LTD,Adult Social Care,Adults,Professional Services,,17/07/2020, 550.00 ,260000,Human Resources
5388502,COMMUNITY HEALTH PARTNERSHIPS,Place,Growth,Non-Authority Accommodation Rental,,17/07/2020," 3,950.50 ",200000,Financial Services
5388408,COMMUNITY HEALTH PARTNERSHIPS,Place,Growth,Non-Authority Accommodation Rental,,17/07/2020," 3,752.35 ",200000,Financial Services
5388491,COMMUNITY HEALTH PARTNERSHIPS,Place,Growth,Non-Authority Accommodation Rental,,17/07/2020," 3,950.50 ",200000,Financial Services
5388494,COMMUNITY HEALTH PARTNERSHIPS,Place,Growth,Non-Authority Accommodation Rental,,17/07/2020," 3,950.50 ",200000,Financial Services
5388504,COMMUNITY HEALTH PARTNERSHIPS,Place,Growth,Non-Authority Accommodation Rental,,17/07/2020," 3,950.50 ",200000,Financial Services
5388493,COMMUNITY HEALTH PARTNERSHIPS,Place,Growth,Non-Authority Accommodation Rental,,17/07/2020," 3,950.50 ",200000,Financial Services
5388496,COMMUNITY HEALTH PARTNERSHIPS,Place,Growth,Non-Authority Accommodation Rental,,17/07/2020," 3,950.50 ",200000,Financial Services
5388512,COMMUNITY HEALTH PARTNERSHIPS,Place,Growth,Non-Authority Accommodation Rental,,17/07/2020," 3,950.50 ",200000,Financial Services
5388498,COMMUNITY HEALTH PARTNERSHIPS,Place,Growth,Non-Authority Accommodation Rental,,17/07/2020," 3,950.50 ",200000,Financial Services
5388505,COMMUNITY HEALTH PARTNERSHIPS,Place,Growth,Non-Authority Accommodation Rental,,17/07/2020," 3,950.50 ",200000,Financial Services
5388514,COMMUNITY HEALTH PARTNERSHIPS,Place,Growth,Non-Authority Accommodation Rental,,17/07/2020," 3,950.50 ",200000,Financial Services
5388508,COMMUNITY HEALTH PARTNERSHIPS,Place,Growth,Non-Authority Accommodation Rental,,17/07/2020," 3,953.73 ",200000,Financial Services
5388420,ALBION MILL CARPETS,Adult Social Care,Adults,"Fixtures, Fittings & Furniture Purchase",,17/07/2020, 916.66 ,100000,Building Construction Materials
5388966,INSPIREDSPACES TAMESIDE LTD,Place,Growth,Building Maintenance,,17/07/2020," 1,070.00 ",390000,"Works - Construction, Repair & Maintenance"
5388947,CARETECH COMMUNITY SERVICES LIMITED,Adult Social Care,Adults,Residential Home Long Stay Fees,,17/07/2020," 38,714.01 ",321000,Social Community Care Supplies & Services - Adult
5388943,THE ADOLESCENT & CHILDRENS TRUST,Childrens Services,Children's Services,Foster Carer Agency Fees,,17/07/2020," 3,281.04 ",321100,Social Community Care Supplies & Services - Children
5388955,Redacted,Childrens Services,Children's Services,Professional Consultancy Services,,17/07/2020," 4,450.35 ",321000,Social Community Care Supplies & Services - Adult
5388810,Oxford Innovation LTD - ASHTON OLD BATHS,Place,Growth,Professional Services,,17/07/2020," 22,004.79 ",190000,Facilities & Management Services
5388818,STOCKPORT MBC,Place,Growth,Agency Staff,,17/07/2020," 7,297.92 ",321100,Social Community Care Supplies & Services - Children
5388782,GREATER MANCHESTER PENSION FUND,Corporate Costs,Corporate Costs,Pension Increase Act Costs,,17/07/2020," 121,400.00 ",UNCLASS,Unclassifiable
5387276,GREATER MANCHESTER COMBINED AUTHORITY,Place,Growth,Contributions,,17/07/2020," 54,000.00 ",-999999,Unclassifiable
5388893,SWIIS FOSTER CARE LTD,Childrens Services,Children's Services,Foster Carer Agency Fees,,17/07/2020, 899.99 ,321100,Social Community Care Supplies & Services - Children
5388895,SWIIS FOSTER CARE LTD,Childrens Services,Children's Services,Foster Carer Agency Fees,,17/07/2020, 658.84 ,321100,Social Community Care Supplies & Services - Children
5388901,SWIIS FOSTER CARE LTD,Childrens Services,Children's Services,Foster Carer Agency Fees,,17/07/2020, 760.48 ,321100,Social Community Care Supplies & Services - Children
5388898,SWIIS FOSTER CARE LTD,Childrens Services,Children's Services,Foster Carer Agency Fees,,17/07/2020, 693.49 ,321100,Social Community Care Supplies & Services - Children
5388902,SWIIS FOSTER CARE LTD,Childrens Services,Children's Services,Foster Carer Agency Fees,,17/07/2020, 703.92 ,321100,Social Community Care Supplies & Services - Children
5388721,QUALITY PROTECTS CHILDREN LTD,Childrens Services,Children's Services,Childrens Homes Outside Local Authority Fees,,17/07/2020," 32,245.71 ",-999999,Unclassifiable
5388953,Redacted,Adult Social Care,Adults,Property Protection Payments,,17/07/2020, 639.00 ,180000,Environmental Services
5388829,CHILD ACTION NORTHWEST,Adult Social Care,Adults,Professional Services,,17/07/2020, 832.78 ,-999999,Unclassifiable
5388833,CHILD ACTION NORTHWEST,Adult Social Care,Adults,Professional Services,,17/07/2020, 819.92 ,-999999,Unclassifiable
5388840,CHILD ACTION NORTHWEST,Adult Social Care,Adults,Professional Services,,17/07/2020," 1,188.43 ",-999999,Unclassifiable
5388847,CHILD ACTION NORTHWEST,Adult Social Care,Adults,Professional Services,,17/07/2020, 678.50 ,-999999,Unclassifiable
5388846,CHILD ACTION NORTHWEST,Adult Social Care,Adults,Professional Services,,17/07/2020," 1,694.08 ",-999999,Unclassifiable
5388838,CHILD ACTION NORTHWEST,Adult Social Care,Adults,Professional Services,,17/07/2020," 1,029.88 ",-999999,Unclassifiable
5388837,CHILD ACTION NORTHWEST,Adult Social Care,Adults,Professional Services,,17/07/2020, 935.61 ,-999999,Unclassifiable
5388843,CHILD ACTION NORTHWEST,Adult Social Care,Adults,Professional Services,,17/07/2020," 1,398.41 ",-999999,Unclassifiable
5388831,CHILD ACTION NORTHWEST,Adult Social Care,Adults,Professional Services,,17/07/2020," 1,055.61 ",-999999,Unclassifiable
5388946,Redacted,Childrens Services,Children's Services,Professional Child Services,Business Payment,17/07/2020, 695.23 ,310000,Healthcare
5388921,Water Plus,Place,Growth,Water (Metered and Rates),,17/07/2020, 507.90 ,370000,Utilities
5388993,COOLSPIRIT LTD,Digital Tameside,Finance & IT,Network Equipment/Setup,,20/07/2020, 987.00 ,270000,Information Communication Technology
470867,AGGREGATE INDUSTRIES UK LIMITED,Operations and Neighbourhoods,Operations and Neighbourhoods,General Materials,,20/07/2020," 15,740.78 ",230000,Highway Equipment & Materials
470867,ARCO LIMITED,Operations and Neighbourhoods,Operations and Neighbourhoods,General Materials,,20/07/2020, 908.92 ,140000,Clothing
470867,EAGLE CIVIL ENGINEERING LTD,Operations and Neighbourhoods,Operations and Neighbourhoods,Sub-contractor Services,,20/07/2020," 21,936.45 ",391411,"Works - Construction, Repair & Maintenance"
470867,KEN TAYLOR SUPPLIES LTD,(blank),(blank),General Materials,,20/07/2020," 5,990.00 ",-999999,Unclassifiable
470867,TARMAC CENTRAL LIMITED,Civil Engineers,Director of Place,Debits Goods Received,,20/07/2020, 613.05 ,230000,Highway Equipment & Materials
470867,TARMAC CENTRAL LIMITED,Operations and Neighbourhoods,Operations and Neighbourhoods,General Materials,,20/07/2020," 13,753.66 ",230000,Highway Equipment & Materials
470867,WOLSELEY UK LTD,Operations and Neighbourhoods,Operations and Neighbourhoods,General Materials,,20/07/2020, 511.17 ,230000,Highway Equipment & Materials
470867,4WAY CONSULTING LTD,Operations and Neighbourhoods,Operations and Neighbourhoods,General Materials,,20/07/2020," 2,324.14 ",180000,Environmental Services
470867,1st Choice Grab Hire LTD,Operations and Neighbourhoods,Operations and Neighbourhoods,General Materials,,20/07/2020, 550.00 ,230000,Highway Equipment & Materials
470867,1st Choice Grab Hire LTD,Operations and Neighbourhoods,Operations and Neighbourhoods,Sub-contractor Services,,20/07/2020," 1,050.00 ",230000,Highway Equipment & Materials
470867,TOTALLY LOCAL COMPANY LIMITED,Operations and Neighbourhoods,Operations and Neighbourhoods,Training Course Costs,,20/07/2020, 740.00 ,190000,Facilities & Management Services
470867,NORTHWEST UTILITY SOLUTIONS LTD,Operations and Neighbourhoods,Operations and Neighbourhoods,Sub-contractor Services,,20/07/2020," 12,742.50 ",370000,Utilities
470867,TRAFFIC DIRECT LTD,Operations and Neighbourhoods,Operations and Neighbourhoods,Sub-contractor Services,,20/07/2020," 3,395.00 ",350000,Street & Traffic Management
470867,KONSTRUCTA HIRE LIMITED,Operations and Neighbourhoods,Operations and Neighbourhoods,General Materials,,20/07/2020, 820.03 ,390000,"Works - Construction, Repair & Maintenance"
470867,North West Training Academy Ltd,Operations and Neighbourhoods,Operations and Neighbourhoods,Training Course Costs,,20/07/2020," 1,200.00 ",261500,Human Resources
5389078,ISW CSC Limited,Childrens Services,Children's Services,Living With Formal Support,,20/07/2020, 890.00 ,260000,Human Resources
5387267,Bloom Procurement Services Limited,(blank),(blank),Professional Consultancy Services,,20/07/2020," 6,000.00 ",150000,Consultancy
5388990,Sandcastle Care LTD,Childrens Services,Children's Services,Childrens Homes Outside Local Authority Fees,,20/07/2020," 48,670.00 ",321000,Social Community Care Supplies & Services - Adult
5388987,Sandcastle Care LTD,Childrens Services,Children's Services,Childrens Homes Outside Local Authority Fees,,20/07/2020," 26,549.29 ",321000,Social Community Care Supplies & Services - Adult
5388989,Sandcastle Care LTD,Childrens Services,Children's Services,Childrens Homes Outside Local Authority Fees,,20/07/2020," 26,549.29 ",321000,Social Community Care Supplies & Services - Adult
5388991,Sandcastle Care LTD,Childrens Services,Children's Services,Childrens Homes Outside Local Authority Fees,,20/07/2020," 26,549.29 ",321000,Social Community Care Supplies & Services - Adult
5389002,G2V Recruitment Group Limited t/a Vivid Resourcing,Place,Growth,Agency Staff,,20/07/2020," 2,500.00 ",280000,Legal Services
5389084,G2V Recruitment Group Limited t/a Vivid Resourcing,Place,Growth,Agency Staff,,20/07/2020," 3,000.00 ",280000,Legal Services
5388794,Indie 16 Limited,Childrens Services,Children's Services,Living With Formal Support,,20/07/2020," 2,464.29 ",170000,Education
5389003,Redacted,Childrens Services,Children's Services,Professional Child Services,,20/07/2020," 1,175.19 ",260000,Human Resources
5389069,The Football Foundation Trading Limited,Operations and Neighbourhoods,Operations and Neighbourhoods,It Equipment,,20/07/2020," 3,785.00 ",-999999,Unclassifiable
5389006,Oyster Partnership,Place,Growth,Agency Staff,,20/07/2020," 2,200.00 ",261313,Human Resources
5389009,Oyster Partnership,Place,Growth,Agency Staff,,20/07/2020," 3,000.00 ",261313,Human Resources
5388928,Pennine Learning Associates,Education,Children's Services,Professional Services,,20/07/2020," 1,875.00 ",-999999,Unclassifiable
5388372,Carrington West Ltd,Place,Growth,Agency Staff,,20/07/2020, 985.50 ,-999999,Unclassifiable
5389011,Optima Health,People and Workforce Development,Governance,Fees,,20/07/2020, 788.23 ,311410,Healthcare
5383598,Redacted,Operations and Neighbourhoods,Operations and Neighbourhoods,Miscellaneous Expenses,,20/07/2020," 2,000.00 ",-999999,Unclassifiable
5389030,KONICA MINOLTA BUSINESS SOLUTIONS (UK) LTD,Digital Tameside,Finance & IT,Printing Recharges,,20/07/2020," 25,121.34 ",270000,Information Communication Technology
5389029,KONICA MINOLTA BUSINESS SOLUTIONS (UK) LTD,Digital Tameside,Finance & IT,Printing Recharges,,20/07/2020," 8,120.94 ",270000,Information Communication Technology
5388191,TELEFONICA O2 (UK) LTD,Digital Tameside,Finance & IT,Mobile Telephones,,20/07/2020, 509.00 ,270000,Information Communication Technology
